{"text_format":"1","workbook":"xlsx","n_sheets":5,"sheets":["Sheet1","Data_Tech","Лист1","база","расчет"],"not_rendered":{"charts":0,"images":0,"macros":1,"external_links":0,"defined_names":2,"comments":0,"pivot_tables":0},"unopened":[],"bounds":{"document_bytes":16777216,"sheet_cells":100000,"rows_first":2000,"rows_last":500,"rows_between":2000,"halvings":0,"cell_chars":16384,"cell_head_chars":4096},"cells_cut":0,"cells_raw":0,"read":"whole","date_system":"1900"}

{"sheet":"Sheet1","index":0,"n_rows":63,"n_cols":27,"rows_kept":63,"cut":false,"hidden":true,"merged":[[0,6,0,11],[21,6,21,11],[32,6,32,11]]}
[null,null,null,null,null,null,"технологическая карта",null,null,null,null,null,null,"изд",1,null,null,"партия","4-21"]
[null,null,null,null,null,null,null,null,null,"август",null,2021]
[null,"коэф","Ф. И. О.","р/р",2,3,4,5,6,9,10,11,12,13,16,17,18,19,20,23,24,25,26,27,30,31]
[null,null,"работник6","3/16",null,null,null,null,1,null,null,1,4,3.2,2,1.2,null,null,null,null,null,null,null,null,null,null,{"$f":"SUM(E4:Z4)","v":12.399999999999999}]
[null,null,"работник7",null,null,null,null,null,null,null,7.2,null,null,null,null,null,null,null,null,null,null,null,null,null,null,null,7.2]
[null,null,"работник1",null,6.7,null,null,null,4.7,null,null,null,null,null,6.7,2,null,null,null,null,null,null,null,null,null,null,20.100000000000001]
[null,null,"работник8",null,7.2,null,7.2,5,4.2,7.2,7.2,6.2,null,null,null,null,null,null,null,null,null,null,null,null,null,null,44.2]
[null,null,"работник9",null,7.2,7.2,null,null,null,null,null,null,null,null,null,null,null,null,null,null,null,null,null,null,null,null,14.4]
[null,null,"работник3",null,null,2.6,null,7.2,null,null,7.2,null,null,null,null,null,null,null,null,null,null,null,null,null,null,null,17]
[null,null,"работник10",null,null,null,null,7.2,7.2,4,4,2,null,null,null,null,null,null,null,null,null,null,null,null,null,null,24.4]
[null,null,"работник10",null,null,null,null,null,null,null,null,7.2,7.2,7.2,7.2,null,null,null,null,null,null,null,null,null,null,null,28.8]
[null,null,"работник5",null,null,null,null,null,null,null,4,null,4,null,null,null,null,null,null,null,null,null,null,null,null,null,8]
[null,null,"работник11",null,null,null,null,null,null,7.2,7.2,null,7.2,null,null,null,null,null,null,null,null,null,null,null,null,null,21.6]
[null,null,"работник2",null,null,null,null,2.2000000000000002,null,null,null,null,null,null,null,null,null,null,null,null,null,null,null,null,null,null,2.2000000000000002]
[null,null,"работник4",null,7.2,7.2,null,null,null,null,null,null,null,null,null,null,null,null,null,null,null,null,null,null,null,null,14.4]
[]
[null,1.1000000000000001,"работник5","3/16",7.2,null,null,null,null,null,null,null,null,null,null,null,null,null,null,null,null,null,null,null,null,null,7.2]
[null,1.1000000000000001,"работник2",null,null,null,2,null,null,null,null,null,null,null,null,null,null,null,null,null,null,null,null,null,null,null,2]
[null,null,null,null,{"$f":"SUM(E4:E18)","v":35.5},17,9.1999999999999993,21.599999999999998,17.100000000000001,18.399999999999999,36.800000000000004,16.399999999999999,22.4,10.4,15.899999999999999,3.2,0,0,0,0,0,0,0,0,0,0,223.9]
[]
[]
[null,null,null,null,null,null,"технологическая карта",null,null,null,null,null,null,"изд",2,null,null,"партия","33-21"]
[null,null,null,null,null,null,null,null,null,"август",null,2021]
[null,"коэф","Ф. И. О.","р/р",2,3,4,5,6,9,10,11,12,13,16,17,18,19,20,23,24,25,26,27,30,31]
[null,null,"работник6","3/16",null,null,null,null,null,null,null,null,2,4,null,null,null,null,null,null,null,null,null,null,null,null,{"$f":"SUM(E25:Z25)","v":6}]
[null,null,"работник10",null,null,null,null,null,null,null,null,null,null,7.2,7.2,null,null,null,null,null,null,null,null,null,null,null,14.4]
[null,null,"работник11",null,null,null,null,null,null,null,null,7.2,null,null,null,null,null,null,null,null,null,null,null,null,null,null,7.2]
[null,null,"работник3",null,3.2,4.5999999999999996,2.8,null,null,null,null,null,null,null,null,null,null,null,null,null,null,null,null,null,null,null,{"$f":"SUM(E28:Z28)","v":10.6}]
[null,null,"работник8",null,null,null,null,null,null,null,null,null,null,null,null,null,null,null,7.2,null,null,null,null,null,null,null,7.2]
[null,null,"работник9",null,null,null,7.2,7.2,7.2,7.2,7.2,null,null,null,null,null,null,null,null,null,null,null,null,null,null,null,36]
[null,null,null,null,{"$f":"SUM(E25:E30)","v":3.2},4.5999999999999996,10,7.2,7.2,7.2,7.2,7.2,2,11.2,7.2,0,0,0,7.2,0,0,0,0,0,0,0,{"$f":"SUM(AA25:AA30)","v":81.400000000000006}]
[]
[null,null,null,null,null,null,"технологическая карта",null,null,null,null,null,null,"изд",3,null,null,"партия","27-21"]
[null,null,null,null,null,null,null,null,null,"август",null,2021]
[null,"коэф","Ф. И. О.","р/р",2,3,4,5,6,9,10,11,12,13,16,17,18,19,20,23,24,25,26,27,30,31]
[null,null,"работник3","2/4",null,null,null,null,2.8,null,null,null,null,null,null,null,null,null,null,null,null,null,null,null,null,null,{"$f":"SUM(E36:Z36)","v":2.8}]
[null,null,"работник7",null,null,null,null,null,null,null,null,null,null,null,null,null,7.2,null,null,null,null,null,null,null,null,null,{"$f":"SUM(E37:Z37)","v":7.2}]
[]
[null,null,"работник7","3/4",3.2,null,null,null,null,null,null,null,null,null,null,null,null,null,null,null,null,null,null,null,null,null,{"$f":"SUM(E39:Z39)","v":3.2}]
[null,null,"работник12",null,4,4,4,4,null,null,null,null,null,7,null,null,null,null,null,null,null,null,null,null,null,null,{"$f":"SUM(E40:Z40)","v":23}]
[null,null,"работник2",null,null,null,null,null,null,4.2,null,null,null,null,null,null,2.2000000000000002,null,7.2,null,7.2,null,3.6,null,null,null,{"$f":"SUM(E41:Z41)","v":24.400000000000002}]
[null,null,"работник13",null,null,null,null,null,null,null,null,null,null,null,null,1.2,null,null,null,null,null,null,null,null,null,null,1.2]
[]
[null,null,"работник2","3/16",null,null,null,null,null,null,null,null,null,null,null,null,null,null,null,1.8,null,null,3.6,7.2,null,null,12.600000000000001]
[null,null,"работник1",null,null,null,null,null,null,null,null,null,null,null,null,4.7,6.7,2,null,null,3,null,null,5.7,6.7,6.7,35.5]
[null,null,"работник10",null,7.2,7.2,7.2,null,null,null,null,null,null,null,null,7.2,7.2,null,null,null,null,null,null,null,null,null,36]
[null,null,"работник11",null,null,7.2,null,7.2,7.2,null,null,null,null,null,7.2,7.2,null,null,null,null,7.2,7.2,null,null,null,null,50.400000000000006]
[null,null,"работник9",null,null,null,null,null,null,null,null,7.2,7.2,7.2,7.2,7.2,7.2,7.2,7.2,null,null,null,null,null,null,null,57.600000000000009]
[null,null,"работник3",null,4,null,null,null,null,null,null,null,null,null,null,null,null,null,null,null,null,null,null,null,null,null,4]
[null,null,"работник12",null,3,3,3,3,null,null,3,3,null,null,null,null,null,null,null,null,null,null,null,null,null,null,18]
[null,null,"работник5",null,null,null,null,null,null,null,2.2000000000000002,null,2.2000000000000002,null,4.2,null,null,null,3.2,null,null,null,null,null,null,null,11.8]
[null,null,"работник13",null,null,null,null,null,null,null,null,null,null,7.2,7.2,6,null,null,null,null,null,null,null,null,null,null,20.399999999999999]
[null,null,"работник14",null,null,null,null,null,null,null,null,null,null,null,null,null,null,6.7,6.7,null,null,null,null,null,null,null,13.4]
[null,null,"работник15",null,7.2,null,null,null,null,null,null,null,null,null,null,null,null,null,null,null,null,null,null,null,null,null,7.2]
[null,null,"работник6",null,null,7.2,null,7.2,2,null,null,null,null,null,null,null,2,null,null,null,null,null,null,null,null,null,18.399999999999999]
[null,null,"работник4",null,null,null,null,null,null,null,null,null,null,null,null,null,null,null,null,null,null,null,null,null,7.2,7.2,14.4]
[]
[null,1.5,"работник7","4/8",4,7.2,7.2,7.2,7.2,null,null,null,null,null,null,null,null,7.2,7.2,null,null,null,null,null,null,null,47.2]
[]
[null,1.1000000000000001,"работник5","3/16",null,null,null,null,null,4.2,null,4.2,null,null,null,null,null,null,null,null,null,null,null,null,null,null,8.4]
[null,1.1000000000000001,"работник2",null,null,null,5.2,null,null,null,null,null,null,null,null,null,null,null,null,null,null,7.2,null,null,null,null,12.4]
[null,1.1000000000000001,"работник11",null,7.2,null,7.2,null,null,null,null,null,null,null,null,null,null,null,null,null,null,null,null,null,null,null,14.4]
[null,null,null,null,{"$f":"SUM(E36:E62)","v":39.799999999999997},{"$f":"SUM(F36:F62)","v":35.799999999999997},33.799999999999997,28.599999999999998,19.2,8.4,5.2,14.399999999999999,9.4,21.4,25.8,33.5,32.5,23.099999999999998,31.5,1.8,17.399999999999999,14.4,7.2,12.9,13.9,13.9,{"$f":"SUM(AA36:AA62)","v":443.89999999999986}]

{"sheet":"Data_Tech","index":1,"n_rows":39,"n_cols":31,"rows_kept":39,"cut":false,"hidden":false,"merged":[]}
["месяц","год","изд","партия","коэф","Ф. И. О.","р/р","2","3","4","5","6","7","8","9","10","11","12","13","16","17","18","19","20","23","24","25","26","27","30","31"]
["Январь",2021,1,"1-21",1,"работник1","3/16",null,"7,2"]
["Январь",2021,2,"1-21",1.5,"работник2","3/16",5]
["Январь",2021,1,"4-21",1,"работник3","2/4","5,2"]
["Январь",2021,1,"1-21",1.1000000000000001,"работник3","3/16","6,7"]
["Январь",2021,2,"1-21",1,"работник4","3/16",null,null,null,null,null,null,null,null,"7,2"]
["Январь",2021,2,"1-21",1,"работник4","3/4",null,null,null,"7,2"]
["Январь",2021,1,"1-21",1,"работник8","3/4",null,null,null,null,null,null,null,null,null,null,null,null,null,null,null,7]
["Январь",2021,1,"1-21",1,"работник3","2/4",null,null,null,null,2.8]
["Январь",2021,2,"1-21",1,"работник7","2/4",null,null,null,null,null,null,null,null,null,null,null,null,null,null,7.2]
["Январь",2022,3,"1-22",1,"работник7","3/4",3.2]
["Январь",2021,1,"1-21",1,"работник12","3/4",4,4,4,4,null,null,null,null,null,null,null,7]
["Январь",2021,1,"1-21",1,"работник2","3/4",null,null,null,null,null,null,null,4.2,null,null,null,null,null,null,2.2000000000000002,null,7.2,null,7.2,null,3.6]
["Ноябрь",2021,1,"1-21",1,"работник13","3/4",null,null,null,null,null,null,null,null,null,null,null,null,null,1.2]
["Январь",2021,1,"1-21",1,"работник2","3/16",null,null,null,null,null,null,null,null,null,null,null,null,null,null,null,null,null,1.8,null,null,3.6,7.2]
["Январь",2021,1,"1-21",1,"работник1","3/16",null,null,null,null,null,null,null,null,null,null,null,null,null,4.7,6.7,2,null,null,3,null,null,5.7,6.7,6.7]
["Январь",2021,1,"1-21",1,"работник10","3/16",7.2,7.2,7.2,null,null,null,null,null,null,null,null,null,null,7.2,7.2]
["Январь",2021,1,"1-21",1,"работник11","3/16",null,7.2,null,7.2,7.2,null,null,null,null,null,null,null,7.2,7.2,null,null,null,null,7.2,7.2]
["Январь",2021,1,"1-21",1,"работник9","3/16",null,null,null,null,null,null,null,null,null,7.2,7.2,7.2,7.2,7.2,7.2,7.2,7.2]
["Январь",2022,2,"1-22",1.1000000000000001,"работник3","3/16",4]
["Январь",2022,2,"1-22",1.5,"работник12","3/16",3,3,3,3,null,null,null,null,3,3]
["Январь",2022,2,"1-22",1,"работник5","3/16",null,null,null,null,null,null,null,null,2.2000000000000002,null,2.2000000000000002,null,4.2,null,null,null,3.2]
["Январь",2022,3,"1-22",1,"работник13","3/16",null,null,null,null,null,null,null,null,null,null,null,7.2,7.2,6]
["Январь",2022,2,"1-22",1,"работник14","3/16",null,null,null,null,null,null,null,null,null,null,null,null,null,null,null,6.7,6.7]
["Январь",2021,2,"1-21",1,"работник15","3/16",7.2]
["Январь",2021,2,"1-21",1,"работник6","3/16",null,7.2,null,7.2,2,null,null,null,null,null,null,null,null,null,2]
["Январь",2021,2,"1-21",1,"работник4","3/4",null,null,null,null,null,null,null,null,null,null,null,null,null,null,null,null,null,null,null,null,null,null,7.2,7.2]
["Январь",2021,2,"1-21",1.5,"работник7","4/8",4,7.2,7.2,7.2,7.2,null,null,null,null,null,null,null,null,null,null,7.2,7.2]
["Январь",2021,2,"1-21",1.1000000000000001,"работник5","3/16",null,null,null,null,null,null,null,4.2,null,4.2]
["Январь",2021,1,"1-21",1.1000000000000001,"работник2","3/16",null,null,5.2,null,null,null,null,null,null,null,null,null,null,null,null,null,null,null,null,7.2]
["Январь",2022,2,"1-22",1.1000000000000001,"работник11","3/16",7.2,null,7.2]
["Январь",2021,5,"4-21",5,"работник1","3/16",null,null,null,5]
["Январь",2021,6,"4-21",6,"работник1","3/16",null,null,null,null,6]
["Январь",2021,3,"1-22",1.1000000000000001,"работник15","3/16",null,null,null,null,null,null,null,null,null,null,null,null,null,null,null,null,null,null,null,null,null,null,"3,4"]
["Январь",2022,3,"1-22",1,"работник10","3/16",null,null,null,null,null,null,null,null,null,null,null,null,null,null,5]
["Январь",2021,3,"33-21",1,"работник1","3/16",null,null,14,14,14,14,14,14,14]
["Январь",2021,3,"33-21",1,"работник1","3/16",null,8]
["Январь",2021,3,"33-21",1,"работник1","3/16",null,null,8]
["Февраль",2021,3,"4-21",1,"работник3","3/16"]

{"sheet":"Лист1","index":2,"n_rows":20,"n_cols":26,"rows_kept":20,"cut":false,"hidden":false,"merged":[[0,6,0,11]]}
[null,null,null,null,null,null,"технологическая карта",null,null,null,null,null,null,"изд",1,null,null,"партия","1-21"]
[null,null,null,null,null,null,null,null,null,"Январь",null,2021]
[null,"коэф","Ф. И. О.","р/р",2,3,4,5,6,9,10,11,12,13,16,17,18,19,20,23,24,25,26,27,30,31]
[null,{"$f":"IFERROR(INDEX(Таблица1[коэф],_xlfn.AGGREGATE(15,6,(ROW(Таблица1[коэф])-ROW(Таблица1[[#Headers],[коэф]]))/(Таблица1[[месяц]:[месяц]]=$J$2)/(Таблица1[[год]:[год]]=$L$2)/(Таблица1[[изд]:[изд]]=$O$1)/(Таблица1[[партия]:[партия]]=$S$1),ROW(A1))),\"\")","v":1},{"$f":"IFERROR(INDEX(Таблица1[Ф. И. О.],_xlfn.AGGREGATE(15,6,(ROW(Таблица1[Ф. И. О.])-ROW(Таблица1[[#Headers],[Ф. И. О.]]))/(Таблица1[[месяц]:[месяц]]=$J$2)/(Таблица1[[год]:[год]]=$L$2)/(Таблица1[[изд]:[изд]]=$O$1)/(Таблица1[[партия]:[партия]]=$S$1),ROW(B1))),\"\")","v":"работник1"},{"$f":"IFERROR(INDEX(Таблица1[р/р],_xlfn.AGGREGATE(15,6,(ROW(Таблица1[р/р])-ROW(Таблица1[[#Headers],[р/р]]))/(Таблица1[[месяц]:[месяц]]=$J$2)/(Таблица1[[год]:[год]]=$L$2)/(Таблица1[[изд]:[изд]]=$O$1)/(Таблица1[[партия]:[партия]]=$S$1),ROW(C1))),\"\")","v":"3/16"},{"$f":"IFERROR(INDEX(Таблица1[2],_xlfn.AGGREGATE(15,6,(ROW(Таблица1[2])-ROW(Таблица1[[#Headers],[2]]))/(Таблица1[[месяц]:[месяц]]=$J$2)/(Таблица1[[год]:[год]]=$L$2)/(Таблица1[[изд]:[изд]]=$O$1)/(Таблица1[[партия]:[партия]]=$S$1),ROW(D1))),\"\")","v":0},{"$f":"IFERROR(INDEX(Таблица1[3],_xlfn.AGGREGATE(15,6,(ROW(Таблица1[3])-ROW(Таблица1[[#Headers],[3]]))/(Таблица1[[месяц]:[месяц]]=$J$2)/(Таблица1[[год]:[год]]=$L$2)/(Таблица1[[изд]:[изд]]=$O$1)/(Таблица1[[партия]:[партия]]=$S$1),ROW(E1))),\"\")","v":"7,2"},{"$f":"IFERROR(INDEX(Таблица1[4],_xlfn.AGGREGATE(15,6,(ROW(Таблица1[4])-ROW(Таблица1[[#Headers],[4]]))/(Таблица1[[месяц]:[месяц]]=$J$2)/(Таблица1[[год]:[год]]=$L$2)/(Таблица1[[изд]:[изд]]=$O$1)/(Таблица1[[партия]:[партия]]=$S$1),ROW(F1))),\"\")","v":0},{"$f":"IFERROR(INDEX(Таблица1[5],_xlfn.AGGREGATE(15,6,(ROW(Таблица1[5])-ROW(Таблица1[[#Headers],[5]]))/(Таблица1[[месяц]:[месяц]]=$J$2)/(Таблица1[[год]:[год]]=$L$2)/(Таблица1[[изд]:[изд]]=$O$1)/(Таблица1[[партия]:[партия]]=$S$1),ROW(G1))),\"\")","v":0},{"$f":"IFERROR(INDEX(Таблица1[6],_xlfn.AGGREGATE(15,6,(ROW(Таблица1[6])-ROW(Таблица1[[#Headers],[6]]))/(Таблица1[[месяц]:[месяц]]=$J$2)/(Таблица1[[год]:[год]]=$L$2)/(Таблица1[[изд]:[изд]]=$O$1)/(Таблица1[[партия]:[партия]]=$S$1),ROW(H1))),\"\")","v":0},{"$f":"IFERROR(INDEX(Таблица1[9],_xlfn.AGGREGATE(15,6,(ROW(Таблица1[9])-ROW(Таблица1[[#Headers],[9]]))/(Таблица1[[месяц]:[месяц]]=$J$2)/(Таблица1[[год]:[год]]=$L$2)/(Таблица1[[изд]:[изд]]=$O$1)/(Таблица1[[партия]:[партия]]=$S$1),ROW(I1))),\"\")","v":0},{"$f":"IFERROR(INDEX(Таблица1[10],_xlfn.AGGREGATE(15,6,(ROW(Таблица1[10])-ROW(Таблица1[[#Headers],[10]]))/(Таблица1[[месяц]:[месяц]]=$J$2)/(Таблица1[[год]:[год]]=$L$2)/(Таблица1[[изд]:[изд]]=$O$1)/(Таблица1[[партия]:[партия]]=$S$1),ROW(J1))),\"\")","v":0},{"$f":"IFERROR(INDEX(Таблица1[11],_xlfn.AGGREGATE(15,6,(ROW(Таблица1[11])-ROW(Таблица1[[#Headers],[11]]))/(Таблица1[[месяц]:[месяц]]=$J$2)/(Таблица1[[год]:[год]]=$L$2)/(Таблица1[[изд]:[изд]]=$O$1)/(Таблица1[[партия]:[партия]]=$S$1),ROW(K1))),\"\")","v":0},{"$f":"IFERROR(INDEX(Таблица1[12],_xlfn.AGGREGATE(15,6,(ROW(Таблица1[12])-ROW(Таблица1[[#Headers],[12]]))/(Таблица1[[месяц]:[месяц]]=$J$2)/(Таблица1[[год]:[год]]=$L$2)/(Таблица1[[изд]:[изд]]=$O$1)/(Таблица1[[партия]:[партия]]=$S$1),ROW(L1))),\"\")","v":0},{"$f":"IFERROR(INDEX(Таблица1[13],_xlfn.AGGREGATE(15,6,(ROW(Таблица1[13])-ROW(Таблица1[[#Headers],[13]]))/(Таблица1[[месяц]:[месяц]]=$J$2)/(Таблица1[[год]:[год]]=$L$2)/(Таблица1[[изд]:[изд]]=$O$1)/(Таблица1[[партия]:[партия]]=$S$1),ROW(M1))),\"\")","v":0},{"$f":"IFERROR(INDEX(Таблица1[16],_xlfn.AGGREGATE(15,6,(ROW(Таблица1[16])-ROW(Таблица1[[#Headers],[16]]))/(Таблица1[[месяц]:[месяц]]=$J$2)/(Таблица1[[год]:[год]]=$L$2)/(Таблица1[[изд]:[изд]]=$O$1)/(Таблица1[[партия]:[партия]]=$S$1),ROW(N1))),\"\")","v":0},{"$f":"IFERROR(INDEX(Таблица1[17],_xlfn.AGGREGATE(15,6,(ROW(Таблица1[17])-ROW(Таблица1[[#Headers],[17]]))/(Таблица1[[месяц]:[месяц]]=$J$2)/(Таблица1[[год]:[год]]=$L$2)/(Таблица1[[изд]:[изд]]=$O$1)/(Таблица1[[партия]:[партия]]=$S$1),ROW(O1))),\"\")","v":0},{"$f":"IFERROR(INDEX(Таблица1[18],_xlfn.AGGREGATE(15,6,(ROW(Таблица1[18])-ROW(Таблица1[[#Headers],[18]]))/(Таблица1[[месяц]:[месяц]]=$J$2)/(Таблица1[[год]:[год]]=$L$2)/(Таблица1[[изд]:[изд]]=$O$1)/(Таблица1[[партия]:[партия]]=$S$1),ROW(P1))),\"\")","v":0},{"$f":"IFERROR(INDEX(Таблица1[19],_xlfn.AGGREGATE(15,6,(ROW(Таблица1[19])-ROW(Таблица1[[#Headers],[19]]))/(Таблица1[[месяц]:[месяц]]=$J$2)/(Таблица1[[год]:[год]]=$L$2)/(Таблица1[[изд]:[изд]]=$O$1)/(Таблица1[[партия]:[партия]]=$S$1),ROW(Q1))),\"\")","v":0},{"$f":"IFERROR(INDEX(Таблица1[20],_xlfn.AGGREGATE(15,6,(ROW(Таблица1[20])-ROW(Таблица1[[#Headers],[20]]))/(Таблица1[[месяц]:[месяц]]=$J$2)/(Таблица1[[год]:[год]]=$L$2)/(Таблица1[[изд]:[изд]]=$O$1)/(Таблица1[[партия]:[партия]]=$S$1),ROW(R1))),\"\")","v":0},{"$f":"IFERROR(INDEX(Таблица1[23],_xlfn.AGGREGATE(15,6,(ROW(Таблица1[23])-ROW(Таблица1[[#Headers],[23]]))/(Таблица1[[месяц]:[месяц]]=$J$2)/(Таблица1[[год]:[год]]=$L$2)/(Таблица1[[изд]:[изд]]=$O$1)/(Таблица1[[партия]:[партия]]=$S$1),ROW(S1))),\"\")","v":0},{"$f":"IFERROR(INDEX(Таблица1[24],_xlfn.AGGREGATE(15,6,(ROW(Таблица1[24])-ROW(Таблица1[[#Headers],[24]]))/(Таблица1[[месяц]:[месяц]]=$J$2)/(Таблица1[[год]:[год]]=$L$2)/(Таблица1[[изд]:[изд]]=$O$1)/(Таблица1[[партия]:[партия]]=$S$1),ROW(T1))),\"\")","v":0},{"$f":"IFERROR(INDEX(Таблица1[25],_xlfn.AGGREGATE(15,6,(ROW(Таблица1[25])-ROW(Таблица1[[#Headers],[25]]))/(Таблица1[[месяц]:[месяц]]=$J$2)/(Таблица1[[год]:[год]]=$L$2)/(Таблица1[[изд]:[изд]]=$O$1)/(Таблица1[[партия]:[партия]]=$S$1),ROW(U1))),\"\")","v":0},{"$f":"IFERROR(INDEX(Таблица1[26],_xlfn.AGGREGATE(15,6,(ROW(Таблица1[26])-ROW(Таблица1[[#Headers],[26]]))/(Таблица1[[месяц]:[месяц]]=$J$2)/(Таблица1[[год]:[год]]=$L$2)/(Таблица1[[изд]:[изд]]=$O$1)/(Таблица1[[партия]:[партия]]=$S$1),ROW(V1))),\"\")","v":0},{"$f":"IFERROR(INDEX(Таблица1[27],_xlfn.AGGREGATE(15,6,(ROW(Таблица1[27])-ROW(Таблица1[[#Headers],[27]]))/(Таблица1[[месяц]:[месяц]]=$J$2)/(Таблица1[[год]:[год]]=$L$2)/(Таблица1[[изд]:[изд]]=$O$1)/(Таблица1[[партия]:[партия]]=$S$1),ROW(W1))),\"\")","v":0},{"$f":"IFERROR(INDEX(Таблица1[30],_xlfn.AGGREGATE(15,6,(ROW(Таблица1[30])-ROW(Таблица1[[#Headers],[30]]))/(Таблица1[[месяц]:[месяц]]=$J$2)/(Таблица1[[год]:[год]]=$L$2)/(Таблица1[[изд]:[изд]]=$O$1)/(Таблица1[[партия]:[партия]]=$S$1),ROW(X1))),\"\")","v":0},{"$f":"IFERROR(INDEX(Таблица1[31],_xlfn.AGGREGATE(15,6,(ROW(Таблица1[31])-ROW(Таблица1[[#Headers],[31]]))/(Таблица1[[месяц]:[месяц]]=$J$2)/(Таблица1[[год]:[год]]=$L$2)/(Таблица1[[изд]:[изд]]=$O$1)/(Таблица1[[партия]:[партия]]=$S$1),ROW(Y1))),\"\")","v":0}]
[null,{"$f":"IFERROR(INDEX(Таблица1[коэф],_xlfn.AGGREGATE(15,6,(ROW(Таблица1[коэф])-ROW(Таблица1[[#Headers],[коэф]]))/(Таблица1[[месяц]:[месяц]]=$J$2)/(Таблица1[[год]:[год]]=$L$2)/(Таблица1[[изд]:[изд]]=$O$1)/(Таблица1[[партия]:[партия]]=$S$1),ROW(A2))),\"\")","v":1.1000000000000001},{"$f":"IFERROR(INDEX(Таблица1[Ф. И. О.],_xlfn.AGGREGATE(15,6,(ROW(Таблица1[Ф. И. О.])-ROW(Таблица1[[#Headers],[Ф. И. О.]]))/(Таблица1[[месяц]:[месяц]]=$J$2)/(Таблица1[[год]:[год]]=$L$2)/(Таблица1[[изд]:[изд]]=$O$1)/(Таблица1[[партия]:[партия]]=$S$1),ROW(B2))),\"\")","v":"работник3"},{"$f":"IFERROR(INDEX(Таблица1[р/р],_xlfn.AGGREGATE(15,6,(ROW(Таблица1[р/р])-ROW(Таблица1[[#Headers],[р/р]]))/(Таблица1[[месяц]:[месяц]]=$J$2)/(Таблица1[[год]:[год]]=$L$2)/(Таблица1[[изд]:[изд]]=$O$1)/(Таблица1[[партия]:[партия]]=$S$1),ROW(C2))),\"\")","v":"3/16"},{"$f":"IFERROR(INDEX(Таблица1[2],_xlfn.AGGREGATE(15,6,(ROW(Таблица1[2])-ROW(Таблица1[[#Headers],[2]]))/(Таблица1[[месяц]:[месяц]]=$J$2)/(Таблица1[[год]:[год]]=$L$2)/(Таблица1[[изд]:[изд]]=$O$1)/(Таблица1[[партия]:[партия]]=$S$1),ROW(D2))),\"\")","v":"6,7"},{"$f":"IFERROR(INDEX(Таблица1[3],_xlfn.AGGREGATE(15,6,(ROW(Таблица1[3])-ROW(Таблица1[[#Headers],[3]]))/(Таблица1[[месяц]:[месяц]]=$J$2)/(Таблица1[[год]:[год]]=$L$2)/(Таблица1[[изд]:[изд]]=$O$1)/(Таблица1[[партия]:[партия]]=$S$1),ROW(E2))),\"\")","v":0},{"$f":"IFERROR(INDEX(Таблица1[4],_xlfn.AGGREGATE(15,6,(ROW(Таблица1[4])-ROW(Таблица1[[#Headers],[4]]))/(Таблица1[[месяц]:[месяц]]=$J$2)/(Таблица1[[год]:[год]]=$L$2)/(Таблица1[[изд]:[изд]]=$O$1)/(Таблица1[[партия]:[партия]]=$S$1),ROW(F2))),\"\")","v":0},{"$f":"IFERROR(INDEX(Таблица1[5],_xlfn.AGGREGATE(15,6,(ROW(Таблица1[5])-ROW(Таблица1[[#Headers],[5]]))/(Таблица1[[месяц]:[месяц]]=$J$2)/(Таблица1[[год]:[год]]=$L$2)/(Таблица1[[изд]:[изд]]=$O$1)/(Таблица1[[партия]:[партия]]=$S$1),ROW(G2))),\"\")","v":0},{"$f":"IFERROR(INDEX(Таблица1[6],_xlfn.AGGREGATE(15,6,(ROW(Таблица1[6])-ROW(Таблица1[[#Headers],[6]]))/(Таблица1[[месяц]:[месяц]]=$J$2)/(Таблица1[[год]:[год]]=$L$2)/(Таблица1[[изд]:[изд]]=$O$1)/(Таблица1[[партия]:[партия]]=$S$1),ROW(H2))),\"\")","v":0},{"$f":"IFERROR(INDEX(Таблица1[9],_xlfn.AGGREGATE(15,6,(ROW(Таблица1[9])-ROW(Таблица1[[#Headers],[9]]))/(Таблица1[[месяц]:[месяц]]=$J$2)/(Таблица1[[год]:[год]]=$L$2)/(Таблица1[[изд]:[изд]]=$O$1)/(Таблица1[[партия]:[партия]]=$S$1),ROW(I2))),\"\")","v":0},{"$f":"IFERROR(INDEX(Таблица1[10],_xlfn.AGGREGATE(15,6,(ROW(Таблица1[10])-ROW(Таблица1[[#Headers],[10]]))/(Таблица1[[месяц]:[месяц]]=$J$2)/(Таблица1[[год]:[год]]=$L$2)/(Таблица1[[изд]:[изд]]=$O$1)/(Таблица1[[партия]:[партия]]=$S$1),ROW(J2))),\"\")","v":0},{"$f":"IFERROR(INDEX(Таблица1[11],_xlfn.AGGREGATE(15,6,(ROW(Таблица1[11])-ROW(Таблица1[[#Headers],[11]]))/(Таблица1[[месяц]:[месяц]]=$J$2)/(Таблица1[[год]:[год]]=$L$2)/(Таблица1[[изд]:[изд]]=$O$1)/(Таблица1[[партия]:[партия]]=$S$1),ROW(K2))),\"\")","v":0},{"$f":"IFERROR(INDEX(Таблица1[12],_xlfn.AGGREGATE(15,6,(ROW(Таблица1[12])-ROW(Таблица1[[#Headers],[12]]))/(Таблица1[[месяц]:[месяц]]=$J$2)/(Таблица1[[год]:[год]]=$L$2)/(Таблица1[[изд]:[изд]]=$O$1)/(Таблица1[[партия]:[партия]]=$S$1),ROW(L2))),\"\")","v":0},{"$f":"IFERROR(INDEX(Таблица1[13],_xlfn.AGGREGATE(15,6,(ROW(Таблица1[13])-ROW(Таблица1[[#Headers],[13]]))/(Таблица1[[месяц]:[месяц]]=$J$2)/(Таблица1[[год]:[год]]=$L$2)/(Таблица1[[изд]:[изд]]=$O$1)/(Таблица1[[партия]:[партия]]=$S$1),ROW(M2))),\"\")","v":0},{"$f":"IFERROR(INDEX(Таблица1[16],_xlfn.AGGREGATE(15,6,(ROW(Таблица1[16])-ROW(Таблица1[[#Headers],[16]]))/(Таблица1[[месяц]:[месяц]]=$J$2)/(Таблица1[[год]:[год]]=$L$2)/(Таблица1[[изд]:[изд]]=$O$1)/(Таблица1[[партия]:[партия]]=$S$1),ROW(N2))),\"\")","v":0},{"$f":"IFERROR(INDEX(Таблица1[17],_xlfn.AGGREGATE(15,6,(ROW(Таблица1[17])-ROW(Таблица1[[#Headers],[17]]))/(Таблица1[[месяц]:[месяц]]=$J$2)/(Таблица1[[год]:[год]]=$L$2)/(Таблица1[[изд]:[изд]]=$O$1)/(Таблица1[[партия]:[партия]]=$S$1),ROW(O2))),\"\")","v":0},{"$f":"IFERROR(INDEX(Таблица1[18],_xlfn.AGGREGATE(15,6,(ROW(Таблица1[18])-ROW(Таблица1[[#Headers],[18]]))/(Таблица1[[месяц]:[месяц]]=$J$2)/(Таблица1[[год]:[год]]=$L$2)/(Таблица1[[изд]:[изд]]=$O$1)/(Таблица1[[партия]:[партия]]=$S$1),ROW(P2))),\"\")","v":0},{"$f":"IFERROR(INDEX(Таблица1[19],_xlfn.AGGREGATE(15,6,(ROW(Таблица1[19])-ROW(Таблица1[[#Headers],[19]]))/(Таблица1[[месяц]:[месяц]]=$J$2)/(Таблица1[[год]:[год]]=$L$2)/(Таблица1[[изд]:[изд]]=$O$1)/(Таблица1[[партия]:[партия]]=$S$1),ROW(Q2))),\"\")","v":0},{"$f":"IFERROR(INDEX(Таблица1[20],_xlfn.AGGREGATE(15,6,(ROW(Таблица1[20])-ROW(Таблица1[[#Headers],[20]]))/(Таблица1[[месяц]:[месяц]]=$J$2)/(Таблица1[[год]:[год]]=$L$2)/(Таблица1[[изд]:[изд]]=$O$1)/(Таблица1[[партия]:[партия]]=$S$1),ROW(R2))),\"\")","v":0},{"$f":"IFERROR(INDEX(Таблица1[23],_xlfn.AGGREGATE(15,6,(ROW(Таблица1[23])-ROW(Таблица1[[#Headers],[23]]))/(Таблица1[[месяц]:[месяц]]=$J$2)/(Таблица1[[год]:[год]]=$L$2)/(Таблица1[[изд]:[изд]]=$O$1)/(Таблица1[[партия]:[партия]]=$S$1),ROW(S2))),\"\")","v":0},{"$f":"IFERROR(INDEX(Таблица1[24],_xlfn.AGGREGATE(15,6,(ROW(Таблица1[24])-ROW(Таблица1[[#Headers],[24]]))/(Таблица1[[месяц]:[месяц]]=$J$2)/(Таблица1[[год]:[год]]=$L$2)/(Таблица1[[изд]:[изд]]=$O$1)/(Таблица1[[партия]:[партия]]=$S$1),ROW(T2))),\"\")","v":0},{"$f":"IFERROR(INDEX(Таблица1[25],_xlfn.AGGREGATE(15,6,(ROW(Таблица1[25])-ROW(Таблица1[[#Headers],[25]]))/(Таблица1[[месяц]:[месяц]]=$J$2)/(Таблица1[[год]:[год]]=$L$2)/(Таблица1[[изд]:[изд]]=$O$1)/(Таблица1[[партия]:[партия]]=$S$1),ROW(U2))),\"\")","v":0},{"$f":"IFERROR(INDEX(Таблица1[26],_xlfn.AGGREGATE(15,6,(ROW(Таблица1[26])-ROW(Таблица1[[#Headers],[26]]))/(Таблица1[[месяц]:[месяц]]=$J$2)/(Таблица1[[год]:[год]]=$L$2)/(Таблица1[[изд]:[изд]]=$O$1)/(Таблица1[[партия]:[партия]]=$S$1),ROW(V2))),\"\")","v":0},{"$f":"IFERROR(INDEX(Таблица1[27],_xlfn.AGGREGATE(15,6,(ROW(Таблица1[27])-ROW(Таблица1[[#Headers],[27]]))/(Таблица1[[месяц]:[месяц]]=$J$2)/(Таблица1[[год]:[год]]=$L$2)/(Таблица1[[изд]:[изд]]=$O$1)/(Таблица1[[партия]:[партия]]=$S$1),ROW(W2))),\"\")","v":0},{"$f":"IFERROR(INDEX(Таблица1[30],_xlfn.AGGREGATE(15,6,(ROW(Таблица1[30])-ROW(Таблица1[[#Headers],[30]]))/(Таблица1[[месяц]:[месяц]]=$J$2)/(Таблица1[[год]:[год]]=$L$2)/(Таблица1[[изд]:[изд]]=$O$1)/(Таблица1[[партия]:[партия]]=$S$1),ROW(X2))),\"\")","v":0},{"$f":"IFERROR(INDEX(Таблица1[31],_xlfn.AGGREGATE(15,6,(ROW(Таблица1[31])-ROW(Таблица1[[#Headers],[31]]))/(Таблица1[[месяц]:[месяц]]=$J$2)/(Таблица1[[год]:[год]]=$L$2)/(Таблица1[[изд]:[изд]]=$O$1)/(Таблица1[[партия]:[партия]]=$S$1),ROW(Y2))),\"\")","v":0}]
[null,{"$f":"IFERROR(INDEX(Таблица1[коэф],_xlfn.AGGREGATE(15,6,(ROW(Таблица1[коэф])-ROW(Таблица1[[#Headers],[коэф]]))/(Таблица1[[месяц]:[месяц]]=$J$2)/(Таблица1[[год]:[год]]=$L$2)/(Таблица1[[изд]:[изд]]=$O$1)/(Таблица1[[партия]:[партия]]=$S$1),ROW(A3))),\"\")","v":1},{"$f":"IFERROR(INDEX(Таблица1[Ф. И. О.],_xlfn.AGGREGATE(15,6,(ROW(Таблица1[Ф. И. О.])-ROW(Таблица1[[#Headers],[Ф. И. О.]]))/(Таблица1[[месяц]:[месяц]]=$J$2)/(Таблица1[[год]:[год]]=$L$2)/(Таблица1[[изд]:[изд]]=$O$1)/(Таблица1[[партия]:[партия]]=$S$1),ROW(B3))),\"\")","v":"работник8"},{"$f":"IFERROR(INDEX(Таблица1[р/р],_xlfn.AGGREGATE(15,6,(ROW(Таблица1[р/р])-ROW(Таблица1[[#Headers],[р/р]]))/(Таблица1[[месяц]:[месяц]]=$J$2)/(Таблица1[[год]:[год]]=$L$2)/(Таблица1[[изд]:[изд]]=$O$1)/(Таблица1[[партия]:[партия]]=$S$1),ROW(C3))),\"\")","v":"3/4"},{"$f":"IFERROR(INDEX(Таблица1[2],_xlfn.AGGREGATE(15,6,(ROW(Таблица1[2])-ROW(Таблица1[[#Headers],[2]]))/(Таблица1[[месяц]:[месяц]]=$J$2)/(Таблица1[[год]:[год]]=$L$2)/(Таблица1[[изд]:[изд]]=$O$1)/(Таблица1[[партия]:[партия]]=$S$1),ROW(D3))),\"\")","v":0},{"$f":"IFERROR(INDEX(Таблица1[3],_xlfn.AGGREGATE(15,6,(ROW(Таблица1[3])-ROW(Таблица1[[#Headers],[3]]))/(Таблица1[[месяц]:[месяц]]=$J$2)/(Таблица1[[год]:[год]]=$L$2)/(Таблица1[[изд]:[изд]]=$O$1)/(Таблица1[[партия]:[партия]]=$S$1),ROW(E3))),\"\")","v":0},{"$f":"IFERROR(INDEX(Таблица1[4],_xlfn.AGGREGATE(15,6,(ROW(Таблица1[4])-ROW(Таблица1[[#Headers],[4]]))/(Таблица1[[месяц]:[месяц]]=$J$2)/(Таблица1[[год]:[год]]=$L$2)/(Таблица1[[изд]:[изд]]=$O$1)/(Таблица1[[партия]:[партия]]=$S$1),ROW(F3))),\"\")","v":0},{"$f":"IFERROR(INDEX(Таблица1[5],_xlfn.AGGREGATE(15,6,(ROW(Таблица1[5])-ROW(Таблица1[[#Headers],[5]]))/(Таблица1[[месяц]:[месяц]]=$J$2)/(Таблица1[[год]:[год]]=$L$2)/(Таблица1[[изд]:[изд]]=$O$1)/(Таблица1[[партия]:[партия]]=$S$1),ROW(G3))),\"\")","v":0},{"$f":"IFERROR(INDEX(Таблица1[6],_xlfn.AGGREGATE(15,6,(ROW(Таблица1[6])-ROW(Таблица1[[#Headers],[6]]))/(Таблица1[[месяц]:[месяц]]=$J$2)/(Таблица1[[год]:[год]]=$L$2)/(Таблица1[[изд]:[изд]]=$O$1)/(Таблица1[[партия]:[партия]]=$S$1),ROW(H3))),\"\")","v":0},{"$f":"IFERROR(INDEX(Таблица1[9],_xlfn.AGGREGATE(15,6,(ROW(Таблица1[9])-ROW(Таблица1[[#Headers],[9]]))/(Таблица1[[месяц]:[месяц]]=$J$2)/(Таблица1[[год]:[год]]=$L$2)/(Таблица1[[изд]:[изд]]=$O$1)/(Таблица1[[партия]:[партия]]=$S$1),ROW(I3))),\"\")","v":0},{"$f":"IFERROR(INDEX(Таблица1[10],_xlfn.AGGREGATE(15,6,(ROW(Таблица1[10])-ROW(Таблица1[[#Headers],[10]]))/(Таблица1[[месяц]:[месяц]]=$J$2)/(Таблица1[[год]:[год]]=$L$2)/(Таблица1[[изд]:[изд]]=$O$1)/(Таблица1[[партия]:[партия]]=$S$1),ROW(J3))),\"\")","v":0},{"$f":"IFERROR(INDEX(Таблица1[11],_xlfn.AGGREGATE(15,6,(ROW(Таблица1[11])-ROW(Таблица1[[#Headers],[11]]))/(Таблица1[[месяц]:[месяц]]=$J$2)/(Таблица1[[год]:[год]]=$L$2)/(Таблица1[[изд]:[изд]]=$O$1)/(Таблица1[[партия]:[партия]]=$S$1),ROW(K3))),\"\")","v":0},{"$f":"IFERROR(INDEX(Таблица1[12],_xlfn.AGGREGATE(15,6,(ROW(Таблица1[12])-ROW(Таблица1[[#Headers],[12]]))/(Таблица1[[месяц]:[месяц]]=$J$2)/(Таблица1[[год]:[год]]=$L$2)/(Таблица1[[изд]:[изд]]=$O$1)/(Таблица1[[партия]:[партия]]=$S$1),ROW(L3))),\"\")","v":0},{"$f":"IFERROR(INDEX(Таблица1[13],_xlfn.AGGREGATE(15,6,(ROW(Таблица1[13])-ROW(Таблица1[[#Headers],[13]]))/(Таблица1[[месяц]:[месяц]]=$J$2)/(Таблица1[[год]:[год]]=$L$2)/(Таблица1[[изд]:[изд]]=$O$1)/(Таблица1[[партия]:[партия]]=$S$1),ROW(M3))),\"\")","v":0},{"$f":"IFERROR(INDEX(Таблица1[16],_xlfn.AGGREGATE(15,6,(ROW(Таблица1[16])-ROW(Таблица1[[#Headers],[16]]))/(Таблица1[[месяц]:[месяц]]=$J$2)/(Таблица1[[год]:[год]]=$L$2)/(Таблица1[[изд]:[изд]]=$O$1)/(Таблица1[[партия]:[партия]]=$S$1),ROW(N3))),\"\")","v":0},{"$f":"IFERROR(INDEX(Таблица1[17],_xlfn.AGGREGATE(15,6,(ROW(Таблица1[17])-ROW(Таблица1[[#Headers],[17]]))/(Таблица1[[месяц]:[месяц]]=$J$2)/(Таблица1[[год]:[год]]=$L$2)/(Таблица1[[изд]:[изд]]=$O$1)/(Таблица1[[партия]:[партия]]=$S$1),ROW(O3))),\"\")","v":0},{"$f":"IFERROR(INDEX(Таблица1[18],_xlfn.AGGREGATE(15,6,(ROW(Таблица1[18])-ROW(Таблица1[[#Headers],[18]]))/(Таблица1[[месяц]:[месяц]]=$J$2)/(Таблица1[[год]:[год]]=$L$2)/(Таблица1[[изд]:[изд]]=$O$1)/(Таблица1[[партия]:[партия]]=$S$1),ROW(P3))),\"\")","v":0},{"$f":"IFERROR(INDEX(Таблица1[19],_xlfn.AGGREGATE(15,6,(ROW(Таблица1[19])-ROW(Таблица1[[#Headers],[19]]))/(Таблица1[[месяц]:[месяц]]=$J$2)/(Таблица1[[год]:[год]]=$L$2)/(Таблица1[[изд]:[изд]]=$O$1)/(Таблица1[[партия]:[партия]]=$S$1),ROW(Q3))),\"\")","v":7},{"$f":"IFERROR(INDEX(Таблица1[20],_xlfn.AGGREGATE(15,6,(ROW(Таблица1[20])-ROW(Таблица1[[#Headers],[20]]))/(Таблица1[[месяц]:[месяц]]=$J$2)/(Таблица1[[год]:[год]]=$L$2)/(Таблица1[[изд]:[изд]]=$O$1)/(Таблица1[[партия]:[партия]]=$S$1),ROW(R3))),\"\")","v":0},{"$f":"IFERROR(INDEX(Таблица1[23],_xlfn.AGGREGATE(15,6,(ROW(Таблица1[23])-ROW(Таблица1[[#Headers],[23]]))/(Таблица1[[месяц]:[месяц]]=$J$2)/(Таблица1[[год]:[год]]=$L$2)/(Таблица1[[изд]:[изд]]=$O$1)/(Таблица1[[партия]:[партия]]=$S$1),ROW(S3))),\"\")","v":0},{"$f":"IFERROR(INDEX(Таблица1[24],_xlfn.AGGREGATE(15,6,(ROW(Таблица1[24])-ROW(Таблица1[[#Headers],[24]]))/(Таблица1[[месяц]:[месяц]]=$J$2)/(Таблица1[[год]:[год]]=$L$2)/(Таблица1[[изд]:[изд]]=$O$1)/(Таблица1[[партия]:[партия]]=$S$1),ROW(T3))),\"\")","v":0},{"$f":"IFERROR(INDEX(Таблица1[25],_xlfn.AGGREGATE(15,6,(ROW(Таблица1[25])-ROW(Таблица1[[#Headers],[25]]))/(Таблица1[[месяц]:[месяц]]=$J$2)/(Таблица1[[год]:[год]]=$L$2)/(Таблица1[[изд]:[изд]]=$O$1)/(Таблица1[[партия]:[партия]]=$S$1),ROW(U3))),\"\")","v":0},{"$f":"IFERROR(INDEX(Таблица1[26],_xlfn.AGGREGATE(15,6,(ROW(Таблица1[26])-ROW(Таблица1[[#Headers],[26]]))/(Таблица1[[месяц]:[месяц]]=$J$2)/(Таблица1[[год]:[год]]=$L$2)/(Таблица1[[изд]:[изд]]=$O$1)/(Таблица1[[партия]:[партия]]=$S$1),ROW(V3))),\"\")","v":0},{"$f":"IFERROR(INDEX(Таблица1[27],_xlfn.AGGREGATE(15,6,(ROW(Таблица1[27])-ROW(Таблица1[[#Headers],[27]]))/(Таблица1[[месяц]:[месяц]]=$J$2)/(Таблица1[[год]:[год]]=$L$2)/(Таблица1[[изд]:[изд]]=$O$1)/(Таблица1[[партия]:[партия]]=$S$1),ROW(W3))),\"\")","v":0},{"$f":"IFERROR(INDEX(Таблица1[30],_xlfn.AGGREGATE(15,6,(ROW(Таблица1[30])-ROW(Таблица1[[#Headers],[30]]))/(Таблица1[[месяц]:[месяц]]=$J$2)/(Таблица1[[год]:[год]]=$L$2)/(Таблица1[[изд]:[изд]]=$O$1)/(Таблица1[[партия]:[партия]]=$S$1),ROW(X3))),\"\")","v":0},{"$f":"IFERROR(INDEX(Таблица1[31],_xlfn.AGGREGATE(15,6,(ROW(Таблица1[31])-ROW(Таблица1[[#Headers],[31]]))/(Таблица1[[месяц]:[месяц]]=$J$2)/(Таблица1[[год]:[год]]=$L$2)/(Таблица1[[изд]:[изд]]=$O$1)/(Таблица1[[партия]:[партия]]=$S$1),ROW(Y3))),\"\")","v":0}]
[null,{"$f":"IFERROR(INDEX(Таблица1[коэф],_xlfn.AGGREGATE(15,6,(ROW(Таблица1[коэф])-ROW(Таблица1[[#Headers],[коэф]]))/(Таблица1[[месяц]:[месяц]]=$J$2)/(Таблица1[[год]:[год]]=$L$2)/(Таблица1[[изд]:[изд]]=$O$1)/(Таблица1[[партия]:[партия]]=$S$1),ROW(A4))),\"\")","v":1},{"$f":"IFERROR(INDEX(Таблица1[Ф. И. О.],_xlfn.AGGREGATE(15,6,(ROW(Таблица1[Ф. И. О.])-ROW(Таблица1[[#Headers],[Ф. И. О.]]))/(Таблица1[[месяц]:[месяц]]=$J$2)/(Таблица1[[год]:[год]]=$L$2)/(Таблица1[[изд]:[изд]]=$O$1)/(Таблица1[[партия]:[партия]]=$S$1),ROW(B4))),\"\")","v":"работник3"},{"$f":"IFERROR(INDEX(Таблица1[р/р],_xlfn.AGGREGATE(15,6,(ROW(Таблица1[р/р])-ROW(Таблица1[[#Headers],[р/р]]))/(Таблица1[[месяц]:[месяц]]=$J$2)/(Таблица1[[год]:[год]]=$L$2)/(Таблица1[[изд]:[изд]]=$O$1)/(Таблица1[[партия]:[партия]]=$S$1),ROW(C4))),\"\")","v":"2/4"},{"$f":"IFERROR(INDEX(Таблица1[2],_xlfn.AGGREGATE(15,6,(ROW(Таблица1[2])-ROW(Таблица1[[#Headers],[2]]))/(Таблица1[[месяц]:[месяц]]=$J$2)/(Таблица1[[год]:[год]]=$L$2)/(Таблица1[[изд]:[изд]]=$O$1)/(Таблица1[[партия]:[партия]]=$S$1),ROW(D4))),\"\")","v":0},{"$f":"IFERROR(INDEX(Таблица1[3],_xlfn.AGGREGATE(15,6,(ROW(Таблица1[3])-ROW(Таблица1[[#Headers],[3]]))/(Таблица1[[месяц]:[месяц]]=$J$2)/(Таблица1[[год]:[год]]=$L$2)/(Таблица1[[изд]:[изд]]=$O$1)/(Таблица1[[партия]:[партия]]=$S$1),ROW(E4))),\"\")","v":0},{"$f":"IFERROR(INDEX(Таблица1[4],_xlfn.AGGREGATE(15,6,(ROW(Таблица1[4])-ROW(Таблица1[[#Headers],[4]]))/(Таблица1[[месяц]:[месяц]]=$J$2)/(Таблица1[[год]:[год]]=$L$2)/(Таблица1[[изд]:[изд]]=$O$1)/(Таблица1[[партия]:[партия]]=$S$1),ROW(F4))),\"\")","v":0},{"$f":"IFERROR(INDEX(Таблица1[5],_xlfn.AGGREGATE(15,6,(ROW(Таблица1[5])-ROW(Таблица1[[#Headers],[5]]))/(Таблица1[[месяц]:[месяц]]=$J$2)/(Таблица1[[год]:[год]]=$L$2)/(Таблица1[[изд]:[изд]]=$O$1)/(Таблица1[[партия]:[партия]]=$S$1),ROW(G4))),\"\")","v":0},{"$f":"IFERROR(INDEX(Таблица1[6],_xlfn.AGGREGATE(15,6,(ROW(Таблица1[6])-ROW(Таблица1[[#Headers],[6]]))/(Таблица1[[месяц]:[месяц]]=$J$2)/(Таблица1[[год]:[год]]=$L$2)/(Таблица1[[изд]:[изд]]=$O$1)/(Таблица1[[партия]:[партия]]=$S$1),ROW(H4))),\"\")","v":2.8},{"$f":"IFERROR(INDEX(Таблица1[9],_xlfn.AGGREGATE(15,6,(ROW(Таблица1[9])-ROW(Таблица1[[#Headers],[9]]))/(Таблица1[[месяц]:[месяц]]=$J$2)/(Таблица1[[год]:[год]]=$L$2)/(Таблица1[[изд]:[изд]]=$O$1)/(Таблица1[[партия]:[партия]]=$S$1),ROW(I4))),\"\")","v":0},{"$f":"IFERROR(INDEX(Таблица1[10],_xlfn.AGGREGATE(15,6,(ROW(Таблица1[10])-ROW(Таблица1[[#Headers],[10]]))/(Таблица1[[месяц]:[месяц]]=$J$2)/(Таблица1[[год]:[год]]=$L$2)/(Таблица1[[изд]:[изд]]=$O$1)/(Таблица1[[партия]:[партия]]=$S$1),ROW(J4))),\"\")","v":0},{"$f":"IFERROR(INDEX(Таблица1[11],_xlfn.AGGREGATE(15,6,(ROW(Таблица1[11])-ROW(Таблица1[[#Headers],[11]]))/(Таблица1[[месяц]:[месяц]]=$J$2)/(Таблица1[[год]:[год]]=$L$2)/(Таблица1[[изд]:[изд]]=$O$1)/(Таблица1[[партия]:[партия]]=$S$1),ROW(K4))),\"\")","v":0},{"$f":"IFERROR(INDEX(Таблица1[12],_xlfn.AGGREGATE(15,6,(ROW(Таблица1[12])-ROW(Таблица1[[#Headers],[12]]))/(Таблица1[[месяц]:[месяц]]=$J$2)/(Таблица1[[год]:[год]]=$L$2)/(Таблица1[[изд]:[изд]]=$O$1)/(Таблица1[[партия]:[партия]]=$S$1),ROW(L4))),\"\")","v":0},{"$f":"IFERROR(INDEX(Таблица1[13],_xlfn.AGGREGATE(15,6,(ROW(Таблица1[13])-ROW(Таблица1[[#Headers],[13]]))/(Таблица1[[месяц]:[месяц]]=$J$2)/(Таблица1[[год]:[год]]=$L$2)/(Таблица1[[изд]:[изд]]=$O$1)/(Таблица1[[партия]:[партия]]=$S$1),ROW(M4))),\"\")","v":0},{"$f":"IFERROR(INDEX(Таблица1[16],_xlfn.AGGREGATE(15,6,(ROW(Таблица1[16])-ROW(Таблица1[[#Headers],[16]]))/(Таблица1[[месяц]:[месяц]]=$J$2)/(Таблица1[[год]:[год]]=$L$2)/(Таблица1[[изд]:[изд]]=$O$1)/(Таблица1[[партия]:[партия]]=$S$1),ROW(N4))),\"\")","v":0},{"$f":"IFERROR(INDEX(Таблица1[17],_xlfn.AGGREGATE(15,6,(ROW(Таблица1[17])-ROW(Таблица1[[#Headers],[17]]))/(Таблица1[[месяц]:[месяц]]=$J$2)/(Таблица1[[год]:[год]]=$L$2)/(Таблица1[[изд]:[изд]]=$O$1)/(Таблица1[[партия]:[партия]]=$S$1),ROW(O4))),\"\")","v":0},{"$f":"IFERROR(INDEX(Таблица1[18],_xlfn.AGGREGATE(15,6,(ROW(Таблица1[18])-ROW(Таблица1[[#Headers],[18]]))/(Таблица1[[месяц]:[месяц]]=$J$2)/(Таблица1[[год]:[год]]=$L$2)/(Таблица1[[изд]:[изд]]=$O$1)/(Таблица1[[партия]:[партия]]=$S$1),ROW(P4))),\"\")","v":0},{"$f":"IFERROR(INDEX(Таблица1[19],_xlfn.AGGREGATE(15,6,(ROW(Таблица1[19])-ROW(Таблица1[[#Headers],[19]]))/(Таблица1[[месяц]:[месяц]]=$J$2)/(Таблица1[[год]:[год]]=$L$2)/(Таблица1[[изд]:[изд]]=$O$1)/(Таблица1[[партия]:[партия]]=$S$1),ROW(Q4))),\"\")","v":0},{"$f":"IFERROR(INDEX(Таблица1[20],_xlfn.AGGREGATE(15,6,(ROW(Таблица1[20])-ROW(Таблица1[[#Headers],[20]]))/(Таблица1[[месяц]:[месяц]]=$J$2)/(Таблица1[[год]:[год]]=$L$2)/(Таблица1[[изд]:[изд]]=$O$1)/(Таблица1[[партия]:[партия]]=$S$1),ROW(R4))),\"\")","v":0},{"$f":"IFERROR(INDEX(Таблица1[23],_xlfn.AGGREGATE(15,6,(ROW(Таблица1[23])-ROW(Таблица1[[#Headers],[23]]))/(Таблица1[[месяц]:[месяц]]=$J$2)/(Таблица1[[год]:[год]]=$L$2)/(Таблица1[[изд]:[изд]]=$O$1)/(Таблица1[[партия]:[партия]]=$S$1),ROW(S4))),\"\")","v":0},{"$f":"IFERROR(INDEX(Таблица1[24],_xlfn.AGGREGATE(15,6,(ROW(Таблица1[24])-ROW(Таблица1[[#Headers],[24]]))/(Таблица1[[месяц]:[месяц]]=$J$2)/(Таблица1[[год]:[год]]=$L$2)/(Таблица1[[изд]:[изд]]=$O$1)/(Таблица1[[партия]:[партия]]=$S$1),ROW(T4))),\"\")","v":0},{"$f":"IFERROR(INDEX(Таблица1[25],_xlfn.AGGREGATE(15,6,(ROW(Таблица1[25])-ROW(Таблица1[[#Headers],[25]]))/(Таблица1[[месяц]:[месяц]]=$J$2)/(Таблица1[[год]:[год]]=$L$2)/(Таблица1[[изд]:[изд]]=$O$1)/(Таблица1[[партия]:[партия]]=$S$1),ROW(U4))),\"\")","v":0},{"$f":"IFERROR(INDEX(Таблица1[26],_xlfn.AGGREGATE(15,6,(ROW(Таблица1[26])-ROW(Таблица1[[#Headers],[26]]))/(Таблица1[[месяц]:[месяц]]=$J$2)/(Таблица1[[год]:[год]]=$L$2)/(Таблица1[[изд]:[изд]]=$O$1)/(Таблица1[[партия]:[партия]]=$S$1),ROW(V4))),\"\")","v":0},{"$f":"IFERROR(INDEX(Таблица1[27],_xlfn.AGGREGATE(15,6,(ROW(Таблица1[27])-ROW(Таблица1[[#Headers],[27]]))/(Таблица1[[месяц]:[месяц]]=$J$2)/(Таблица1[[год]:[год]]=$L$2)/(Таблица1[[изд]:[изд]]=$O$1)/(Таблица1[[партия]:[партия]]=$S$1),ROW(W4))),\"\")","v":0},{"$f":"IFERROR(INDEX(Таблица1[30],_xlfn.AGGREGATE(15,6,(ROW(Таблица1[30])-ROW(Таблица1[[#Headers],[30]]))/(Таблица1[[месяц]:[месяц]]=$J$2)/(Таблица1[[год]:[год]]=$L$2)/(Таблица1[[изд]:[изд]]=$O$1)/(Таблица1[[партия]:[партия]]=$S$1),ROW(X4))),\"\")","v":0},{"$f":"IFERROR(INDEX(Таблица1[31],_xlfn.AGGREGATE(15,6,(ROW(Таблица1[31])-ROW(Таблица1[[#Headers],[31]]))/(Таблица1[[месяц]:[месяц]]=$J$2)/(Таблица1[[год]:[год]]=$L$2)/(Таблица1[[изд]:[изд]]=$O$1)/(Таблица1[[партия]:[партия]]=$S$1),ROW(Y4))),\"\")","v":0}]
[null,{"$f":"IFERROR(INDEX(Таблица1[коэф],_xlfn.AGGREGATE(15,6,(ROW(Таблица1[коэф])-ROW(Таблица1[[#Headers],[коэф]]))/(Таблица1[[месяц]:[месяц]]=$J$2)/(Таблица1[[год]:[год]]=$L$2)/(Таблица1[[изд]:[изд]]=$O$1)/(Таблица1[[партия]:[партия]]=$S$1),ROW(A5))),\"\")","v":1},{"$f":"IFERROR(INDEX(Таблица1[Ф. И. О.],_xlfn.AGGREGATE(15,6,(ROW(Таблица1[Ф. И. О.])-ROW(Таблица1[[#Headers],[Ф. И. О.]]))/(Таблица1[[месяц]:[месяц]]=$J$2)/(Таблица1[[год]:[год]]=$L$2)/(Таблица1[[изд]:[изд]]=$O$1)/(Таблица1[[партия]:[партия]]=$S$1),ROW(B5))),\"\")","v":"работник12"},{"$f":"IFERROR(INDEX(Таблица1[р/р],_xlfn.AGGREGATE(15,6,(ROW(Таблица1[р/р])-ROW(Таблица1[[#Headers],[р/р]]))/(Таблица1[[месяц]:[месяц]]=$J$2)/(Таблица1[[год]:[год]]=$L$2)/(Таблица1[[изд]:[изд]]=$O$1)/(Таблица1[[партия]:[партия]]=$S$1),ROW(C5))),\"\")","v":"3/4"},{"$f":"IFERROR(INDEX(Таблица1[2],_xlfn.AGGREGATE(15,6,(ROW(Таблица1[2])-ROW(Таблица1[[#Headers],[2]]))/(Таблица1[[месяц]:[месяц]]=$J$2)/(Таблица1[[год]:[год]]=$L$2)/(Таблица1[[изд]:[изд]]=$O$1)/(Таблица1[[партия]:[партия]]=$S$1),ROW(D5))),\"\")","v":4},{"$f":"IFERROR(INDEX(Таблица1[3],_xlfn.AGGREGATE(15,6,(ROW(Таблица1[3])-ROW(Таблица1[[#Headers],[3]]))/(Таблица1[[месяц]:[месяц]]=$J$2)/(Таблица1[[год]:[год]]=$L$2)/(Таблица1[[изд]:[изд]]=$O$1)/(Таблица1[[партия]:[партия]]=$S$1),ROW(E5))),\"\")","v":4},{"$f":"IFERROR(INDEX(Таблица1[4],_xlfn.AGGREGATE(15,6,(ROW(Таблица1[4])-ROW(Таблица1[[#Headers],[4]]))/(Таблица1[[месяц]:[месяц]]=$J$2)/(Таблица1[[год]:[год]]=$L$2)/(Таблица1[[изд]:[изд]]=$O$1)/(Таблица1[[партия]:[партия]]=$S$1),ROW(F5))),\"\")","v":4},{"$f":"IFERROR(INDEX(Таблица1[5],_xlfn.AGGREGATE(15,6,(ROW(Таблица1[5])-ROW(Таблица1[[#Headers],[5]]))/(Таблица1[[месяц]:[месяц]]=$J$2)/(Таблица1[[год]:[год]]=$L$2)/(Таблица1[[изд]:[изд]]=$O$1)/(Таблица1[[партия]:[партия]]=$S$1),ROW(G5))),\"\")","v":4},{"$f":"IFERROR(INDEX(Таблица1[6],_xlfn.AGGREGATE(15,6,(ROW(Таблица1[6])-ROW(Таблица1[[#Headers],[6]]))/(Таблица1[[месяц]:[месяц]]=$J$2)/(Таблица1[[год]:[год]]=$L$2)/(Таблица1[[изд]:[изд]]=$O$1)/(Таблица1[[партия]:[партия]]=$S$1),ROW(H5))),\"\")","v":0},{"$f":"IFERROR(INDEX(Таблица1[9],_xlfn.AGGREGATE(15,6,(ROW(Таблица1[9])-ROW(Таблица1[[#Headers],[9]]))/(Таблица1[[месяц]:[месяц]]=$J$2)/(Таблица1[[год]:[год]]=$L$2)/(Таблица1[[изд]:[изд]]=$O$1)/(Таблица1[[партия]:[партия]]=$S$1),ROW(I5))),\"\")","v":0},{"$f":"IFERROR(INDEX(Таблица1[10],_xlfn.AGGREGATE(15,6,(ROW(Таблица1[10])-ROW(Таблица1[[#Headers],[10]]))/(Таблица1[[месяц]:[месяц]]=$J$2)/(Таблица1[[год]:[год]]=$L$2)/(Таблица1[[изд]:[изд]]=$O$1)/(Таблица1[[партия]:[партия]]=$S$1),ROW(J5))),\"\")","v":0},{"$f":"IFERROR(INDEX(Таблица1[11],_xlfn.AGGREGATE(15,6,(ROW(Таблица1[11])-ROW(Таблица1[[#Headers],[11]]))/(Таблица1[[месяц]:[месяц]]=$J$2)/(Таблица1[[год]:[год]]=$L$2)/(Таблица1[[изд]:[изд]]=$O$1)/(Таблица1[[партия]:[партия]]=$S$1),ROW(K5))),\"\")","v":0},{"$f":"IFERROR(INDEX(Таблица1[12],_xlfn.AGGREGATE(15,6,(ROW(Таблица1[12])-ROW(Таблица1[[#Headers],[12]]))/(Таблица1[[месяц]:[месяц]]=$J$2)/(Таблица1[[год]:[год]]=$L$2)/(Таблица1[[изд]:[изд]]=$O$1)/(Таблица1[[партия]:[партия]]=$S$1),ROW(L5))),\"\")","v":0},{"$f":"IFERROR(INDEX(Таблица1[13],_xlfn.AGGREGATE(15,6,(ROW(Таблица1[13])-ROW(Таблица1[[#Headers],[13]]))/(Таблица1[[месяц]:[месяц]]=$J$2)/(Таблица1[[год]:[год]]=$L$2)/(Таблица1[[изд]:[изд]]=$O$1)/(Таблица1[[партия]:[партия]]=$S$1),ROW(M5))),\"\")","v":7},{"$f":"IFERROR(INDEX(Таблица1[16],_xlfn.AGGREGATE(15,6,(ROW(Таблица1[16])-ROW(Таблица1[[#Headers],[16]]))/(Таблица1[[месяц]:[месяц]]=$J$2)/(Таблица1[[год]:[год]]=$L$2)/(Таблица1[[изд]:[изд]]=$O$1)/(Таблица1[[партия]:[партия]]=$S$1),ROW(N5))),\"\")","v":0},{"$f":"IFERROR(INDEX(Таблица1[17],_xlfn.AGGREGATE(15,6,(ROW(Таблица1[17])-ROW(Таблица1[[#Headers],[17]]))/(Таблица1[[месяц]:[месяц]]=$J$2)/(Таблица1[[год]:[год]]=$L$2)/(Таблица1[[изд]:[изд]]=$O$1)/(Таблица1[[партия]:[партия]]=$S$1),ROW(O5))),\"\")","v":0},{"$f":"IFERROR(INDEX(Таблица1[18],_xlfn.AGGREGATE(15,6,(ROW(Таблица1[18])-ROW(Таблица1[[#Headers],[18]]))/(Таблица1[[месяц]:[месяц]]=$J$2)/(Таблица1[[год]:[год]]=$L$2)/(Таблица1[[изд]:[изд]]=$O$1)/(Таблица1[[партия]:[партия]]=$S$1),ROW(P5))),\"\")","v":0},{"$f":"IFERROR(INDEX(Таблица1[19],_xlfn.AGGREGATE(15,6,(ROW(Таблица1[19])-ROW(Таблица1[[#Headers],[19]]))/(Таблица1[[месяц]:[месяц]]=$J$2)/(Таблица1[[год]:[год]]=$L$2)/(Таблица1[[изд]:[изд]]=$O$1)/(Таблица1[[партия]:[партия]]=$S$1),ROW(Q5))),\"\")","v":0},{"$f":"IFERROR(INDEX(Таблица1[20],_xlfn.AGGREGATE(15,6,(ROW(Таблица1[20])-ROW(Таблица1[[#Headers],[20]]))/(Таблица1[[месяц]:[месяц]]=$J$2)/(Таблица1[[год]:[год]]=$L$2)/(Таблица1[[изд]:[изд]]=$O$1)/(Таблица1[[партия]:[партия]]=$S$1),ROW(R5))),\"\")","v":0},{"$f":"IFERROR(INDEX(Таблица1[23],_xlfn.AGGREGATE(15,6,(ROW(Таблица1[23])-ROW(Таблица1[[#Headers],[23]]))/(Таблица1[[месяц]:[месяц]]=$J$2)/(Таблица1[[год]:[год]]=$L$2)/(Таблица1[[изд]:[изд]]=$O$1)/(Таблица1[[партия]:[партия]]=$S$1),ROW(S5))),\"\")","v":0},{"$f":"IFERROR(INDEX(Таблица1[24],_xlfn.AGGREGATE(15,6,(ROW(Таблица1[24])-ROW(Таблица1[[#Headers],[24]]))/(Таблица1[[месяц]:[месяц]]=$J$2)/(Таблица1[[год]:[год]]=$L$2)/(Таблица1[[изд]:[изд]]=$O$1)/(Таблица1[[партия]:[партия]]=$S$1),ROW(T5))),\"\")","v":0},{"$f":"IFERROR(INDEX(Таблица1[25],_xlfn.AGGREGATE(15,6,(ROW(Таблица1[25])-ROW(Таблица1[[#Headers],[25]]))/(Таблица1[[месяц]:[месяц]]=$J$2)/(Таблица1[[год]:[год]]=$L$2)/(Таблица1[[изд]:[изд]]=$O$1)/(Таблица1[[партия]:[партия]]=$S$1),ROW(U5))),\"\")","v":0},{"$f":"IFERROR(INDEX(Таблица1[26],_xlfn.AGGREGATE(15,6,(ROW(Таблица1[26])-ROW(Таблица1[[#Headers],[26]]))/(Таблица1[[месяц]:[месяц]]=$J$2)/(Таблица1[[год]:[год]]=$L$2)/(Таблица1[[изд]:[изд]]=$O$1)/(Таблица1[[партия]:[партия]]=$S$1),ROW(V5))),\"\")","v":0},{"$f":"IFERROR(INDEX(Таблица1[27],_xlfn.AGGREGATE(15,6,(ROW(Таблица1[27])-ROW(Таблица1[[#Headers],[27]]))/(Таблица1[[месяц]:[месяц]]=$J$2)/(Таблица1[[год]:[год]]=$L$2)/(Таблица1[[изд]:[изд]]=$O$1)/(Таблица1[[партия]:[партия]]=$S$1),ROW(W5))),\"\")","v":0},{"$f":"IFERROR(INDEX(Таблица1[30],_xlfn.AGGREGATE(15,6,(ROW(Таблица1[30])-ROW(Таблица1[[#Headers],[30]]))/(Таблица1[[месяц]:[месяц]]=$J$2)/(Таблица1[[год]:[год]]=$L$2)/(Таблица1[[изд]:[изд]]=$O$1)/(Таблица1[[партия]:[партия]]=$S$1),ROW(X5))),\"\")","v":0},{"$f":"IFERROR(INDEX(Таблица1[31],_xlfn.AGGREGATE(15,6,(ROW(Таблица1[31])-ROW(Таблица1[[#Headers],[31]]))/(Таблица1[[месяц]:[месяц]]=$J$2)/(Таблица1[[год]:[год]]=$L$2)/(Таблица1[[изд]:[изд]]=$O$1)/(Таблица1[[партия]:[партия]]=$S$1),ROW(Y5))),\"\")","v":0}]
[null,{"$f":"IFERROR(INDEX(Таблица1[коэф],_xlfn.AGGREGATE(15,6,(ROW(Таблица1[коэф])-ROW(Таблица1[[#Headers],[коэф]]))/(Таблица1[[месяц]:[месяц]]=$J$2)/(Таблица1[[год]:[год]]=$L$2)/(Таблица1[[изд]:[изд]]=$O$1)/(Таблица1[[партия]:[партия]]=$S$1),ROW(A6))),\"\")","v":1},{"$f":"IFERROR(INDEX(Таблица1[Ф. И. О.],_xlfn.AGGREGATE(15,6,(ROW(Таблица1[Ф. И. О.])-ROW(Таблица1[[#Headers],[Ф. И. О.]]))/(Таблица1[[месяц]:[месяц]]=$J$2)/(Таблица1[[год]:[год]]=$L$2)/(Таблица1[[изд]:[изд]]=$O$1)/(Таблица1[[партия]:[партия]]=$S$1),ROW(B6))),\"\")","v":"работник2"},{"$f":"IFERROR(INDEX(Таблица1[р/р],_xlfn.AGGREGATE(15,6,(ROW(Таблица1[р/р])-ROW(Таблица1[[#Headers],[р/р]]))/(Таблица1[[месяц]:[месяц]]=$J$2)/(Таблица1[[год]:[год]]=$L$2)/(Таблица1[[изд]:[изд]]=$O$1)/(Таблица1[[партия]:[партия]]=$S$1),ROW(C6))),\"\")","v":"3/4"},{"$f":"IFERROR(INDEX(Таблица1[2],_xlfn.AGGREGATE(15,6,(ROW(Таблица1[2])-ROW(Таблица1[[#Headers],[2]]))/(Таблица1[[месяц]:[месяц]]=$J$2)/(Таблица1[[год]:[год]]=$L$2)/(Таблица1[[изд]:[изд]]=$O$1)/(Таблица1[[партия]:[партия]]=$S$1),ROW(D6))),\"\")","v":0},{"$f":"IFERROR(INDEX(Таблица1[3],_xlfn.AGGREGATE(15,6,(ROW(Таблица1[3])-ROW(Таблица1[[#Headers],[3]]))/(Таблица1[[месяц]:[месяц]]=$J$2)/(Таблица1[[год]:[год]]=$L$2)/(Таблица1[[изд]:[изд]]=$O$1)/(Таблица1[[партия]:[партия]]=$S$1),ROW(E6))),\"\")","v":0},{"$f":"IFERROR(INDEX(Таблица1[4],_xlfn.AGGREGATE(15,6,(ROW(Таблица1[4])-ROW(Таблица1[[#Headers],[4]]))/(Таблица1[[месяц]:[месяц]]=$J$2)/(Таблица1[[год]:[год]]=$L$2)/(Таблица1[[изд]:[изд]]=$O$1)/(Таблица1[[партия]:[партия]]=$S$1),ROW(F6))),\"\")","v":0},{"$f":"IFERROR(INDEX(Таблица1[5],_xlfn.AGGREGATE(15,6,(ROW(Таблица1[5])-ROW(Таблица1[[#Headers],[5]]))/(Таблица1[[месяц]:[месяц]]=$J$2)/(Таблица1[[год]:[год]]=$L$2)/(Таблица1[[изд]:[изд]]=$O$1)/(Таблица1[[партия]:[партия]]=$S$1),ROW(G6))),\"\")","v":0},{"$f":"IFERROR(INDEX(Таблица1[6],_xlfn.AGGREGATE(15,6,(ROW(Таблица1[6])-ROW(Таблица1[[#Headers],[6]]))/(Таблица1[[месяц]:[месяц]]=$J$2)/(Таблица1[[год]:[год]]=$L$2)/(Таблица1[[изд]:[изд]]=$O$1)/(Таблица1[[партия]:[партия]]=$S$1),ROW(H6))),\"\")","v":0},{"$f":"IFERROR(INDEX(Таблица1[9],_xlfn.AGGREGATE(15,6,(ROW(Таблица1[9])-ROW(Таблица1[[#Headers],[9]]))/(Таблица1[[месяц]:[месяц]]=$J$2)/(Таблица1[[год]:[год]]=$L$2)/(Таблица1[[изд]:[изд]]=$O$1)/(Таблица1[[партия]:[партия]]=$S$1),ROW(I6))),\"\")","v":4.2},{"$f":"IFERROR(INDEX(Таблица1[10],_xlfn.AGGREGATE(15,6,(ROW(Таблица1[10])-ROW(Таблица1[[#Headers],[10]]))/(Таблица1[[месяц]:[месяц]]=$J$2)/(Таблица1[[год]:[год]]=$L$2)/(Таблица1[[изд]:[изд]]=$O$1)/(Таблица1[[партия]:[партия]]=$S$1),ROW(J6))),\"\")","v":0},{"$f":"IFERROR(INDEX(Таблица1[11],_xlfn.AGGREGATE(15,6,(ROW(Таблица1[11])-ROW(Таблица1[[#Headers],[11]]))/(Таблица1[[месяц]:[месяц]]=$J$2)/(Таблица1[[год]:[год]]=$L$2)/(Таблица1[[изд]:[изд]]=$O$1)/(Таблица1[[партия]:[партия]]=$S$1),ROW(K6))),\"\")","v":0},{"$f":"IFERROR(INDEX(Таблица1[12],_xlfn.AGGREGATE(15,6,(ROW(Таблица1[12])-ROW(Таблица1[[#Headers],[12]]))/(Таблица1[[месяц]:[месяц]]=$J$2)/(Таблица1[[год]:[год]]=$L$2)/(Таблица1[[изд]:[изд]]=$O$1)/(Таблица1[[партия]:[партия]]=$S$1),ROW(L6))),\"\")","v":0},{"$f":"IFERROR(INDEX(Таблица1[13],_xlfn.AGGREGATE(15,6,(ROW(Таблица1[13])-ROW(Таблица1[[#Headers],[13]]))/(Таблица1[[месяц]:[месяц]]=$J$2)/(Таблица1[[год]:[год]]=$L$2)/(Таблица1[[изд]:[изд]]=$O$1)/(Таблица1[[партия]:[партия]]=$S$1),ROW(M6))),\"\")","v":0},{"$f":"IFERROR(INDEX(Таблица1[16],_xlfn.AGGREGATE(15,6,(ROW(Таблица1[16])-ROW(Таблица1[[#Headers],[16]]))/(Таблица1[[месяц]:[месяц]]=$J$2)/(Таблица1[[год]:[год]]=$L$2)/(Таблица1[[изд]:[изд]]=$O$1)/(Таблица1[[партия]:[партия]]=$S$1),ROW(N6))),\"\")","v":0},{"$f":"IFERROR(INDEX(Таблица1[17],_xlfn.AGGREGATE(15,6,(ROW(Таблица1[17])-ROW(Таблица1[[#Headers],[17]]))/(Таблица1[[месяц]:[месяц]]=$J$2)/(Таблица1[[год]:[год]]=$L$2)/(Таблица1[[изд]:[изд]]=$O$1)/(Таблица1[[партия]:[партия]]=$S$1),ROW(O6))),\"\")","v":0},{"$f":"IFERROR(INDEX(Таблица1[18],_xlfn.AGGREGATE(15,6,(ROW(Таблица1[18])-ROW(Таблица1[[#Headers],[18]]))/(Таблица1[[месяц]:[месяц]]=$J$2)/(Таблица1[[год]:[год]]=$L$2)/(Таблица1[[изд]:[изд]]=$O$1)/(Таблица1[[партия]:[партия]]=$S$1),ROW(P6))),\"\")","v":2.2000000000000002},{"$f":"IFERROR(INDEX(Таблица1[19],_xlfn.AGGREGATE(15,6,(ROW(Таблица1[19])-ROW(Таблица1[[#Headers],[19]]))/(Таблица1[[месяц]:[месяц]]=$J$2)/(Таблица1[[год]:[год]]=$L$2)/(Таблица1[[изд]:[изд]]=$O$1)/(Таблица1[[партия]:[партия]]=$S$1),ROW(Q6))),\"\")","v":0},{"$f":"IFERROR(INDEX(Таблица1[20],_xlfn.AGGREGATE(15,6,(ROW(Таблица1[20])-ROW(Таблица1[[#Headers],[20]]))/(Таблица1[[месяц]:[месяц]]=$J$2)/(Таблица1[[год]:[год]]=$L$2)/(Таблица1[[изд]:[изд]]=$O$1)/(Таблица1[[партия]:[партия]]=$S$1),ROW(R6))),\"\")","v":7.2},{"$f":"IFERROR(INDEX(Таблица1[23],_xlfn.AGGREGATE(15,6,(ROW(Таблица1[23])-ROW(Таблица1[[#Headers],[23]]))/(Таблица1[[месяц]:[месяц]]=$J$2)/(Таблица1[[год]:[год]]=$L$2)/(Таблица1[[изд]:[изд]]=$O$1)/(Таблица1[[партия]:[партия]]=$S$1),ROW(S6))),\"\")","v":0},{"$f":"IFERROR(INDEX(Таблица1[24],_xlfn.AGGREGATE(15,6,(ROW(Таблица1[24])-ROW(Таблица1[[#Headers],[24]]))/(Таблица1[[месяц]:[месяц]]=$J$2)/(Таблица1[[год]:[год]]=$L$2)/(Таблица1[[изд]:[изд]]=$O$1)/(Таблица1[[партия]:[партия]]=$S$1),ROW(T6))),\"\")","v":7.2},{"$f":"IFERROR(INDEX(Таблица1[25],_xlfn.AGGREGATE(15,6,(ROW(Таблица1[25])-ROW(Таблица1[[#Headers],[25]]))/(Таблица1[[месяц]:[месяц]]=$J$2)/(Таблица1[[год]:[год]]=$L$2)/(Таблица1[[изд]:[изд]]=$O$1)/(Таблица1[[партия]:[партия]]=$S$1),ROW(U6))),\"\")","v":0},{"$f":"IFERROR(INDEX(Таблица1[26],_xlfn.AGGREGATE(15,6,(ROW(Таблица1[26])-ROW(Таблица1[[#Headers],[26]]))/(Таблица1[[месяц]:[месяц]]=$J$2)/(Таблица1[[год]:[год]]=$L$2)/(Таблица1[[изд]:[изд]]=$O$1)/(Таблица1[[партия]:[партия]]=$S$1),ROW(V6))),\"\")","v":3.6},{"$f":"IFERROR(INDEX(Таблица1[27],_xlfn.AGGREGATE(15,6,(ROW(Таблица1[27])-ROW(Таблица1[[#Headers],[27]]))/(Таблица1[[месяц]:[месяц]]=$J$2)/(Таблица1[[год]:[год]]=$L$2)/(Таблица1[[изд]:[изд]]=$O$1)/(Таблица1[[партия]:[партия]]=$S$1),ROW(W6))),\"\")","v":0},{"$f":"IFERROR(INDEX(Таблица1[30],_xlfn.AGGREGATE(15,6,(ROW(Таблица1[30])-ROW(Таблица1[[#Headers],[30]]))/(Таблица1[[месяц]:[месяц]]=$J$2)/(Таблица1[[год]:[год]]=$L$2)/(Таблица1[[изд]:[изд]]=$O$1)/(Таблица1[[партия]:[партия]]=$S$1),ROW(X6))),\"\")","v":0},{"$f":"IFERROR(INDEX(Таблица1[31],_xlfn.AGGREGATE(15,6,(ROW(Таблица1[31])-ROW(Таблица1[[#Headers],[31]]))/(Таблица1[[месяц]:[месяц]]=$J$2)/(Таблица1[[год]:[год]]=$L$2)/(Таблица1[[изд]:[изд]]=$O$1)/(Таблица1[[партия]:[партия]]=$S$1),ROW(Y6))),\"\")","v":0}]
[null,{"$f":"IFERROR(INDEX(Таблица1[коэф],_xlfn.AGGREGATE(15,6,(ROW(Таблица1[коэф])-ROW(Таблица1[[#Headers],[коэф]]))/(Таблица1[[месяц]:[месяц]]=$J$2)/(Таблица1[[год]:[год]]=$L$2)/(Таблица1[[изд]:[изд]]=$O$1)/(Таблица1[[партия]:[партия]]=$S$1),ROW(A7))),\"\")","v":1},{"$f":"IFERROR(INDEX(Таблица1[Ф. И. О.],_xlfn.AGGREGATE(15,6,(ROW(Таблица1[Ф. И. О.])-ROW(Таблица1[[#Headers],[Ф. И. О.]]))/(Таблица1[[месяц]:[месяц]]=$J$2)/(Таблица1[[год]:[год]]=$L$2)/(Таблица1[[изд]:[изд]]=$O$1)/(Таблица1[[партия]:[партия]]=$S$1),ROW(B7))),\"\")","v":"работник2"},{"$f":"IFERROR(INDEX(Таблица1[р/р],_xlfn.AGGREGATE(15,6,(ROW(Таблица1[р/р])-ROW(Таблица1[[#Headers],[р/р]]))/(Таблица1[[месяц]:[месяц]]=$J$2)/(Таблица1[[год]:[год]]=$L$2)/(Таблица1[[изд]:[изд]]=$O$1)/(Таблица1[[партия]:[партия]]=$S$1),ROW(C7))),\"\")","v":"3/16"},{"$f":"IFERROR(INDEX(Таблица1[2],_xlfn.AGGREGATE(15,6,(ROW(Таблица1[2])-ROW(Таблица1[[#Headers],[2]]))/(Таблица1[[месяц]:[месяц]]=$J$2)/(Таблица1[[год]:[год]]=$L$2)/(Таблица1[[изд]:[изд]]=$O$1)/(Таблица1[[партия]:[партия]]=$S$1),ROW(D7))),\"\")","v":0},{"$f":"IFERROR(INDEX(Таблица1[3],_xlfn.AGGREGATE(15,6,(ROW(Таблица1[3])-ROW(Таблица1[[#Headers],[3]]))/(Таблица1[[месяц]:[месяц]]=$J$2)/(Таблица1[[год]:[год]]=$L$2)/(Таблица1[[изд]:[изд]]=$O$1)/(Таблица1[[партия]:[партия]]=$S$1),ROW(E7))),\"\")","v":0},{"$f":"IFERROR(INDEX(Таблица1[4],_xlfn.AGGREGATE(15,6,(ROW(Таблица1[4])-ROW(Таблица1[[#Headers],[4]]))/(Таблица1[[месяц]:[месяц]]=$J$2)/(Таблица1[[год]:[год]]=$L$2)/(Таблица1[[изд]:[изд]]=$O$1)/(Таблица1[[партия]:[партия]]=$S$1),ROW(F7))),\"\")","v":0},{"$f":"IFERROR(INDEX(Таблица1[5],_xlfn.AGGREGATE(15,6,(ROW(Таблица1[5])-ROW(Таблица1[[#Headers],[5]]))/(Таблица1[[месяц]:[месяц]]=$J$2)/(Таблица1[[год]:[год]]=$L$2)/(Таблица1[[изд]:[изд]]=$O$1)/(Таблица1[[партия]:[партия]]=$S$1),ROW(G7))),\"\")","v":0},{"$f":"IFERROR(INDEX(Таблица1[6],_xlfn.AGGREGATE(15,6,(ROW(Таблица1[6])-ROW(Таблица1[[#Headers],[6]]))/(Таблица1[[месяц]:[месяц]]=$J$2)/(Таблица1[[год]:[год]]=$L$2)/(Таблица1[[изд]:[изд]]=$O$1)/(Таблица1[[партия]:[партия]]=$S$1),ROW(H7))),\"\")","v":0},{"$f":"IFERROR(INDEX(Таблица1[9],_xlfn.AGGREGATE(15,6,(ROW(Таблица1[9])-ROW(Таблица1[[#Headers],[9]]))/(Таблица1[[месяц]:[месяц]]=$J$2)/(Таблица1[[год]:[год]]=$L$2)/(Таблица1[[изд]:[изд]]=$O$1)/(Таблица1[[партия]:[партия]]=$S$1),ROW(I7))),\"\")","v":0},{"$f":"IFERROR(INDEX(Таблица1[10],_xlfn.AGGREGATE(15,6,(ROW(Таблица1[10])-ROW(Таблица1[[#Headers],[10]]))/(Таблица1[[месяц]:[месяц]]=$J$2)/(Таблица1[[год]:[год]]=$L$2)/(Таблица1[[изд]:[изд]]=$O$1)/(Таблица1[[партия]:[партия]]=$S$1),ROW(J7))),\"\")","v":0},{"$f":"IFERROR(INDEX(Таблица1[11],_xlfn.AGGREGATE(15,6,(ROW(Таблица1[11])-ROW(Таблица1[[#Headers],[11]]))/(Таблица1[[месяц]:[месяц]]=$J$2)/(Таблица1[[год]:[год]]=$L$2)/(Таблица1[[изд]:[изд]]=$O$1)/(Таблица1[[партия]:[партия]]=$S$1),ROW(K7))),\"\")","v":0},{"$f":"IFERROR(INDEX(Таблица1[12],_xlfn.AGGREGATE(15,6,(ROW(Таблица1[12])-ROW(Таблица1[[#Headers],[12]]))/(Таблица1[[месяц]:[месяц]]=$J$2)/(Таблица1[[год]:[год]]=$L$2)/(Таблица1[[изд]:[изд]]=$O$1)/(Таблица1[[партия]:[партия]]=$S$1),ROW(L7))),\"\")","v":0},{"$f":"IFERROR(INDEX(Таблица1[13],_xlfn.AGGREGATE(15,6,(ROW(Таблица1[13])-ROW(Таблица1[[#Headers],[13]]))/(Таблица1[[месяц]:[месяц]]=$J$2)/(Таблица1[[год]:[год]]=$L$2)/(Таблица1[[изд]:[изд]]=$O$1)/(Таблица1[[партия]:[партия]]=$S$1),ROW(M7))),\"\")","v":0},{"$f":"IFERROR(INDEX(Таблица1[16],_xlfn.AGGREGATE(15,6,(ROW(Таблица1[16])-ROW(Таблица1[[#Headers],[16]]))/(Таблица1[[месяц]:[месяц]]=$J$2)/(Таблица1[[год]:[год]]=$L$2)/(Таблица1[[изд]:[изд]]=$O$1)/(Таблица1[[партия]:[партия]]=$S$1),ROW(N7))),\"\")","v":0},{"$f":"IFERROR(INDEX(Таблица1[17],_xlfn.AGGREGATE(15,6,(ROW(Таблица1[17])-ROW(Таблица1[[#Headers],[17]]))/(Таблица1[[месяц]:[месяц]]=$J$2)/(Таблица1[[год]:[год]]=$L$2)/(Таблица1[[изд]:[изд]]=$O$1)/(Таблица1[[партия]:[партия]]=$S$1),ROW(O7))),\"\")","v":0},{"$f":"IFERROR(INDEX(Таблица1[18],_xlfn.AGGREGATE(15,6,(ROW(Таблица1[18])-ROW(Таблица1[[#Headers],[18]]))/(Таблица1[[месяц]:[месяц]]=$J$2)/(Таблица1[[год]:[год]]=$L$2)/(Таблица1[[изд]:[изд]]=$O$1)/(Таблица1[[партия]:[партия]]=$S$1),ROW(P7))),\"\")","v":0},{"$f":"IFERROR(INDEX(Таблица1[19],_xlfn.AGGREGATE(15,6,(ROW(Таблица1[19])-ROW(Таблица1[[#Headers],[19]]))/(Таблица1[[месяц]:[месяц]]=$J$2)/(Таблица1[[год]:[год]]=$L$2)/(Таблица1[[изд]:[изд]]=$O$1)/(Таблица1[[партия]:[партия]]=$S$1),ROW(Q7))),\"\")","v":0},{"$f":"IFERROR(INDEX(Таблица1[20],_xlfn.AGGREGATE(15,6,(ROW(Таблица1[20])-ROW(Таблица1[[#Headers],[20]]))/(Таблица1[[месяц]:[месяц]]=$J$2)/(Таблица1[[год]:[год]]=$L$2)/(Таблица1[[изд]:[изд]]=$O$1)/(Таблица1[[партия]:[партия]]=$S$1),ROW(R7))),\"\")","v":0},{"$f":"IFERROR(INDEX(Таблица1[23],_xlfn.AGGREGATE(15,6,(ROW(Таблица1[23])-ROW(Таблица1[[#Headers],[23]]))/(Таблица1[[месяц]:[месяц]]=$J$2)/(Таблица1[[год]:[год]]=$L$2)/(Таблица1[[изд]:[изд]]=$O$1)/(Таблица1[[партия]:[партия]]=$S$1),ROW(S7))),\"\")","v":1.8},{"$f":"IFERROR(INDEX(Таблица1[24],_xlfn.AGGREGATE(15,6,(ROW(Таблица1[24])-ROW(Таблица1[[#Headers],[24]]))/(Таблица1[[месяц]:[месяц]]=$J$2)/(Таблица1[[год]:[год]]=$L$2)/(Таблица1[[изд]:[изд]]=$O$1)/(Таблица1[[партия]:[партия]]=$S$1),ROW(T7))),\"\")","v":0},{"$f":"IFERROR(INDEX(Таблица1[25],_xlfn.AGGREGATE(15,6,(ROW(Таблица1[25])-ROW(Таблица1[[#Headers],[25]]))/(Таблица1[[месяц]:[месяц]]=$J$2)/(Таблица1[[год]:[год]]=$L$2)/(Таблица1[[изд]:[изд]]=$O$1)/(Таблица1[[партия]:[партия]]=$S$1),ROW(U7))),\"\")","v":0},{"$f":"IFERROR(INDEX(Таблица1[26],_xlfn.AGGREGATE(15,6,(ROW(Таблица1[26])-ROW(Таблица1[[#Headers],[26]]))/(Таблица1[[месяц]:[месяц]]=$J$2)/(Таблица1[[год]:[год]]=$L$2)/(Таблица1[[изд]:[изд]]=$O$1)/(Таблица1[[партия]:[партия]]=$S$1),ROW(V7))),\"\")","v":3.6},{"$f":"IFERROR(INDEX(Таблица1[27],_xlfn.AGGREGATE(15,6,(ROW(Таблица1[27])-ROW(Таблица1[[#Headers],[27]]))/(Таблица1[[месяц]:[месяц]]=$J$2)/(Таблица1[[год]:[год]]=$L$2)/(Таблица1[[изд]:[изд]]=$O$1)/(Таблица1[[партия]:[партия]]=$S$1),ROW(W7))),\"\")","v":7.2},{"$f":"IFERROR(INDEX(Таблица1[30],_xlfn.AGGREGATE(15,6,(ROW(Таблица1[30])-ROW(Таблица1[[#Headers],[30]]))/(Таблица1[[месяц]:[месяц]]=$J$2)/(Таблица1[[год]:[год]]=$L$2)/(Таблица1[[изд]:[изд]]=$O$1)/(Таблица1[[партия]:[партия]]=$S$1),ROW(X7))),\"\")","v":0},{"$f":"IFERROR(INDEX(Таблица1[31],_xlfn.AGGREGATE(15,6,(ROW(Таблица1[31])-ROW(Таблица1[[#Headers],[31]]))/(Таблица1[[месяц]:[месяц]]=$J$2)/(Таблица1[[год]:[год]]=$L$2)/(Таблица1[[изд]:[изд]]=$O$1)/(Таблица1[[партия]:[партия]]=$S$1),ROW(Y7))),\"\")","v":0}]
[null,{"$f":"IFERROR(INDEX(Таблица1[коэф],_xlfn.AGGREGATE(15,6,(ROW(Таблица1[коэф])-ROW(Таблица1[[#Headers],[коэф]]))/(Таблица1[[месяц]:[месяц]]=$J$2)/(Таблица1[[год]:[год]]=$L$2)/(Таблица1[[изд]:[изд]]=$O$1)/(Таблица1[[партия]:[партия]]=$S$1),ROW(A8))),\"\")","v":1},{"$f":"IFERROR(INDEX(Таблица1[Ф. И. О.],_xlfn.AGGREGATE(15,6,(ROW(Таблица1[Ф. И. О.])-ROW(Таблица1[[#Headers],[Ф. И. О.]]))/(Таблица1[[месяц]:[месяц]]=$J$2)/(Таблица1[[год]:[год]]=$L$2)/(Таблица1[[изд]:[изд]]=$O$1)/(Таблица1[[партия]:[партия]]=$S$1),ROW(B8))),\"\")","v":"работник1"},{"$f":"IFERROR(INDEX(Таблица1[р/р],_xlfn.AGGREGATE(15,6,(ROW(Таблица1[р/р])-ROW(Таблица1[[#Headers],[р/р]]))/(Таблица1[[месяц]:[месяц]]=$J$2)/(Таблица1[[год]:[год]]=$L$2)/(Таблица1[[изд]:[изд]]=$O$1)/(Таблица1[[партия]:[партия]]=$S$1),ROW(C8))),\"\")","v":"3/16"},{"$f":"IFERROR(INDEX(Таблица1[2],_xlfn.AGGREGATE(15,6,(ROW(Таблица1[2])-ROW(Таблица1[[#Headers],[2]]))/(Таблица1[[месяц]:[месяц]]=$J$2)/(Таблица1[[год]:[год]]=$L$2)/(Таблица1[[изд]:[изд]]=$O$1)/(Таблица1[[партия]:[партия]]=$S$1),ROW(D8))),\"\")","v":0},{"$f":"IFERROR(INDEX(Таблица1[3],_xlfn.AGGREGATE(15,6,(ROW(Таблица1[3])-ROW(Таблица1[[#Headers],[3]]))/(Таблица1[[месяц]:[месяц]]=$J$2)/(Таблица1[[год]:[год]]=$L$2)/(Таблица1[[изд]:[изд]]=$O$1)/(Таблица1[[партия]:[партия]]=$S$1),ROW(E8))),\"\")","v":0},{"$f":"IFERROR(INDEX(Таблица1[4],_xlfn.AGGREGATE(15,6,(ROW(Таблица1[4])-ROW(Таблица1[[#Headers],[4]]))/(Таблица1[[месяц]:[месяц]]=$J$2)/(Таблица1[[год]:[год]]=$L$2)/(Таблица1[[изд]:[изд]]=$O$1)/(Таблица1[[партия]:[партия]]=$S$1),ROW(F8))),\"\")","v":0},{"$f":"IFERROR(INDEX(Таблица1[5],_xlfn.AGGREGATE(15,6,(ROW(Таблица1[5])-ROW(Таблица1[[#Headers],[5]]))/(Таблица1[[месяц]:[месяц]]=$J$2)/(Таблица1[[год]:[год]]=$L$2)/(Таблица1[[изд]:[изд]]=$O$1)/(Таблица1[[партия]:[партия]]=$S$1),ROW(G8))),\"\")","v":0},{"$f":"IFERROR(INDEX(Таблица1[6],_xlfn.AGGREGATE(15,6,(ROW(Таблица1[6])-ROW(Таблица1[[#Headers],[6]]))/(Таблица1[[месяц]:[месяц]]=$J$2)/(Таблица1[[год]:[год]]=$L$2)/(Таблица1[[изд]:[изд]]=$O$1)/(Таблица1[[партия]:[партия]]=$S$1),ROW(H8))),\"\")","v":0},{"$f":"IFERROR(INDEX(Таблица1[9],_xlfn.AGGREGATE(15,6,(ROW(Таблица1[9])-ROW(Таблица1[[#Headers],[9]]))/(Таблица1[[месяц]:[месяц]]=$J$2)/(Таблица1[[год]:[год]]=$L$2)/(Таблица1[[изд]:[изд]]=$O$1)/(Таблица1[[партия]:[партия]]=$S$1),ROW(I8))),\"\")","v":0},{"$f":"IFERROR(INDEX(Таблица1[10],_xlfn.AGGREGATE(15,6,(ROW(Таблица1[10])-ROW(Таблица1[[#Headers],[10]]))/(Таблица1[[месяц]:[месяц]]=$J$2)/(Таблица1[[год]:[год]]=$L$2)/(Таблица1[[изд]:[изд]]=$O$1)/(Таблица1[[партия]:[партия]]=$S$1),ROW(J8))),\"\")","v":0},{"$f":"IFERROR(INDEX(Таблица1[11],_xlfn.AGGREGATE(15,6,(ROW(Таблица1[11])-ROW(Таблица1[[#Headers],[11]]))/(Таблица1[[месяц]:[месяц]]=$J$2)/(Таблица1[[год]:[год]]=$L$2)/(Таблица1[[изд]:[изд]]=$O$1)/(Таблица1[[партия]:[партия]]=$S$1),ROW(K8))),\"\")","v":0},{"$f":"IFERROR(INDEX(Таблица1[12],_xlfn.AGGREGATE(15,6,(ROW(Таблица1[12])-ROW(Таблица1[[#Headers],[12]]))/(Таблица1[[месяц]:[месяц]]=$J$2)/(Таблица1[[год]:[год]]=$L$2)/(Таблица1[[изд]:[изд]]=$O$1)/(Таблица1[[партия]:[партия]]=$S$1),ROW(L8))),\"\")","v":0},{"$f":"IFERROR(INDEX(Таблица1[13],_xlfn.AGGREGATE(15,6,(ROW(Таблица1[13])-ROW(Таблица1[[#Headers],[13]]))/(Таблица1[[месяц]:[месяц]]=$J$2)/(Таблица1[[год]:[год]]=$L$2)/(Таблица1[[изд]:[изд]]=$O$1)/(Таблица1[[партия]:[партия]]=$S$1),ROW(M8))),\"\")","v":0},{"$f":"IFERROR(INDEX(Таблица1[16],_xlfn.AGGREGATE(15,6,(ROW(Таблица1[16])-ROW(Таблица1[[#Headers],[16]]))/(Таблица1[[месяц]:[месяц]]=$J$2)/(Таблица1[[год]:[год]]=$L$2)/(Таблица1[[изд]:[изд]]=$O$1)/(Таблица1[[партия]:[партия]]=$S$1),ROW(N8))),\"\")","v":0},{"$f":"IFERROR(INDEX(Таблица1[17],_xlfn.AGGREGATE(15,6,(ROW(Таблица1[17])-ROW(Таблица1[[#Headers],[17]]))/(Таблица1[[месяц]:[месяц]]=$J$2)/(Таблица1[[год]:[год]]=$L$2)/(Таблица1[[изд]:[изд]]=$O$1)/(Таблица1[[партия]:[партия]]=$S$1),ROW(O8))),\"\")","v":4.7},{"$f":"IFERROR(INDEX(Таблица1[18],_xlfn.AGGREGATE(15,6,(ROW(Таблица1[18])-ROW(Таблица1[[#Headers],[18]]))/(Таблица1[[месяц]:[месяц]]=$J$2)/(Таблица1[[год]:[год]]=$L$2)/(Таблица1[[изд]:[изд]]=$O$1)/(Таблица1[[партия]:[партия]]=$S$1),ROW(P8))),\"\")","v":6.7},{"$f":"IFERROR(INDEX(Таблица1[19],_xlfn.AGGREGATE(15,6,(ROW(Таблица1[19])-ROW(Таблица1[[#Headers],[19]]))/(Таблица1[[месяц]:[месяц]]=$J$2)/(Таблица1[[год]:[год]]=$L$2)/(Таблица1[[изд]:[изд]]=$O$1)/(Таблица1[[партия]:[партия]]=$S$1),ROW(Q8))),\"\")","v":2},{"$f":"IFERROR(INDEX(Таблица1[20],_xlfn.AGGREGATE(15,6,(ROW(Таблица1[20])-ROW(Таблица1[[#Headers],[20]]))/(Таблица1[[месяц]:[месяц]]=$J$2)/(Таблица1[[год]:[год]]=$L$2)/(Таблица1[[изд]:[изд]]=$O$1)/(Таблица1[[партия]:[партия]]=$S$1),ROW(R8))),\"\")","v":0},{"$f":"IFERROR(INDEX(Таблица1[23],_xlfn.AGGREGATE(15,6,(ROW(Таблица1[23])-ROW(Таблица1[[#Headers],[23]]))/(Таблица1[[месяц]:[месяц]]=$J$2)/(Таблица1[[год]:[год]]=$L$2)/(Таблица1[[изд]:[изд]]=$O$1)/(Таблица1[[партия]:[партия]]=$S$1),ROW(S8))),\"\")","v":0},{"$f":"IFERROR(INDEX(Таблица1[24],_xlfn.AGGREGATE(15,6,(ROW(Таблица1[24])-ROW(Таблица1[[#Headers],[24]]))/(Таблица1[[месяц]:[месяц]]=$J$2)/(Таблица1[[год]:[год]]=$L$2)/(Таблица1[[изд]:[изд]]=$O$1)/(Таблица1[[партия]:[партия]]=$S$1),ROW(T8))),\"\")","v":3},{"$f":"IFERROR(INDEX(Таблица1[25],_xlfn.AGGREGATE(15,6,(ROW(Таблица1[25])-ROW(Таблица1[[#Headers],[25]]))/(Таблица1[[месяц]:[месяц]]=$J$2)/(Таблица1[[год]:[год]]=$L$2)/(Таблица1[[изд]:[изд]]=$O$1)/(Таблица1[[партия]:[партия]]=$S$1),ROW(U8))),\"\")","v":0},{"$f":"IFERROR(INDEX(Таблица1[26],_xlfn.AGGREGATE(15,6,(ROW(Таблица1[26])-ROW(Таблица1[[#Headers],[26]]))/(Таблица1[[месяц]:[месяц]]=$J$2)/(Таблица1[[год]:[год]]=$L$2)/(Таблица1[[изд]:[изд]]=$O$1)/(Таблица1[[партия]:[партия]]=$S$1),ROW(V8))),\"\")","v":0},{"$f":"IFERROR(INDEX(Таблица1[27],_xlfn.AGGREGATE(15,6,(ROW(Таблица1[27])-ROW(Таблица1[[#Headers],[27]]))/(Таблица1[[месяц]:[месяц]]=$J$2)/(Таблица1[[год]:[год]]=$L$2)/(Таблица1[[изд]:[изд]]=$O$1)/(Таблица1[[партия]:[партия]]=$S$1),ROW(W8))),\"\")","v":5.7},{"$f":"IFERROR(INDEX(Таблица1[30],_xlfn.AGGREGATE(15,6,(ROW(Таблица1[30])-ROW(Таблица1[[#Headers],[30]]))/(Таблица1[[месяц]:[месяц]]=$J$2)/(Таблица1[[год]:[год]]=$L$2)/(Таблица1[[изд]:[изд]]=$O$1)/(Таблица1[[партия]:[партия]]=$S$1),ROW(X8))),\"\")","v":6.7},{"$f":"IFERROR(INDEX(Таблица1[31],_xlfn.AGGREGATE(15,6,(ROW(Таблица1[31])-ROW(Таблица1[[#Headers],[31]]))/(Таблица1[[месяц]:[месяц]]=$J$2)/(Таблица1[[год]:[год]]=$L$2)/(Таблица1[[изд]:[изд]]=$O$1)/(Таблица1[[партия]:[партия]]=$S$1),ROW(Y8))),\"\")","v":6.7}]
[null,{"$f":"IFERROR(INDEX(Таблица1[коэф],_xlfn.AGGREGATE(15,6,(ROW(Таблица1[коэф])-ROW(Таблица1[[#Headers],[коэф]]))/(Таблица1[[месяц]:[месяц]]=$J$2)/(Таблица1[[год]:[год]]=$L$2)/(Таблица1[[изд]:[изд]]=$O$1)/(Таблица1[[партия]:[партия]]=$S$1),ROW(A9))),\"\")","v":1},{"$f":"IFERROR(INDEX(Таблица1[Ф. И. О.],_xlfn.AGGREGATE(15,6,(ROW(Таблица1[Ф. И. О.])-ROW(Таблица1[[#Headers],[Ф. И. О.]]))/(Таблица1[[месяц]:[месяц]]=$J$2)/(Таблица1[[год]:[год]]=$L$2)/(Таблица1[[изд]:[изд]]=$O$1)/(Таблица1[[партия]:[партия]]=$S$1),ROW(B9))),\"\")","v":"работник10"},{"$f":"IFERROR(INDEX(Таблица1[р/р],_xlfn.AGGREGATE(15,6,(ROW(Таблица1[р/р])-ROW(Таблица1[[#Headers],[р/р]]))/(Таблица1[[месяц]:[месяц]]=$J$2)/(Таблица1[[год]:[год]]=$L$2)/(Таблица1[[изд]:[изд]]=$O$1)/(Таблица1[[партия]:[партия]]=$S$1),ROW(C9))),\"\")","v":"3/16"},{"$f":"IFERROR(INDEX(Таблица1[2],_xlfn.AGGREGATE(15,6,(ROW(Таблица1[2])-ROW(Таблица1[[#Headers],[2]]))/(Таблица1[[месяц]:[месяц]]=$J$2)/(Таблица1[[год]:[год]]=$L$2)/(Таблица1[[изд]:[изд]]=$O$1)/(Таблица1[[партия]:[партия]]=$S$1),ROW(D9))),\"\")","v":7.2},{"$f":"IFERROR(INDEX(Таблица1[3],_xlfn.AGGREGATE(15,6,(ROW(Таблица1[3])-ROW(Таблица1[[#Headers],[3]]))/(Таблица1[[месяц]:[месяц]]=$J$2)/(Таблица1[[год]:[год]]=$L$2)/(Таблица1[[изд]:[изд]]=$O$1)/(Таблица1[[партия]:[партия]]=$S$1),ROW(E9))),\"\")","v":7.2},{"$f":"IFERROR(INDEX(Таблица1[4],_xlfn.AGGREGATE(15,6,(ROW(Таблица1[4])-ROW(Таблица1[[#Headers],[4]]))/(Таблица1[[месяц]:[месяц]]=$J$2)/(Таблица1[[год]:[год]]=$L$2)/(Таблица1[[изд]:[изд]]=$O$1)/(Таблица1[[партия]:[партия]]=$S$1),ROW(F9))),\"\")","v":7.2},{"$f":"IFERROR(INDEX(Таблица1[5],_xlfn.AGGREGATE(15,6,(ROW(Таблица1[5])-ROW(Таблица1[[#Headers],[5]]))/(Таблица1[[месяц]:[месяц]]=$J$2)/(Таблица1[[год]:[год]]=$L$2)/(Таблица1[[изд]:[изд]]=$O$1)/(Таблица1[[партия]:[партия]]=$S$1),ROW(G9))),\"\")","v":0},{"$f":"IFERROR(INDEX(Таблица1[6],_xlfn.AGGREGATE(15,6,(ROW(Таблица1[6])-ROW(Таблица1[[#Headers],[6]]))/(Таблица1[[месяц]:[месяц]]=$J$2)/(Таблица1[[год]:[год]]=$L$2)/(Таблица1[[изд]:[изд]]=$O$1)/(Таблица1[[партия]:[партия]]=$S$1),ROW(H9))),\"\")","v":0},{"$f":"IFERROR(INDEX(Таблица1[9],_xlfn.AGGREGATE(15,6,(ROW(Таблица1[9])-ROW(Таблица1[[#Headers],[9]]))/(Таблица1[[месяц]:[месяц]]=$J$2)/(Таблица1[[год]:[год]]=$L$2)/(Таблица1[[изд]:[изд]]=$O$1)/(Таблица1[[партия]:[партия]]=$S$1),ROW(I9))),\"\")","v":0},{"$f":"IFERROR(INDEX(Таблица1[10],_xlfn.AGGREGATE(15,6,(ROW(Таблица1[10])-ROW(Таблица1[[#Headers],[10]]))/(Таблица1[[месяц]:[месяц]]=$J$2)/(Таблица1[[год]:[год]]=$L$2)/(Таблица1[[изд]:[изд]]=$O$1)/(Таблица1[[партия]:[партия]]=$S$1),ROW(J9))),\"\")","v":0},{"$f":"IFERROR(INDEX(Таблица1[11],_xlfn.AGGREGATE(15,6,(ROW(Таблица1[11])-ROW(Таблица1[[#Headers],[11]]))/(Таблица1[[месяц]:[месяц]]=$J$2)/(Таблица1[[год]:[год]]=$L$2)/(Таблица1[[изд]:[изд]]=$O$1)/(Таблица1[[партия]:[партия]]=$S$1),ROW(K9))),\"\")","v":0},{"$f":"IFERROR(INDEX(Таблица1[12],_xlfn.AGGREGATE(15,6,(ROW(Таблица1[12])-ROW(Таблица1[[#Headers],[12]]))/(Таблица1[[месяц]:[месяц]]=$J$2)/(Таблица1[[год]:[год]]=$L$2)/(Таблица1[[изд]:[изд]]=$O$1)/(Таблица1[[партия]:[партия]]=$S$1),ROW(L9))),\"\")","v":0},{"$f":"IFERROR(INDEX(Таблица1[13],_xlfn.AGGREGATE(15,6,(ROW(Таблица1[13])-ROW(Таблица1[[#Headers],[13]]))/(Таблица1[[месяц]:[месяц]]=$J$2)/(Таблица1[[год]:[год]]=$L$2)/(Таблица1[[изд]:[изд]]=$O$1)/(Таблица1[[партия]:[партия]]=$S$1),ROW(M9))),\"\")","v":0},{"$f":"IFERROR(INDEX(Таблица1[16],_xlfn.AGGREGATE(15,6,(ROW(Таблица1[16])-ROW(Таблица1[[#Headers],[16]]))/(Таблица1[[месяц]:[месяц]]=$J$2)/(Таблица1[[год]:[год]]=$L$2)/(Таблица1[[изд]:[изд]]=$O$1)/(Таблица1[[партия]:[партия]]=$S$1),ROW(N9))),\"\")","v":0},{"$f":"IFERROR(INDEX(Таблица1[17],_xlfn.AGGREGATE(15,6,(ROW(Таблица1[17])-ROW(Таблица1[[#Headers],[17]]))/(Таблица1[[месяц]:[месяц]]=$J$2)/(Таблица1[[год]:[год]]=$L$2)/(Таблица1[[изд]:[изд]]=$O$1)/(Таблица1[[партия]:[партия]]=$S$1),ROW(O9))),\"\")","v":7.2},{"$f":"IFERROR(INDEX(Таблица1[18],_xlfn.AGGREGATE(15,6,(ROW(Таблица1[18])-ROW(Таблица1[[#Headers],[18]]))/(Таблица1[[месяц]:[месяц]]=$J$2)/(Таблица1[[год]:[год]]=$L$2)/(Таблица1[[изд]:[изд]]=$O$1)/(Таблица1[[партия]:[партия]]=$S$1),ROW(P9))),\"\")","v":7.2},{"$f":"IFERROR(INDEX(Таблица1[19],_xlfn.AGGREGATE(15,6,(ROW(Таблица1[19])-ROW(Таблица1[[#Headers],[19]]))/(Таблица1[[месяц]:[месяц]]=$J$2)/(Таблица1[[год]:[год]]=$L$2)/(Таблица1[[изд]:[изд]]=$O$1)/(Таблица1[[партия]:[партия]]=$S$1),ROW(Q9))),\"\")","v":0},{"$f":"IFERROR(INDEX(Таблица1[20],_xlfn.AGGREGATE(15,6,(ROW(Таблица1[20])-ROW(Таблица1[[#Headers],[20]]))/(Таблица1[[месяц]:[месяц]]=$J$2)/(Таблица1[[год]:[год]]=$L$2)/(Таблица1[[изд]:[изд]]=$O$1)/(Таблица1[[партия]:[партия]]=$S$1),ROW(R9))),\"\")","v":0},{"$f":"IFERROR(INDEX(Таблица1[23],_xlfn.AGGREGATE(15,6,(ROW(Таблица1[23])-ROW(Таблица1[[#Headers],[23]]))/(Таблица1[[месяц]:[месяц]]=$J$2)/(Таблица1[[год]:[год]]=$L$2)/(Таблица1[[изд]:[изд]]=$O$1)/(Таблица1[[партия]:[партия]]=$S$1),ROW(S9))),\"\")","v":0},{"$f":"IFERROR(INDEX(Таблица1[24],_xlfn.AGGREGATE(15,6,(ROW(Таблица1[24])-ROW(Таблица1[[#Headers],[24]]))/(Таблица1[[месяц]:[месяц]]=$J$2)/(Таблица1[[год]:[год]]=$L$2)/(Таблица1[[изд]:[изд]]=$O$1)/(Таблица1[[партия]:[партия]]=$S$1),ROW(T9))),\"\")","v":0},{"$f":"IFERROR(INDEX(Таблица1[25],_xlfn.AGGREGATE(15,6,(ROW(Таблица1[25])-ROW(Таблица1[[#Headers],[25]]))/(Таблица1[[месяц]:[месяц]]=$J$2)/(Таблица1[[год]:[год]]=$L$2)/(Таблица1[[изд]:[изд]]=$O$1)/(Таблица1[[партия]:[партия]]=$S$1),ROW(U9))),\"\")","v":0},{"$f":"IFERROR(INDEX(Таблица1[26],_xlfn.AGGREGATE(15,6,(ROW(Таблица1[26])-ROW(Таблица1[[#Headers],[26]]))/(Таблица1[[месяц]:[месяц]]=$J$2)/(Таблица1[[год]:[год]]=$L$2)/(Таблица1[[изд]:[изд]]=$O$1)/(Таблица1[[партия]:[партия]]=$S$1),ROW(V9))),\"\")","v":0},{"$f":"IFERROR(INDEX(Таблица1[27],_xlfn.AGGREGATE(15,6,(ROW(Таблица1[27])-ROW(Таблица1[[#Headers],[27]]))/(Таблица1[[месяц]:[месяц]]=$J$2)/(Таблица1[[год]:[год]]=$L$2)/(Таблица1[[изд]:[изд]]=$O$1)/(Таблица1[[партия]:[партия]]=$S$1),ROW(W9))),\"\")","v":0},{"$f":"IFERROR(INDEX(Таблица1[30],_xlfn.AGGREGATE(15,6,(ROW(Таблица1[30])-ROW(Таблица1[[#Headers],[30]]))/(Таблица1[[месяц]:[месяц]]=$J$2)/(Таблица1[[год]:[год]]=$L$2)/(Таблица1[[изд]:[изд]]=$O$1)/(Таблица1[[партия]:[партия]]=$S$1),ROW(X9))),\"\")","v":0},{"$f":"IFERROR(INDEX(Таблица1[31],_xlfn.AGGREGATE(15,6,(ROW(Таблица1[31])-ROW(Таблица1[[#Headers],[31]]))/(Таблица1[[месяц]:[месяц]]=$J$2)/(Таблица1[[год]:[год]]=$L$2)/(Таблица1[[изд]:[изд]]=$O$1)/(Таблица1[[партия]:[партия]]=$S$1),ROW(Y9))),\"\")","v":0}]
[null,{"$f":"IFERROR(INDEX(Таблица1[коэф],_xlfn.AGGREGATE(15,6,(ROW(Таблица1[коэф])-ROW(Таблица1[[#Headers],[коэф]]))/(Таблица1[[месяц]:[месяц]]=$J$2)/(Таблица1[[год]:[год]]=$L$2)/(Таблица1[[изд]:[изд]]=$O$1)/(Таблица1[[партия]:[партия]]=$S$1),ROW(A10))),\"\")","v":1},{"$f":"IFERROR(INDEX(Таблица1[Ф. И. О.],_xlfn.AGGREGATE(15,6,(ROW(Таблица1[Ф. И. О.])-ROW(Таблица1[[#Headers],[Ф. И. О.]]))/(Таблица1[[месяц]:[месяц]]=$J$2)/(Таблица1[[год]:[год]]=$L$2)/(Таблица1[[изд]:[изд]]=$O$1)/(Таблица1[[партия]:[партия]]=$S$1),ROW(B10))),\"\")","v":"работник11"},{"$f":"IFERROR(INDEX(Таблица1[р/р],_xlfn.AGGREGATE(15,6,(ROW(Таблица1[р/р])-ROW(Таблица1[[#Headers],[р/р]]))/(Таблица1[[месяц]:[месяц]]=$J$2)/(Таблица1[[год]:[год]]=$L$2)/(Таблица1[[изд]:[изд]]=$O$1)/(Таблица1[[партия]:[партия]]=$S$1),ROW(C10))),\"\")","v":"3/16"},{"$f":"IFERROR(INDEX(Таблица1[2],_xlfn.AGGREGATE(15,6,(ROW(Таблица1[2])-ROW(Таблица1[[#Headers],[2]]))/(Таблица1[[месяц]:[месяц]]=$J$2)/(Таблица1[[год]:[год]]=$L$2)/(Таблица1[[изд]:[изд]]=$O$1)/(Таблица1[[партия]:[партия]]=$S$1),ROW(D10))),\"\")","v":0},{"$f":"IFERROR(INDEX(Таблица1[3],_xlfn.AGGREGATE(15,6,(ROW(Таблица1[3])-ROW(Таблица1[[#Headers],[3]]))/(Таблица1[[месяц]:[месяц]]=$J$2)/(Таблица1[[год]:[год]]=$L$2)/(Таблица1[[изд]:[изд]]=$O$1)/(Таблица1[[партия]:[партия]]=$S$1),ROW(E10))),\"\")","v":7.2},{"$f":"IFERROR(INDEX(Таблица1[4],_xlfn.AGGREGATE(15,6,(ROW(Таблица1[4])-ROW(Таблица1[[#Headers],[4]]))/(Таблица1[[месяц]:[месяц]]=$J$2)/(Таблица1[[год]:[год]]=$L$2)/(Таблица1[[изд]:[изд]]=$O$1)/(Таблица1[[партия]:[партия]]=$S$1),ROW(F10))),\"\")","v":0},{"$f":"IFERROR(INDEX(Таблица1[5],_xlfn.AGGREGATE(15,6,(ROW(Таблица1[5])-ROW(Таблица1[[#Headers],[5]]))/(Таблица1[[месяц]:[месяц]]=$J$2)/(Таблица1[[год]:[год]]=$L$2)/(Таблица1[[изд]:[изд]]=$O$1)/(Таблица1[[партия]:[партия]]=$S$1),ROW(G10))),\"\")","v":7.2},{"$f":"IFERROR(INDEX(Таблица1[6],_xlfn.AGGREGATE(15,6,(ROW(Таблица1[6])-ROW(Таблица1[[#Headers],[6]]))/(Таблица1[[месяц]:[месяц]]=$J$2)/(Таблица1[[год]:[год]]=$L$2)/(Таблица1[[изд]:[изд]]=$O$1)/(Таблица1[[партия]:[партия]]=$S$1),ROW(H10))),\"\")","v":7.2},{"$f":"IFERROR(INDEX(Таблица1[9],_xlfn.AGGREGATE(15,6,(ROW(Таблица1[9])-ROW(Таблица1[[#Headers],[9]]))/(Таблица1[[месяц]:[месяц]]=$J$2)/(Таблица1[[год]:[год]]=$L$2)/(Таблица1[[изд]:[изд]]=$O$1)/(Таблица1[[партия]:[партия]]=$S$1),ROW(I10))),\"\")","v":0},{"$f":"IFERROR(INDEX(Таблица1[10],_xlfn.AGGREGATE(15,6,(ROW(Таблица1[10])-ROW(Таблица1[[#Headers],[10]]))/(Таблица1[[месяц]:[месяц]]=$J$2)/(Таблица1[[год]:[год]]=$L$2)/(Таблица1[[изд]:[изд]]=$O$1)/(Таблица1[[партия]:[партия]]=$S$1),ROW(J10))),\"\")","v":0},{"$f":"IFERROR(INDEX(Таблица1[11],_xlfn.AGGREGATE(15,6,(ROW(Таблица1[11])-ROW(Таблица1[[#Headers],[11]]))/(Таблица1[[месяц]:[месяц]]=$J$2)/(Таблица1[[год]:[год]]=$L$2)/(Таблица1[[изд]:[изд]]=$O$1)/(Таблица1[[партия]:[партия]]=$S$1),ROW(K10))),\"\")","v":0},{"$f":"IFERROR(INDEX(Таблица1[12],_xlfn.AGGREGATE(15,6,(ROW(Таблица1[12])-ROW(Таблица1[[#Headers],[12]]))/(Таблица1[[месяц]:[месяц]]=$J$2)/(Таблица1[[год]:[год]]=$L$2)/(Таблица1[[изд]:[изд]]=$O$1)/(Таблица1[[партия]:[партия]]=$S$1),ROW(L10))),\"\")","v":0},{"$f":"IFERROR(INDEX(Таблица1[13],_xlfn.AGGREGATE(15,6,(ROW(Таблица1[13])-ROW(Таблица1[[#Headers],[13]]))/(Таблица1[[месяц]:[месяц]]=$J$2)/(Таблица1[[год]:[год]]=$L$2)/(Таблица1[[изд]:[изд]]=$O$1)/(Таблица1[[партия]:[партия]]=$S$1),ROW(M10))),\"\")","v":0},{"$f":"IFERROR(INDEX(Таблица1[16],_xlfn.AGGREGATE(15,6,(ROW(Таблица1[16])-ROW(Таблица1[[#Headers],[16]]))/(Таблица1[[месяц]:[месяц]]=$J$2)/(Таблица1[[год]:[год]]=$L$2)/(Таблица1[[изд]:[изд]]=$O$1)/(Таблица1[[партия]:[партия]]=$S$1),ROW(N10))),\"\")","v":7.2},{"$f":"IFERROR(INDEX(Таблица1[17],_xlfn.AGGREGATE(15,6,(ROW(Таблица1[17])-ROW(Таблица1[[#Headers],[17]]))/(Таблица1[[месяц]:[месяц]]=$J$2)/(Таблица1[[год]:[год]]=$L$2)/(Таблица1[[изд]:[изд]]=$O$1)/(Таблица1[[партия]:[партия]]=$S$1),ROW(O10))),\"\")","v":7.2},{"$f":"IFERROR(INDEX(Таблица1[18],_xlfn.AGGREGATE(15,6,(ROW(Таблица1[18])-ROW(Таблица1[[#Headers],[18]]))/(Таблица1[[месяц]:[месяц]]=$J$2)/(Таблица1[[год]:[год]]=$L$2)/(Таблица1[[изд]:[изд]]=$O$1)/(Таблица1[[партия]:[партия]]=$S$1),ROW(P10))),\"\")","v":0},{"$f":"IFERROR(INDEX(Таблица1[19],_xlfn.AGGREGATE(15,6,(ROW(Таблица1[19])-ROW(Таблица1[[#Headers],[19]]))/(Таблица1[[месяц]:[месяц]]=$J$2)/(Таблица1[[год]:[год]]=$L$2)/(Таблица1[[изд]:[изд]]=$O$1)/(Таблица1[[партия]:[партия]]=$S$1),ROW(Q10))),\"\")","v":0},{"$f":"IFERROR(INDEX(Таблица1[20],_xlfn.AGGREGATE(15,6,(ROW(Таблица1[20])-ROW(Таблица1[[#Headers],[20]]))/(Таблица1[[месяц]:[месяц]]=$J$2)/(Таблица1[[год]:[год]]=$L$2)/(Таблица1[[изд]:[изд]]=$O$1)/(Таблица1[[партия]:[партия]]=$S$1),ROW(R10))),\"\")","v":0},{"$f":"IFERROR(INDEX(Таблица1[23],_xlfn.AGGREGATE(15,6,(ROW(Таблица1[23])-ROW(Таблица1[[#Headers],[23]]))/(Таблица1[[месяц]:[месяц]]=$J$2)/(Таблица1[[год]:[год]]=$L$2)/(Таблица1[[изд]:[изд]]=$O$1)/(Таблица1[[партия]:[партия]]=$S$1),ROW(S10))),\"\")","v":0},{"$f":"IFERROR(INDEX(Таблица1[24],_xlfn.AGGREGATE(15,6,(ROW(Таблица1[24])-ROW(Таблица1[[#Headers],[24]]))/(Таблица1[[месяц]:[месяц]]=$J$2)/(Таблица1[[год]:[год]]=$L$2)/(Таблица1[[изд]:[изд]]=$O$1)/(Таблица1[[партия]:[партия]]=$S$1),ROW(T10))),\"\")","v":7.2},{"$f":"IFERROR(INDEX(Таблица1[25],_xlfn.AGGREGATE(15,6,(ROW(Таблица1[25])-ROW(Таблица1[[#Headers],[25]]))/(Таблица1[[месяц]:[месяц]]=$J$2)/(Таблица1[[год]:[год]]=$L$2)/(Таблица1[[изд]:[изд]]=$O$1)/(Таблица1[[партия]:[партия]]=$S$1),ROW(U10))),\"\")","v":7.2},{"$f":"IFERROR(INDEX(Таблица1[26],_xlfn.AGGREGATE(15,6,(ROW(Таблица1[26])-ROW(Таблица1[[#Headers],[26]]))/(Таблица1[[месяц]:[месяц]]=$J$2)/(Таблица1[[год]:[год]]=$L$2)/(Таблица1[[изд]:[изд]]=$O$1)/(Таблица1[[партия]:[партия]]=$S$1),ROW(V10))),\"\")","v":0},{"$f":"IFERROR(INDEX(Таблица1[27],_xlfn.AGGREGATE(15,6,(ROW(Таблица1[27])-ROW(Таблица1[[#Headers],[27]]))/(Таблица1[[месяц]:[месяц]]=$J$2)/(Таблица1[[год]:[год]]=$L$2)/(Таблица1[[изд]:[изд]]=$O$1)/(Таблица1[[партия]:[партия]]=$S$1),ROW(W10))),\"\")","v":0},{"$f":"IFERROR(INDEX(Таблица1[30],_xlfn.AGGREGATE(15,6,(ROW(Таблица1[30])-ROW(Таблица1[[#Headers],[30]]))/(Таблица1[[месяц]:[месяц]]=$J$2)/(Таблица1[[год]:[год]]=$L$2)/(Таблица1[[изд]:[изд]]=$O$1)/(Таблица1[[партия]:[партия]]=$S$1),ROW(X10))),\"\")","v":0},{"$f":"IFERROR(INDEX(Таблица1[31],_xlfn.AGGREGATE(15,6,(ROW(Таблица1[31])-ROW(Таблица1[[#Headers],[31]]))/(Таблица1[[месяц]:[месяц]]=$J$2)/(Таблица1[[год]:[год]]=$L$2)/(Таблица1[[изд]:[изд]]=$O$1)/(Таблица1[[партия]:[партия]]=$S$1),ROW(Y10))),\"\")","v":0}]
[null,{"$f":"IFERROR(INDEX(Таблица1[коэф],_xlfn.AGGREGATE(15,6,(ROW(Таблица1[коэф])-ROW(Таблица1[[#Headers],[коэф]]))/(Таблица1[[месяц]:[месяц]]=$J$2)/(Таблица1[[год]:[год]]=$L$2)/(Таблица1[[изд]:[изд]]=$O$1)/(Таблица1[[партия]:[партия]]=$S$1),ROW(A11))),\"\")","v":1},{"$f":"IFERROR(INDEX(Таблица1[Ф. И. О.],_xlfn.AGGREGATE(15,6,(ROW(Таблица1[Ф. И. О.])-ROW(Таблица1[[#Headers],[Ф. И. О.]]))/(Таблица1[[месяц]:[месяц]]=$J$2)/(Таблица1[[год]:[год]]=$L$2)/(Таблица1[[изд]:[изд]]=$O$1)/(Таблица1[[партия]:[партия]]=$S$1),ROW(B11))),\"\")","v":"работник9"},{"$f":"IFERROR(INDEX(Таблица1[р/р],_xlfn.AGGREGATE(15,6,(ROW(Таблица1[р/р])-ROW(Таблица1[[#Headers],[р/р]]))/(Таблица1[[месяц]:[месяц]]=$J$2)/(Таблица1[[год]:[год]]=$L$2)/(Таблица1[[изд]:[изд]]=$O$1)/(Таблица1[[партия]:[партия]]=$S$1),ROW(C11))),\"\")","v":"3/16"},{"$f":"IFERROR(INDEX(Таблица1[2],_xlfn.AGGREGATE(15,6,(ROW(Таблица1[2])-ROW(Таблица1[[#Headers],[2]]))/(Таблица1[[месяц]:[месяц]]=$J$2)/(Таблица1[[год]:[год]]=$L$2)/(Таблица1[[изд]:[изд]]=$O$1)/(Таблица1[[партия]:[партия]]=$S$1),ROW(D11))),\"\")","v":0},{"$f":"IFERROR(INDEX(Таблица1[3],_xlfn.AGGREGATE(15,6,(ROW(Таблица1[3])-ROW(Таблица1[[#Headers],[3]]))/(Таблица1[[месяц]:[месяц]]=$J$2)/(Таблица1[[год]:[год]]=$L$2)/(Таблица1[[изд]:[изд]]=$O$1)/(Таблица1[[партия]:[партия]]=$S$1),ROW(E11))),\"\")","v":0},{"$f":"IFERROR(INDEX(Таблица1[4],_xlfn.AGGREGATE(15,6,(ROW(Таблица1[4])-ROW(Таблица1[[#Headers],[4]]))/(Таблица1[[месяц]:[месяц]]=$J$2)/(Таблица1[[год]:[год]]=$L$2)/(Таблица1[[изд]:[изд]]=$O$1)/(Таблица1[[партия]:[партия]]=$S$1),ROW(F11))),\"\")","v":0},{"$f":"IFERROR(INDEX(Таблица1[5],_xlfn.AGGREGATE(15,6,(ROW(Таблица1[5])-ROW(Таблица1[[#Headers],[5]]))/(Таблица1[[месяц]:[месяц]]=$J$2)/(Таблица1[[год]:[год]]=$L$2)/(Таблица1[[изд]:[изд]]=$O$1)/(Таблица1[[партия]:[партия]]=$S$1),ROW(G11))),\"\")","v":0},{"$f":"IFERROR(INDEX(Таблица1[6],_xlfn.AGGREGATE(15,6,(ROW(Таблица1[6])-ROW(Таблица1[[#Headers],[6]]))/(Таблица1[[месяц]:[месяц]]=$J$2)/(Таблица1[[год]:[год]]=$L$2)/(Таблица1[[изд]:[изд]]=$O$1)/(Таблица1[[партия]:[партия]]=$S$1),ROW(H11))),\"\")","v":0},{"$f":"IFERROR(INDEX(Таблица1[9],_xlfn.AGGREGATE(15,6,(ROW(Таблица1[9])-ROW(Таблица1[[#Headers],[9]]))/(Таблица1[[месяц]:[месяц]]=$J$2)/(Таблица1[[год]:[год]]=$L$2)/(Таблица1[[изд]:[изд]]=$O$1)/(Таблица1[[партия]:[партия]]=$S$1),ROW(I11))),\"\")","v":0},{"$f":"IFERROR(INDEX(Таблица1[10],_xlfn.AGGREGATE(15,6,(ROW(Таблица1[10])-ROW(Таблица1[[#Headers],[10]]))/(Таблица1[[месяц]:[месяц]]=$J$2)/(Таблица1[[год]:[год]]=$L$2)/(Таблица1[[изд]:[изд]]=$O$1)/(Таблица1[[партия]:[партия]]=$S$1),ROW(J11))),\"\")","v":0},{"$f":"IFERROR(INDEX(Таблица1[11],_xlfn.AGGREGATE(15,6,(ROW(Таблица1[11])-ROW(Таблица1[[#Headers],[11]]))/(Таблица1[[месяц]:[месяц]]=$J$2)/(Таблица1[[год]:[год]]=$L$2)/(Таблица1[[изд]:[изд]]=$O$1)/(Таблица1[[партия]:[партия]]=$S$1),ROW(K11))),\"\")","v":7.2},{"$f":"IFERROR(INDEX(Таблица1[12],_xlfn.AGGREGATE(15,6,(ROW(Таблица1[12])-ROW(Таблица1[[#Headers],[12]]))/(Таблица1[[месяц]:[месяц]]=$J$2)/(Таблица1[[год]:[год]]=$L$2)/(Таблица1[[изд]:[изд]]=$O$1)/(Таблица1[[партия]:[партия]]=$S$1),ROW(L11))),\"\")","v":7.2},{"$f":"IFERROR(INDEX(Таблица1[13],_xlfn.AGGREGATE(15,6,(ROW(Таблица1[13])-ROW(Таблица1[[#Headers],[13]]))/(Таблица1[[месяц]:[месяц]]=$J$2)/(Таблица1[[год]:[год]]=$L$2)/(Таблица1[[изд]:[изд]]=$O$1)/(Таблица1[[партия]:[партия]]=$S$1),ROW(M11))),\"\")","v":7.2},{"$f":"IFERROR(INDEX(Таблица1[16],_xlfn.AGGREGATE(15,6,(ROW(Таблица1[16])-ROW(Таблица1[[#Headers],[16]]))/(Таблица1[[месяц]:[месяц]]=$J$2)/(Таблица1[[год]:[год]]=$L$2)/(Таблица1[[изд]:[изд]]=$O$1)/(Таблица1[[партия]:[партия]]=$S$1),ROW(N11))),\"\")","v":7.2},{"$f":"IFERROR(INDEX(Таблица1[17],_xlfn.AGGREGATE(15,6,(ROW(Таблица1[17])-ROW(Таблица1[[#Headers],[17]]))/(Таблица1[[месяц]:[месяц]]=$J$2)/(Таблица1[[год]:[год]]=$L$2)/(Таблица1[[изд]:[изд]]=$O$1)/(Таблица1[[партия]:[партия]]=$S$1),ROW(O11))),\"\")","v":7.2},{"$f":"IFERROR(INDEX(Таблица1[18],_xlfn.AGGREGATE(15,6,(ROW(Таблица1[18])-ROW(Таблица1[[#Headers],[18]]))/(Таблица1[[месяц]:[месяц]]=$J$2)/(Таблица1[[год]:[год]]=$L$2)/(Таблица1[[изд]:[изд]]=$O$1)/(Таблица1[[партия]:[партия]]=$S$1),ROW(P11))),\"\")","v":7.2},{"$f":"IFERROR(INDEX(Таблица1[19],_xlfn.AGGREGATE(15,6,(ROW(Таблица1[19])-ROW(Таблица1[[#Headers],[19]]))/(Таблица1[[месяц]:[месяц]]=$J$2)/(Таблица1[[год]:[год]]=$L$2)/(Таблица1[[изд]:[изд]]=$O$1)/(Таблица1[[партия]:[партия]]=$S$1),ROW(Q11))),\"\")","v":7.2},{"$f":"IFERROR(INDEX(Таблица1[20],_xlfn.AGGREGATE(15,6,(ROW(Таблица1[20])-ROW(Таблица1[[#Headers],[20]]))/(Таблица1[[месяц]:[месяц]]=$J$2)/(Таблица1[[год]:[год]]=$L$2)/(Таблица1[[изд]:[изд]]=$O$1)/(Таблица1[[партия]:[партия]]=$S$1),ROW(R11))),\"\")","v":7.2},{"$f":"IFERROR(INDEX(Таблица1[23],_xlfn.AGGREGATE(15,6,(ROW(Таблица1[23])-ROW(Таблица1[[#Headers],[23]]))/(Таблица1[[месяц]:[месяц]]=$J$2)/(Таблица1[[год]:[год]]=$L$2)/(Таблица1[[изд]:[изд]]=$O$1)/(Таблица1[[партия]:[партия]]=$S$1),ROW(S11))),\"\")","v":0},{"$f":"IFERROR(INDEX(Таблица1[24],_xlfn.AGGREGATE(15,6,(ROW(Таблица1[24])-ROW(Таблица1[[#Headers],[24]]))/(Таблица1[[месяц]:[месяц]]=$J$2)/(Таблица1[[год]:[год]]=$L$2)/(Таблица1[[изд]:[изд]]=$O$1)/(Таблица1[[партия]:[партия]]=$S$1),ROW(T11))),\"\")","v":0},{"$f":"IFERROR(INDEX(Таблица1[25],_xlfn.AGGREGATE(15,6,(ROW(Таблица1[25])-ROW(Таблица1[[#Headers],[25]]))/(Таблица1[[месяц]:[месяц]]=$J$2)/(Таблица1[[год]:[год]]=$L$2)/(Таблица1[[изд]:[изд]]=$O$1)/(Таблица1[[партия]:[партия]]=$S$1),ROW(U11))),\"\")","v":0},{"$f":"IFERROR(INDEX(Таблица1[26],_xlfn.AGGREGATE(15,6,(ROW(Таблица1[26])-ROW(Таблица1[[#Headers],[26]]))/(Таблица1[[месяц]:[месяц]]=$J$2)/(Таблица1[[год]:[год]]=$L$2)/(Таблица1[[изд]:[изд]]=$O$1)/(Таблица1[[партия]:[партия]]=$S$1),ROW(V11))),\"\")","v":0},{"$f":"IFERROR(INDEX(Таблица1[27],_xlfn.AGGREGATE(15,6,(ROW(Таблица1[27])-ROW(Таблица1[[#Headers],[27]]))/(Таблица1[[месяц]:[месяц]]=$J$2)/(Таблица1[[год]:[год]]=$L$2)/(Таблица1[[изд]:[изд]]=$O$1)/(Таблица1[[партия]:[партия]]=$S$1),ROW(W11))),\"\")","v":0},{"$f":"IFERROR(INDEX(Таблица1[30],_xlfn.AGGREGATE(15,6,(ROW(Таблица1[30])-ROW(Таблица1[[#Headers],[30]]))/(Таблица1[[месяц]:[месяц]]=$J$2)/(Таблица1[[год]:[год]]=$L$2)/(Таблица1[[изд]:[изд]]=$O$1)/(Таблица1[[партия]:[партия]]=$S$1),ROW(X11))),\"\")","v":0},{"$f":"IFERROR(INDEX(Таблица1[31],_xlfn.AGGREGATE(15,6,(ROW(Таблица1[31])-ROW(Таблица1[[#Headers],[31]]))/(Таблица1[[месяц]:[месяц]]=$J$2)/(Таблица1[[год]:[год]]=$L$2)/(Таблица1[[изд]:[изд]]=$O$1)/(Таблица1[[партия]:[партия]]=$S$1),ROW(Y11))),\"\")","v":0}]
[null,{"$f":"IFERROR(INDEX(Таблица1[коэф],_xlfn.AGGREGATE(15,6,(ROW(Таблица1[коэф])-ROW(Таблица1[[#Headers],[коэф]]))/(Таблица1[[месяц]:[месяц]]=$J$2)/(Таблица1[[год]:[год]]=$L$2)/(Таблица1[[изд]:[изд]]=$O$1)/(Таблица1[[партия]:[партия]]=$S$1),ROW(A12))),\"\")","v":1.1000000000000001},{"$f":"IFERROR(INDEX(Таблица1[Ф. И. О.],_xlfn.AGGREGATE(15,6,(ROW(Таблица1[Ф. И. О.])-ROW(Таблица1[[#Headers],[Ф. И. О.]]))/(Таблица1[[месяц]:[месяц]]=$J$2)/(Таблица1[[год]:[год]]=$L$2)/(Таблица1[[изд]:[изд]]=$O$1)/(Таблица1[[партия]:[партия]]=$S$1),ROW(B12))),\"\")","v":"работник2"},{"$f":"IFERROR(INDEX(Таблица1[р/р],_xlfn.AGGREGATE(15,6,(ROW(Таблица1[р/р])-ROW(Таблица1[[#Headers],[р/р]]))/(Таблица1[[месяц]:[месяц]]=$J$2)/(Таблица1[[год]:[год]]=$L$2)/(Таблица1[[изд]:[изд]]=$O$1)/(Таблица1[[партия]:[партия]]=$S$1),ROW(C12))),\"\")","v":"3/16"},{"$f":"IFERROR(INDEX(Таблица1[2],_xlfn.AGGREGATE(15,6,(ROW(Таблица1[2])-ROW(Таблица1[[#Headers],[2]]))/(Таблица1[[месяц]:[месяц]]=$J$2)/(Таблица1[[год]:[год]]=$L$2)/(Таблица1[[изд]:[изд]]=$O$1)/(Таблица1[[партия]:[партия]]=$S$1),ROW(D12))),\"\")","v":0},{"$f":"IFERROR(INDEX(Таблица1[3],_xlfn.AGGREGATE(15,6,(ROW(Таблица1[3])-ROW(Таблица1[[#Headers],[3]]))/(Таблица1[[месяц]:[месяц]]=$J$2)/(Таблица1[[год]:[год]]=$L$2)/(Таблица1[[изд]:[изд]]=$O$1)/(Таблица1[[партия]:[партия]]=$S$1),ROW(E12))),\"\")","v":0},{"$f":"IFERROR(INDEX(Таблица1[4],_xlfn.AGGREGATE(15,6,(ROW(Таблица1[4])-ROW(Таблица1[[#Headers],[4]]))/(Таблица1[[месяц]:[месяц]]=$J$2)/(Таблица1[[год]:[год]]=$L$2)/(Таблица1[[изд]:[изд]]=$O$1)/(Таблица1[[партия]:[партия]]=$S$1),ROW(F12))),\"\")","v":5.2},{"$f":"IFERROR(INDEX(Таблица1[5],_xlfn.AGGREGATE(15,6,(ROW(Таблица1[5])-ROW(Таблица1[[#Headers],[5]]))/(Таблица1[[месяц]:[месяц]]=$J$2)/(Таблица1[[год]:[год]]=$L$2)/(Таблица1[[изд]:[изд]]=$O$1)/(Таблица1[[партия]:[партия]]=$S$1),ROW(G12))),\"\")","v":0},{"$f":"IFERROR(INDEX(Таблица1[6],_xlfn.AGGREGATE(15,6,(ROW(Таблица1[6])-ROW(Таблица1[[#Headers],[6]]))/(Таблица1[[месяц]:[месяц]]=$J$2)/(Таблица1[[год]:[год]]=$L$2)/(Таблица1[[изд]:[изд]]=$O$1)/(Таблица1[[партия]:[партия]]=$S$1),ROW(H12))),\"\")","v":0},{"$f":"IFERROR(INDEX(Таблица1[9],_xlfn.AGGREGATE(15,6,(ROW(Таблица1[9])-ROW(Таблица1[[#Headers],[9]]))/(Таблица1[[месяц]:[месяц]]=$J$2)/(Таблица1[[год]:[год]]=$L$2)/(Таблица1[[изд]:[изд]]=$O$1)/(Таблица1[[партия]:[партия]]=$S$1),ROW(I12))),\"\")","v":0},{"$f":"IFERROR(INDEX(Таблица1[10],_xlfn.AGGREGATE(15,6,(ROW(Таблица1[10])-ROW(Таблица1[[#Headers],[10]]))/(Таблица1[[месяц]:[месяц]]=$J$2)/(Таблица1[[год]:[год]]=$L$2)/(Таблица1[[изд]:[изд]]=$O$1)/(Таблица1[[партия]:[партия]]=$S$1),ROW(J12))),\"\")","v":0},{"$f":"IFERROR(INDEX(Таблица1[11],_xlfn.AGGREGATE(15,6,(ROW(Таблица1[11])-ROW(Таблица1[[#Headers],[11]]))/(Таблица1[[месяц]:[месяц]]=$J$2)/(Таблица1[[год]:[год]]=$L$2)/(Таблица1[[изд]:[изд]]=$O$1)/(Таблица1[[партия]:[партия]]=$S$1),ROW(K12))),\"\")","v":0},{"$f":"IFERROR(INDEX(Таблица1[12],_xlfn.AGGREGATE(15,6,(ROW(Таблица1[12])-ROW(Таблица1[[#Headers],[12]]))/(Таблица1[[месяц]:[месяц]]=$J$2)/(Таблица1[[год]:[год]]=$L$2)/(Таблица1[[изд]:[изд]]=$O$1)/(Таблица1[[партия]:[партия]]=$S$1),ROW(L12))),\"\")","v":0},{"$f":"IFERROR(INDEX(Таблица1[13],_xlfn.AGGREGATE(15,6,(ROW(Таблица1[13])-ROW(Таблица1[[#Headers],[13]]))/(Таблица1[[месяц]:[месяц]]=$J$2)/(Таблица1[[год]:[год]]=$L$2)/(Таблица1[[изд]:[изд]]=$O$1)/(Таблица1[[партия]:[партия]]=$S$1),ROW(M12))),\"\")","v":0},{"$f":"IFERROR(INDEX(Таблица1[16],_xlfn.AGGREGATE(15,6,(ROW(Таблица1[16])-ROW(Таблица1[[#Headers],[16]]))/(Таблица1[[месяц]:[месяц]]=$J$2)/(Таблица1[[год]:[год]]=$L$2)/(Таблица1[[изд]:[изд]]=$O$1)/(Таблица1[[партия]:[партия]]=$S$1),ROW(N12))),\"\")","v":0},{"$f":"IFERROR(INDEX(Таблица1[17],_xlfn.AGGREGATE(15,6,(ROW(Таблица1[17])-ROW(Таблица1[[#Headers],[17]]))/(Таблица1[[месяц]:[месяц]]=$J$2)/(Таблица1[[год]:[год]]=$L$2)/(Таблица1[[изд]:[изд]]=$O$1)/(Таблица1[[партия]:[партия]]=$S$1),ROW(O12))),\"\")","v":0},{"$f":"IFERROR(INDEX(Таблица1[18],_xlfn.AGGREGATE(15,6,(ROW(Таблица1[18])-ROW(Таблица1[[#Headers],[18]]))/(Таблица1[[месяц]:[месяц]]=$J$2)/(Таблица1[[год]:[год]]=$L$2)/(Таблица1[[изд]:[изд]]=$O$1)/(Таблица1[[партия]:[партия]]=$S$1),ROW(P12))),\"\")","v":0},{"$f":"IFERROR(INDEX(Таблица1[19],_xlfn.AGGREGATE(15,6,(ROW(Таблица1[19])-ROW(Таблица1[[#Headers],[19]]))/(Таблица1[[месяц]:[месяц]]=$J$2)/(Таблица1[[год]:[год]]=$L$2)/(Таблица1[[изд]:[изд]]=$O$1)/(Таблица1[[партия]:[партия]]=$S$1),ROW(Q12))),\"\")","v":0},{"$f":"IFERROR(INDEX(Таблица1[20],_xlfn.AGGREGATE(15,6,(ROW(Таблица1[20])-ROW(Таблица1[[#Headers],[20]]))/(Таблица1[[месяц]:[месяц]]=$J$2)/(Таблица1[[год]:[год]]=$L$2)/(Таблица1[[изд]:[изд]]=$O$1)/(Таблица1[[партия]:[партия]]=$S$1),ROW(R12))),\"\")","v":0},{"$f":"IFERROR(INDEX(Таблица1[23],_xlfn.AGGREGATE(15,6,(ROW(Таблица1[23])-ROW(Таблица1[[#Headers],[23]]))/(Таблица1[[месяц]:[месяц]]=$J$2)/(Таблица1[[год]:[год]]=$L$2)/(Таблица1[[изд]:[изд]]=$O$1)/(Таблица1[[партия]:[партия]]=$S$1),ROW(S12))),\"\")","v":0},{"$f":"IFERROR(INDEX(Таблица1[24],_xlfn.AGGREGATE(15,6,(ROW(Таблица1[24])-ROW(Таблица1[[#Headers],[24]]))/(Таблица1[[месяц]:[месяц]]=$J$2)/(Таблица1[[год]:[год]]=$L$2)/(Таблица1[[изд]:[изд]]=$O$1)/(Таблица1[[партия]:[партия]]=$S$1),ROW(T12))),\"\")","v":0},{"$f":"IFERROR(INDEX(Таблица1[25],_xlfn.AGGREGATE(15,6,(ROW(Таблица1[25])-ROW(Таблица1[[#Headers],[25]]))/(Таблица1[[месяц]:[месяц]]=$J$2)/(Таблица1[[год]:[год]]=$L$2)/(Таблица1[[изд]:[изд]]=$O$1)/(Таблица1[[партия]:[партия]]=$S$1),ROW(U12))),\"\")","v":7.2},{"$f":"IFERROR(INDEX(Таблица1[26],_xlfn.AGGREGATE(15,6,(ROW(Таблица1[26])-ROW(Таблица1[[#Headers],[26]]))/(Таблица1[[месяц]:[месяц]]=$J$2)/(Таблица1[[год]:[год]]=$L$2)/(Таблица1[[изд]:[изд]]=$O$1)/(Таблица1[[партия]:[партия]]=$S$1),ROW(V12))),\"\")","v":0},{"$f":"IFERROR(INDEX(Таблица1[27],_xlfn.AGGREGATE(15,6,(ROW(Таблица1[27])-ROW(Таблица1[[#Headers],[27]]))/(Таблица1[[месяц]:[месяц]]=$J$2)/(Таблица1[[год]:[год]]=$L$2)/(Таблица1[[изд]:[изд]]=$O$1)/(Таблица1[[партия]:[партия]]=$S$1),ROW(W12))),\"\")","v":0},{"$f":"IFERROR(INDEX(Таблица1[30],_xlfn.AGGREGATE(15,6,(ROW(Таблица1[30])-ROW(Таблица1[[#Headers],[30]]))/(Таблица1[[месяц]:[месяц]]=$J$2)/(Таблица1[[год]:[год]]=$L$2)/(Таблица1[[изд]:[изд]]=$O$1)/(Таблица1[[партия]:[партия]]=$S$1),ROW(X12))),\"\")","v":0},{"$f":"IFERROR(INDEX(Таблица1[31],_xlfn.AGGREGATE(15,6,(ROW(Таблица1[31])-ROW(Таблица1[[#Headers],[31]]))/(Таблица1[[месяц]:[месяц]]=$J$2)/(Таблица1[[год]:[год]]=$L$2)/(Таблица1[[изд]:[изд]]=$O$1)/(Таблица1[[партия]:[партия]]=$S$1),ROW(Y12))),\"\")","v":0}]
[null,{"$f":"IFERROR(INDEX(Таблица1[коэф],_xlfn.AGGREGATE(15,6,(ROW(Таблица1[коэф])-ROW(Таблица1[[#Headers],[коэф]]))/(Таблица1[[месяц]:[месяц]]=$J$2)/(Таблица1[[год]:[год]]=$L$2)/(Таблица1[[изд]:[изд]]=$O$1)/(Таблица1[[партия]:[партия]]=$S$1),ROW(A13))),\"\")","v":""},{"$f":"IFERROR(INDEX(Таблица1[Ф. И. О.],_xlfn.AGGREGATE(15,6,(ROW(Таблица1[Ф. И. О.])-ROW(Таблица1[[#Headers],[Ф. И. О.]]))/(Таблица1[[месяц]:[месяц]]=$J$2)/(Таблица1[[год]:[год]]=$L$2)/(Таблица1[[изд]:[изд]]=$O$1)/(Таблица1[[партия]:[партия]]=$S$1),ROW(B13))),\"\")","v":""},{"$f":"IFERROR(INDEX(Таблица1[р/р],_xlfn.AGGREGATE(15,6,(ROW(Таблица1[р/р])-ROW(Таблица1[[#Headers],[р/р]]))/(Таблица1[[месяц]:[месяц]]=$J$2)/(Таблица1[[год]:[год]]=$L$2)/(Таблица1[[изд]:[изд]]=$O$1)/(Таблица1[[партия]:[партия]]=$S$1),ROW(C13))),\"\")","v":""},{"$f":"IFERROR(INDEX(Таблица1[2],_xlfn.AGGREGATE(15,6,(ROW(Таблица1[2])-ROW(Таблица1[[#Headers],[2]]))/(Таблица1[[месяц]:[месяц]]=$J$2)/(Таблица1[[год]:[год]]=$L$2)/(Таблица1[[изд]:[изд]]=$O$1)/(Таблица1[[партия]:[партия]]=$S$1),ROW(D13))),\"\")","v":""},{"$f":"IFERROR(INDEX(Таблица1[3],_xlfn.AGGREGATE(15,6,(ROW(Таблица1[3])-ROW(Таблица1[[#Headers],[3]]))/(Таблица1[[месяц]:[месяц]]=$J$2)/(Таблица1[[год]:[год]]=$L$2)/(Таблица1[[изд]:[изд]]=$O$1)/(Таблица1[[партия]:[партия]]=$S$1),ROW(E13))),\"\")","v":""},{"$f":"IFERROR(INDEX(Таблица1[4],_xlfn.AGGREGATE(15,6,(ROW(Таблица1[4])-ROW(Таблица1[[#Headers],[4]]))/(Таблица1[[месяц]:[месяц]]=$J$2)/(Таблица1[[год]:[год]]=$L$2)/(Таблица1[[изд]:[изд]]=$O$1)/(Таблица1[[партия]:[партия]]=$S$1),ROW(F13))),\"\")","v":""},{"$f":"IFERROR(INDEX(Таблица1[5],_xlfn.AGGREGATE(15,6,(ROW(Таблица1[5])-ROW(Таблица1[[#Headers],[5]]))/(Таблица1[[месяц]:[месяц]]=$J$2)/(Таблица1[[год]:[год]]=$L$2)/(Таблица1[[изд]:[изд]]=$O$1)/(Таблица1[[партия]:[партия]]=$S$1),ROW(G13))),\"\")","v":""},{"$f":"IFERROR(INDEX(Таблица1[6],_xlfn.AGGREGATE(15,6,(ROW(Таблица1[6])-ROW(Таблица1[[#Headers],[6]]))/(Таблица1[[месяц]:[месяц]]=$J$2)/(Таблица1[[год]:[год]]=$L$2)/(Таблица1[[изд]:[изд]]=$O$1)/(Таблица1[[партия]:[партия]]=$S$1),ROW(H13))),\"\")","v":""},{"$f":"IFERROR(INDEX(Таблица1[9],_xlfn.AGGREGATE(15,6,(ROW(Таблица1[9])-ROW(Таблица1[[#Headers],[9]]))/(Таблица1[[месяц]:[месяц]]=$J$2)/(Таблица1[[год]:[год]]=$L$2)/(Таблица1[[изд]:[изд]]=$O$1)/(Таблица1[[партия]:[партия]]=$S$1),ROW(I13))),\"\")","v":""},{"$f":"IFERROR(INDEX(Таблица1[10],_xlfn.AGGREGATE(15,6,(ROW(Таблица1[10])-ROW(Таблица1[[#Headers],[10]]))/(Таблица1[[месяц]:[месяц]]=$J$2)/(Таблица1[[год]:[год]]=$L$2)/(Таблица1[[изд]:[изд]]=$O$1)/(Таблица1[[партия]:[партия]]=$S$1),ROW(J13))),\"\")","v":""},{"$f":"IFERROR(INDEX(Таблица1[11],_xlfn.AGGREGATE(15,6,(ROW(Таблица1[11])-ROW(Таблица1[[#Headers],[11]]))/(Таблица1[[месяц]:[месяц]]=$J$2)/(Таблица1[[год]:[год]]=$L$2)/(Таблица1[[изд]:[изд]]=$O$1)/(Таблица1[[партия]:[партия]]=$S$1),ROW(K13))),\"\")","v":""},{"$f":"IFERROR(INDEX(Таблица1[12],_xlfn.AGGREGATE(15,6,(ROW(Таблица1[12])-ROW(Таблица1[[#Headers],[12]]))/(Таблица1[[месяц]:[месяц]]=$J$2)/(Таблица1[[год]:[год]]=$L$2)/(Таблица1[[изд]:[изд]]=$O$1)/(Таблица1[[партия]:[партия]]=$S$1),ROW(L13))),\"\")","v":""},{"$f":"IFERROR(INDEX(Таблица1[13],_xlfn.AGGREGATE(15,6,(ROW(Таблица1[13])-ROW(Таблица1[[#Headers],[13]]))/(Таблица1[[месяц]:[месяц]]=$J$2)/(Таблица1[[год]:[год]]=$L$2)/(Таблица1[[изд]:[изд]]=$O$1)/(Таблица1[[партия]:[партия]]=$S$1),ROW(M13))),\"\")","v":""},{"$f":"IFERROR(INDEX(Таблица1[16],_xlfn.AGGREGATE(15,6,(ROW(Таблица1[16])-ROW(Таблица1[[#Headers],[16]]))/(Таблица1[[месяц]:[месяц]]=$J$2)/(Таблица1[[год]:[год]]=$L$2)/(Таблица1[[изд]:[изд]]=$O$1)/(Таблица1[[партия]:[партия]]=$S$1),ROW(N13))),\"\")","v":""},{"$f":"IFERROR(INDEX(Таблица1[17],_xlfn.AGGREGATE(15,6,(ROW(Таблица1[17])-ROW(Таблица1[[#Headers],[17]]))/(Таблица1[[месяц]:[месяц]]=$J$2)/(Таблица1[[год]:[год]]=$L$2)/(Таблица1[[изд]:[изд]]=$O$1)/(Таблица1[[партия]:[партия]]=$S$1),ROW(O13))),\"\")","v":""},{"$f":"IFERROR(INDEX(Таблица1[18],_xlfn.AGGREGATE(15,6,(ROW(Таблица1[18])-ROW(Таблица1[[#Headers],[18]]))/(Таблица1[[месяц]:[месяц]]=$J$2)/(Таблица1[[год]:[год]]=$L$2)/(Таблица1[[изд]:[изд]]=$O$1)/(Таблица1[[партия]:[партия]]=$S$1),ROW(P13))),\"\")","v":""},{"$f":"IFERROR(INDEX(Таблица1[19],_xlfn.AGGREGATE(15,6,(ROW(Таблица1[19])-ROW(Таблица1[[#Headers],[19]]))/(Таблица1[[месяц]:[месяц]]=$J$2)/(Таблица1[[год]:[год]]=$L$2)/(Таблица1[[изд]:[изд]]=$O$1)/(Таблица1[[партия]:[партия]]=$S$1),ROW(Q13))),\"\")","v":""},{"$f":"IFERROR(INDEX(Таблица1[20],_xlfn.AGGREGATE(15,6,(ROW(Таблица1[20])-ROW(Таблица1[[#Headers],[20]]))/(Таблица1[[месяц]:[месяц]]=$J$2)/(Таблица1[[год]:[год]]=$L$2)/(Таблица1[[изд]:[изд]]=$O$1)/(Таблица1[[партия]:[партия]]=$S$1),ROW(R13))),\"\")","v":""},{"$f":"IFERROR(INDEX(Таблица1[23],_xlfn.AGGREGATE(15,6,(ROW(Таблица1[23])-ROW(Таблица1[[#Headers],[23]]))/(Таблица1[[месяц]:[месяц]]=$J$2)/(Таблица1[[год]:[год]]=$L$2)/(Таблица1[[изд]:[изд]]=$O$1)/(Таблица1[[партия]:[партия]]=$S$1),ROW(S13))),\"\")","v":""},{"$f":"IFERROR(INDEX(Таблица1[24],_xlfn.AGGREGATE(15,6,(ROW(Таблица1[24])-ROW(Таблица1[[#Headers],[24]]))/(Таблица1[[месяц]:[месяц]]=$J$2)/(Таблица1[[год]:[год]]=$L$2)/(Таблица1[[изд]:[изд]]=$O$1)/(Таблица1[[партия]:[партия]]=$S$1),ROW(T13))),\"\")","v":""},{"$f":"IFERROR(INDEX(Таблица1[25],_xlfn.AGGREGATE(15,6,(ROW(Таблица1[25])-ROW(Таблица1[[#Headers],[25]]))/(Таблица1[[месяц]:[месяц]]=$J$2)/(Таблица1[[год]:[год]]=$L$2)/(Таблица1[[изд]:[изд]]=$O$1)/(Таблица1[[партия]:[партия]]=$S$1),ROW(U13))),\"\")","v":""},{"$f":"IFERROR(INDEX(Таблица1[26],_xlfn.AGGREGATE(15,6,(ROW(Таблица1[26])-ROW(Таблица1[[#Headers],[26]]))/(Таблица1[[месяц]:[месяц]]=$J$2)/(Таблица1[[год]:[год]]=$L$2)/(Таблица1[[изд]:[изд]]=$O$1)/(Таблица1[[партия]:[партия]]=$S$1),ROW(V13))),\"\")","v":""},{"$f":"IFERROR(INDEX(Таблица1[27],_xlfn.AGGREGATE(15,6,(ROW(Таблица1[27])-ROW(Таблица1[[#Headers],[27]]))/(Таблица1[[месяц]:[месяц]]=$J$2)/(Таблица1[[год]:[год]]=$L$2)/(Таблица1[[изд]:[изд]]=$O$1)/(Таблица1[[партия]:[партия]]=$S$1),ROW(W13))),\"\")","v":""},{"$f":"IFERROR(INDEX(Таблица1[30],_xlfn.AGGREGATE(15,6,(ROW(Таблица1[30])-ROW(Таблица1[[#Headers],[30]]))/(Таблица1[[месяц]:[месяц]]=$J$2)/(Таблица1[[год]:[год]]=$L$2)/(Таблица1[[изд]:[изд]]=$O$1)/(Таблица1[[партия]:[партия]]=$S$1),ROW(X13))),\"\")","v":""},{"$f":"IFERROR(INDEX(Таблица1[31],_xlfn.AGGREGATE(15,6,(ROW(Таблица1[31])-ROW(Таблица1[[#Headers],[31]]))/(Таблица1[[месяц]:[месяц]]=$J$2)/(Таблица1[[год]:[год]]=$L$2)/(Таблица1[[изд]:[изд]]=$O$1)/(Таблица1[[партия]:[партия]]=$S$1),ROW(Y13))),\"\")","v":""}]
[null,{"$f":"IFERROR(INDEX(Таблица1[коэф],_xlfn.AGGREGATE(15,6,(ROW(Таблица1[коэф])-ROW(Таблица1[[#Headers],[коэф]]))/(Таблица1[[месяц]:[месяц]]=$J$2)/(Таблица1[[год]:[год]]=$L$2)/(Таблица1[[изд]:[изд]]=$O$1)/(Таблица1[[партия]:[партия]]=$S$1),ROW(A14))),\"\")","v":""},{"$f":"IFERROR(INDEX(Таблица1[Ф. И. О.],_xlfn.AGGREGATE(15,6,(ROW(Таблица1[Ф. И. О.])-ROW(Таблица1[[#Headers],[Ф. И. О.]]))/(Таблица1[[месяц]:[месяц]]=$J$2)/(Таблица1[[год]:[год]]=$L$2)/(Таблица1[[изд]:[изд]]=$O$1)/(Таблица1[[партия]:[партия]]=$S$1),ROW(B14))),\"\")","v":""},{"$f":"IFERROR(INDEX(Таблица1[р/р],_xlfn.AGGREGATE(15,6,(ROW(Таблица1[р/р])-ROW(Таблица1[[#Headers],[р/р]]))/(Таблица1[[месяц]:[месяц]]=$J$2)/(Таблица1[[год]:[год]]=$L$2)/(Таблица1[[изд]:[изд]]=$O$1)/(Таблица1[[партия]:[партия]]=$S$1),ROW(C14))),\"\")","v":""},{"$f":"IFERROR(INDEX(Таблица1[2],_xlfn.AGGREGATE(15,6,(ROW(Таблица1[2])-ROW(Таблица1[[#Headers],[2]]))/(Таблица1[[месяц]:[месяц]]=$J$2)/(Таблица1[[год]:[год]]=$L$2)/(Таблица1[[изд]:[изд]]=$O$1)/(Таблица1[[партия]:[партия]]=$S$1),ROW(D14))),\"\")","v":""},{"$f":"IFERROR(INDEX(Таблица1[3],_xlfn.AGGREGATE(15,6,(ROW(Таблица1[3])-ROW(Таблица1[[#Headers],[3]]))/(Таблица1[[месяц]:[месяц]]=$J$2)/(Таблица1[[год]:[год]]=$L$2)/(Таблица1[[изд]:[изд]]=$O$1)/(Таблица1[[партия]:[партия]]=$S$1),ROW(E14))),\"\")","v":""},{"$f":"IFERROR(INDEX(Таблица1[4],_xlfn.AGGREGATE(15,6,(ROW(Таблица1[4])-ROW(Таблица1[[#Headers],[4]]))/(Таблица1[[месяц]:[месяц]]=$J$2)/(Таблица1[[год]:[год]]=$L$2)/(Таблица1[[изд]:[изд]]=$O$1)/(Таблица1[[партия]:[партия]]=$S$1),ROW(F14))),\"\")","v":""},{"$f":"IFERROR(INDEX(Таблица1[5],_xlfn.AGGREGATE(15,6,(ROW(Таблица1[5])-ROW(Таблица1[[#Headers],[5]]))/(Таблица1[[месяц]:[месяц]]=$J$2)/(Таблица1[[год]:[год]]=$L$2)/(Таблица1[[изд]:[изд]]=$O$1)/(Таблица1[[партия]:[партия]]=$S$1),ROW(G14))),\"\")","v":""},{"$f":"IFERROR(INDEX(Таблица1[6],_xlfn.AGGREGATE(15,6,(ROW(Таблица1[6])-ROW(Таблица1[[#Headers],[6]]))/(Таблица1[[месяц]:[месяц]]=$J$2)/(Таблица1[[год]:[год]]=$L$2)/(Таблица1[[изд]:[изд]]=$O$1)/(Таблица1[[партия]:[партия]]=$S$1),ROW(H14))),\"\")","v":""},{"$f":"IFERROR(INDEX(Таблица1[9],_xlfn.AGGREGATE(15,6,(ROW(Таблица1[9])-ROW(Таблица1[[#Headers],[9]]))/(Таблица1[[месяц]:[месяц]]=$J$2)/(Таблица1[[год]:[год]]=$L$2)/(Таблица1[[изд]:[изд]]=$O$1)/(Таблица1[[партия]:[партия]]=$S$1),ROW(I14))),\"\")","v":""},{"$f":"IFERROR(INDEX(Таблица1[10],_xlfn.AGGREGATE(15,6,(ROW(Таблица1[10])-ROW(Таблица1[[#Headers],[10]]))/(Таблица1[[месяц]:[месяц]]=$J$2)/(Таблица1[[год]:[год]]=$L$2)/(Таблица1[[изд]:[изд]]=$O$1)/(Таблица1[[партия]:[партия]]=$S$1),ROW(J14))),\"\")","v":""},{"$f":"IFERROR(INDEX(Таблица1[11],_xlfn.AGGREGATE(15,6,(ROW(Таблица1[11])-ROW(Таблица1[[#Headers],[11]]))/(Таблица1[[месяц]:[месяц]]=$J$2)/(Таблица1[[год]:[год]]=$L$2)/(Таблица1[[изд]:[изд]]=$O$1)/(Таблица1[[партия]:[партия]]=$S$1),ROW(K14))),\"\")","v":""},{"$f":"IFERROR(INDEX(Таблица1[12],_xlfn.AGGREGATE(15,6,(ROW(Таблица1[12])-ROW(Таблица1[[#Headers],[12]]))/(Таблица1[[месяц]:[месяц]]=$J$2)/(Таблица1[[год]:[год]]=$L$2)/(Таблица1[[изд]:[изд]]=$O$1)/(Таблица1[[партия]:[партия]]=$S$1),ROW(L14))),\"\")","v":""},{"$f":"IFERROR(INDEX(Таблица1[13],_xlfn.AGGREGATE(15,6,(ROW(Таблица1[13])-ROW(Таблица1[[#Headers],[13]]))/(Таблица1[[месяц]:[месяц]]=$J$2)/(Таблица1[[год]:[год]]=$L$2)/(Таблица1[[изд]:[изд]]=$O$1)/(Таблица1[[партия]:[партия]]=$S$1),ROW(M14))),\"\")","v":""},{"$f":"IFERROR(INDEX(Таблица1[16],_xlfn.AGGREGATE(15,6,(ROW(Таблица1[16])-ROW(Таблица1[[#Headers],[16]]))/(Таблица1[[месяц]:[месяц]]=$J$2)/(Таблица1[[год]:[год]]=$L$2)/(Таблица1[[изд]:[изд]]=$O$1)/(Таблица1[[партия]:[партия]]=$S$1),ROW(N14))),\"\")","v":""},{"$f":"IFERROR(INDEX(Таблица1[17],_xlfn.AGGREGATE(15,6,(ROW(Таблица1[17])-ROW(Таблица1[[#Headers],[17]]))/(Таблица1[[месяц]:[месяц]]=$J$2)/(Таблица1[[год]:[год]]=$L$2)/(Таблица1[[изд]:[изд]]=$O$1)/(Таблица1[[партия]:[партия]]=$S$1),ROW(O14))),\"\")","v":""},{"$f":"IFERROR(INDEX(Таблица1[18],_xlfn.AGGREGATE(15,6,(ROW(Таблица1[18])-ROW(Таблица1[[#Headers],[18]]))/(Таблица1[[месяц]:[месяц]]=$J$2)/(Таблица1[[год]:[год]]=$L$2)/(Таблица1[[изд]:[изд]]=$O$1)/(Таблица1[[партия]:[партия]]=$S$1),ROW(P14))),\"\")","v":""},{"$f":"IFERROR(INDEX(Таблица1[19],_xlfn.AGGREGATE(15,6,(ROW(Таблица1[19])-ROW(Таблица1[[#Headers],[19]]))/(Таблица1[[месяц]:[месяц]]=$J$2)/(Таблица1[[год]:[год]]=$L$2)/(Таблица1[[изд]:[изд]]=$O$1)/(Таблица1[[партия]:[партия]]=$S$1),ROW(Q14))),\"\")","v":""},{"$f":"IFERROR(INDEX(Таблица1[20],_xlfn.AGGREGATE(15,6,(ROW(Таблица1[20])-ROW(Таблица1[[#Headers],[20]]))/(Таблица1[[месяц]:[месяц]]=$J$2)/(Таблица1[[год]:[год]]=$L$2)/(Таблица1[[изд]:[изд]]=$O$1)/(Таблица1[[партия]:[партия]]=$S$1),ROW(R14))),\"\")","v":""},{"$f":"IFERROR(INDEX(Таблица1[23],_xlfn.AGGREGATE(15,6,(ROW(Таблица1[23])-ROW(Таблица1[[#Headers],[23]]))/(Таблица1[[месяц]:[месяц]]=$J$2)/(Таблица1[[год]:[год]]=$L$2)/(Таблица1[[изд]:[изд]]=$O$1)/(Таблица1[[партия]:[партия]]=$S$1),ROW(S14))),\"\")","v":""},{"$f":"IFERROR(INDEX(Таблица1[24],_xlfn.AGGREGATE(15,6,(ROW(Таблица1[24])-ROW(Таблица1[[#Headers],[24]]))/(Таблица1[[месяц]:[месяц]]=$J$2)/(Таблица1[[год]:[год]]=$L$2)/(Таблица1[[изд]:[изд]]=$O$1)/(Таблица1[[партия]:[партия]]=$S$1),ROW(T14))),\"\")","v":""},{"$f":"IFERROR(INDEX(Таблица1[25],_xlfn.AGGREGATE(15,6,(ROW(Таблица1[25])-ROW(Таблица1[[#Headers],[25]]))/(Таблица1[[месяц]:[месяц]]=$J$2)/(Таблица1[[год]:[год]]=$L$2)/(Таблица1[[изд]:[изд]]=$O$1)/(Таблица1[[партия]:[партия]]=$S$1),ROW(U14))),\"\")","v":""},{"$f":"IFERROR(INDEX(Таблица1[26],_xlfn.AGGREGATE(15,6,(ROW(Таблица1[26])-ROW(Таблица1[[#Headers],[26]]))/(Таблица1[[месяц]:[месяц]]=$J$2)/(Таблица1[[год]:[год]]=$L$2)/(Таблица1[[изд]:[изд]]=$O$1)/(Таблица1[[партия]:[партия]]=$S$1),ROW(V14))),\"\")","v":""},{"$f":"IFERROR(INDEX(Таблица1[27],_xlfn.AGGREGATE(15,6,(ROW(Таблица1[27])-ROW(Таблица1[[#Headers],[27]]))/(Таблица1[[месяц]:[месяц]]=$J$2)/(Таблица1[[год]:[год]]=$L$2)/(Таблица1[[изд]:[изд]]=$O$1)/(Таблица1[[партия]:[партия]]=$S$1),ROW(W14))),\"\")","v":""},{"$f":"IFERROR(INDEX(Таблица1[30],_xlfn.AGGREGATE(15,6,(ROW(Таблица1[30])-ROW(Таблица1[[#Headers],[30]]))/(Таблица1[[месяц]:[месяц]]=$J$2)/(Таблица1[[год]:[год]]=$L$2)/(Таблица1[[изд]:[изд]]=$O$1)/(Таблица1[[партия]:[партия]]=$S$1),ROW(X14))),\"\")","v":""},{"$f":"IFERROR(INDEX(Таблица1[31],_xlfn.AGGREGATE(15,6,(ROW(Таблица1[31])-ROW(Таблица1[[#Headers],[31]]))/(Таблица1[[месяц]:[месяц]]=$J$2)/(Таблица1[[год]:[год]]=$L$2)/(Таблица1[[изд]:[изд]]=$O$1)/(Таблица1[[партия]:[партия]]=$S$1),ROW(Y14))),\"\")","v":""}]
[null,{"$f":"IFERROR(INDEX(Таблица1[коэф],_xlfn.AGGREGATE(15,6,(ROW(Таблица1[коэф])-ROW(Таблица1[[#Headers],[коэф]]))/(Таблица1[[месяц]:[месяц]]=$J$2)/(Таблица1[[год]:[год]]=$L$2)/(Таблица1[[изд]:[изд]]=$O$1)/(Таблица1[[партия]:[партия]]=$S$1),ROW(A15))),\"\")","v":""},{"$f":"IFERROR(INDEX(Таблица1[Ф. И. О.],_xlfn.AGGREGATE(15,6,(ROW(Таблица1[Ф. И. О.])-ROW(Таблица1[[#Headers],[Ф. И. О.]]))/(Таблица1[[месяц]:[месяц]]=$J$2)/(Таблица1[[год]:[год]]=$L$2)/(Таблица1[[изд]:[изд]]=$O$1)/(Таблица1[[партия]:[партия]]=$S$1),ROW(B15))),\"\")","v":""},{"$f":"IFERROR(INDEX(Таблица1[р/р],_xlfn.AGGREGATE(15,6,(ROW(Таблица1[р/р])-ROW(Таблица1[[#Headers],[р/р]]))/(Таблица1[[месяц]:[месяц]]=$J$2)/(Таблица1[[год]:[год]]=$L$2)/(Таблица1[[изд]:[изд]]=$O$1)/(Таблица1[[партия]:[партия]]=$S$1),ROW(C15))),\"\")","v":""},{"$f":"IFERROR(INDEX(Таблица1[2],_xlfn.AGGREGATE(15,6,(ROW(Таблица1[2])-ROW(Таблица1[[#Headers],[2]]))/(Таблица1[[месяц]:[месяц]]=$J$2)/(Таблица1[[год]:[год]]=$L$2)/(Таблица1[[изд]:[изд]]=$O$1)/(Таблица1[[партия]:[партия]]=$S$1),ROW(D15))),\"\")","v":""},{"$f":"IFERROR(INDEX(Таблица1[3],_xlfn.AGGREGATE(15,6,(ROW(Таблица1[3])-ROW(Таблица1[[#Headers],[3]]))/(Таблица1[[месяц]:[месяц]]=$J$2)/(Таблица1[[год]:[год]]=$L$2)/(Таблица1[[изд]:[изд]]=$O$1)/(Таблица1[[партия]:[партия]]=$S$1),ROW(E15))),\"\")","v":""},{"$f":"IFERROR(INDEX(Таблица1[4],_xlfn.AGGREGATE(15,6,(ROW(Таблица1[4])-ROW(Таблица1[[#Headers],[4]]))/(Таблица1[[месяц]:[месяц]]=$J$2)/(Таблица1[[год]:[год]]=$L$2)/(Таблица1[[изд]:[изд]]=$O$1)/(Таблица1[[партия]:[партия]]=$S$1),ROW(F15))),\"\")","v":""},{"$f":"IFERROR(INDEX(Таблица1[5],_xlfn.AGGREGATE(15,6,(ROW(Таблица1[5])-ROW(Таблица1[[#Headers],[5]]))/(Таблица1[[месяц]:[месяц]]=$J$2)/(Таблица1[[год]:[год]]=$L$2)/(Таблица1[[изд]:[изд]]=$O$1)/(Таблица1[[партия]:[партия]]=$S$1),ROW(G15))),\"\")","v":""},{"$f":"IFERROR(INDEX(Таблица1[6],_xlfn.AGGREGATE(15,6,(ROW(Таблица1[6])-ROW(Таблица1[[#Headers],[6]]))/(Таблица1[[месяц]:[месяц]]=$J$2)/(Таблица1[[год]:[год]]=$L$2)/(Таблица1[[изд]:[изд]]=$O$1)/(Таблица1[[партия]:[партия]]=$S$1),ROW(H15))),\"\")","v":""},{"$f":"IFERROR(INDEX(Таблица1[9],_xlfn.AGGREGATE(15,6,(ROW(Таблица1[9])-ROW(Таблица1[[#Headers],[9]]))/(Таблица1[[месяц]:[месяц]]=$J$2)/(Таблица1[[год]:[год]]=$L$2)/(Таблица1[[изд]:[изд]]=$O$1)/(Таблица1[[партия]:[партия]]=$S$1),ROW(I15))),\"\")","v":""},{"$f":"IFERROR(INDEX(Таблица1[10],_xlfn.AGGREGATE(15,6,(ROW(Таблица1[10])-ROW(Таблица1[[#Headers],[10]]))/(Таблица1[[месяц]:[месяц]]=$J$2)/(Таблица1[[год]:[год]]=$L$2)/(Таблица1[[изд]:[изд]]=$O$1)/(Таблица1[[партия]:[партия]]=$S$1),ROW(J15))),\"\")","v":""},{"$f":"IFERROR(INDEX(Таблица1[11],_xlfn.AGGREGATE(15,6,(ROW(Таблица1[11])-ROW(Таблица1[[#Headers],[11]]))/(Таблица1[[месяц]:[месяц]]=$J$2)/(Таблица1[[год]:[год]]=$L$2)/(Таблица1[[изд]:[изд]]=$O$1)/(Таблица1[[партия]:[партия]]=$S$1),ROW(K15))),\"\")","v":""},{"$f":"IFERROR(INDEX(Таблица1[12],_xlfn.AGGREGATE(15,6,(ROW(Таблица1[12])-ROW(Таблица1[[#Headers],[12]]))/(Таблица1[[месяц]:[месяц]]=$J$2)/(Таблица1[[год]:[год]]=$L$2)/(Таблица1[[изд]:[изд]]=$O$1)/(Таблица1[[партия]:[партия]]=$S$1),ROW(L15))),\"\")","v":""},{"$f":"IFERROR(INDEX(Таблица1[13],_xlfn.AGGREGATE(15,6,(ROW(Таблица1[13])-ROW(Таблица1[[#Headers],[13]]))/(Таблица1[[месяц]:[месяц]]=$J$2)/(Таблица1[[год]:[год]]=$L$2)/(Таблица1[[изд]:[изд]]=$O$1)/(Таблица1[[партия]:[партия]]=$S$1),ROW(M15))),\"\")","v":""},{"$f":"IFERROR(INDEX(Таблица1[16],_xlfn.AGGREGATE(15,6,(ROW(Таблица1[16])-ROW(Таблица1[[#Headers],[16]]))/(Таблица1[[месяц]:[месяц]]=$J$2)/(Таблица1[[год]:[год]]=$L$2)/(Таблица1[[изд]:[изд]]=$O$1)/(Таблица1[[партия]:[партия]]=$S$1),ROW(N15))),\"\")","v":""},{"$f":"IFERROR(INDEX(Таблица1[17],_xlfn.AGGREGATE(15,6,(ROW(Таблица1[17])-ROW(Таблица1[[#Headers],[17]]))/(Таблица1[[месяц]:[месяц]]=$J$2)/(Таблица1[[год]:[год]]=$L$2)/(Таблица1[[изд]:[изд]]=$O$1)/(Таблица1[[партия]:[партия]]=$S$1),ROW(O15))),\"\")","v":""},{"$f":"IFERROR(INDEX(Таблица1[18],_xlfn.AGGREGATE(15,6,(ROW(Таблица1[18])-ROW(Таблица1[[#Headers],[18]]))/(Таблица1[[месяц]:[месяц]]=$J$2)/(Таблица1[[год]:[год]]=$L$2)/(Таблица1[[изд]:[изд]]=$O$1)/(Таблица1[[партия]:[партия]]=$S$1),ROW(P15))),\"\")","v":""},{"$f":"IFERROR(INDEX(Таблица1[19],_xlfn.AGGREGATE(15,6,(ROW(Таблица1[19])-ROW(Таблица1[[#Headers],[19]]))/(Таблица1[[месяц]:[месяц]]=$J$2)/(Таблица1[[год]:[год]]=$L$2)/(Таблица1[[изд]:[изд]]=$O$1)/(Таблица1[[партия]:[партия]]=$S$1),ROW(Q15))),\"\")","v":""},{"$f":"IFERROR(INDEX(Таблица1[20],_xlfn.AGGREGATE(15,6,(ROW(Таблица1[20])-ROW(Таблица1[[#Headers],[20]]))/(Таблица1[[месяц]:[месяц]]=$J$2)/(Таблица1[[год]:[год]]=$L$2)/(Таблица1[[изд]:[изд]]=$O$1)/(Таблица1[[партия]:[партия]]=$S$1),ROW(R15))),\"\")","v":""},{"$f":"IFERROR(INDEX(Таблица1[23],_xlfn.AGGREGATE(15,6,(ROW(Таблица1[23])-ROW(Таблица1[[#Headers],[23]]))/(Таблица1[[месяц]:[месяц]]=$J$2)/(Таблица1[[год]:[год]]=$L$2)/(Таблица1[[изд]:[изд]]=$O$1)/(Таблица1[[партия]:[партия]]=$S$1),ROW(S15))),\"\")","v":""},{"$f":"IFERROR(INDEX(Таблица1[24],_xlfn.AGGREGATE(15,6,(ROW(Таблица1[24])-ROW(Таблица1[[#Headers],[24]]))/(Таблица1[[месяц]:[месяц]]=$J$2)/(Таблица1[[год]:[год]]=$L$2)/(Таблица1[[изд]:[изд]]=$O$1)/(Таблица1[[партия]:[партия]]=$S$1),ROW(T15))),\"\")","v":""},{"$f":"IFERROR(INDEX(Таблица1[25],_xlfn.AGGREGATE(15,6,(ROW(Таблица1[25])-ROW(Таблица1[[#Headers],[25]]))/(Таблица1[[месяц]:[месяц]]=$J$2)/(Таблица1[[год]:[год]]=$L$2)/(Таблица1[[изд]:[изд]]=$O$1)/(Таблица1[[партия]:[партия]]=$S$1),ROW(U15))),\"\")","v":""},{"$f":"IFERROR(INDEX(Таблица1[26],_xlfn.AGGREGATE(15,6,(ROW(Таблица1[26])-ROW(Таблица1[[#Headers],[26]]))/(Таблица1[[месяц]:[месяц]]=$J$2)/(Таблица1[[год]:[год]]=$L$2)/(Таблица1[[изд]:[изд]]=$O$1)/(Таблица1[[партия]:[партия]]=$S$1),ROW(V15))),\"\")","v":""},{"$f":"IFERROR(INDEX(Таблица1[27],_xlfn.AGGREGATE(15,6,(ROW(Таблица1[27])-ROW(Таблица1[[#Headers],[27]]))/(Таблица1[[месяц]:[месяц]]=$J$2)/(Таблица1[[год]:[год]]=$L$2)/(Таблица1[[изд]:[изд]]=$O$1)/(Таблица1[[партия]:[партия]]=$S$1),ROW(W15))),\"\")","v":""},{"$f":"IFERROR(INDEX(Таблица1[30],_xlfn.AGGREGATE(15,6,(ROW(Таблица1[30])-ROW(Таблица1[[#Headers],[30]]))/(Таблица1[[месяц]:[месяц]]=$J$2)/(Таблица1[[год]:[год]]=$L$2)/(Таблица1[[изд]:[изд]]=$O$1)/(Таблица1[[партия]:[партия]]=$S$1),ROW(X15))),\"\")","v":""},{"$f":"IFERROR(INDEX(Таблица1[31],_xlfn.AGGREGATE(15,6,(ROW(Таблица1[31])-ROW(Таблица1[[#Headers],[31]]))/(Таблица1[[месяц]:[месяц]]=$J$2)/(Таблица1[[год]:[год]]=$L$2)/(Таблица1[[изд]:[изд]]=$O$1)/(Таблица1[[партия]:[партия]]=$S$1),ROW(Y15))),\"\")","v":""}]
[null,{"$f":"IFERROR(INDEX(Таблица1[коэф],_xlfn.AGGREGATE(15,6,(ROW(Таблица1[коэф])-ROW(Таблица1[[#Headers],[коэф]]))/(Таблица1[[месяц]:[месяц]]=$J$2)/(Таблица1[[год]:[год]]=$L$2)/(Таблица1[[изд]:[изд]]=$O$1)/(Таблица1[[партия]:[партия]]=$S$1),ROW(A16))),\"\")","v":""},{"$f":"IFERROR(INDEX(Таблица1[Ф. И. О.],_xlfn.AGGREGATE(15,6,(ROW(Таблица1[Ф. И. О.])-ROW(Таблица1[[#Headers],[Ф. И. О.]]))/(Таблица1[[месяц]:[месяц]]=$J$2)/(Таблица1[[год]:[год]]=$L$2)/(Таблица1[[изд]:[изд]]=$O$1)/(Таблица1[[партия]:[партия]]=$S$1),ROW(B16))),\"\")","v":""},{"$f":"IFERROR(INDEX(Таблица1[р/р],_xlfn.AGGREGATE(15,6,(ROW(Таблица1[р/р])-ROW(Таблица1[[#Headers],[р/р]]))/(Таблица1[[месяц]:[месяц]]=$J$2)/(Таблица1[[год]:[год]]=$L$2)/(Таблица1[[изд]:[изд]]=$O$1)/(Таблица1[[партия]:[партия]]=$S$1),ROW(C16))),\"\")","v":""},{"$f":"IFERROR(INDEX(Таблица1[2],_xlfn.AGGREGATE(15,6,(ROW(Таблица1[2])-ROW(Таблица1[[#Headers],[2]]))/(Таблица1[[месяц]:[месяц]]=$J$2)/(Таблица1[[год]:[год]]=$L$2)/(Таблица1[[изд]:[изд]]=$O$1)/(Таблица1[[партия]:[партия]]=$S$1),ROW(D16))),\"\")","v":""},{"$f":"IFERROR(INDEX(Таблица1[3],_xlfn.AGGREGATE(15,6,(ROW(Таблица1[3])-ROW(Таблица1[[#Headers],[3]]))/(Таблица1[[месяц]:[месяц]]=$J$2)/(Таблица1[[год]:[год]]=$L$2)/(Таблица1[[изд]:[изд]]=$O$1)/(Таблица1[[партия]:[партия]]=$S$1),ROW(E16))),\"\")","v":""},{"$f":"IFERROR(INDEX(Таблица1[4],_xlfn.AGGREGATE(15,6,(ROW(Таблица1[4])-ROW(Таблица1[[#Headers],[4]]))/(Таблица1[[месяц]:[месяц]]=$J$2)/(Таблица1[[год]:[год]]=$L$2)/(Таблица1[[изд]:[изд]]=$O$1)/(Таблица1[[партия]:[партия]]=$S$1),ROW(F16))),\"\")","v":""},{"$f":"IFERROR(INDEX(Таблица1[5],_xlfn.AGGREGATE(15,6,(ROW(Таблица1[5])-ROW(Таблица1[[#Headers],[5]]))/(Таблица1[[месяц]:[месяц]]=$J$2)/(Таблица1[[год]:[год]]=$L$2)/(Таблица1[[изд]:[изд]]=$O$1)/(Таблица1[[партия]:[партия]]=$S$1),ROW(G16))),\"\")","v":""},{"$f":"IFERROR(INDEX(Таблица1[6],_xlfn.AGGREGATE(15,6,(ROW(Таблица1[6])-ROW(Таблица1[[#Headers],[6]]))/(Таблица1[[месяц]:[месяц]]=$J$2)/(Таблица1[[год]:[год]]=$L$2)/(Таблица1[[изд]:[изд]]=$O$1)/(Таблица1[[партия]:[партия]]=$S$1),ROW(H16))),\"\")","v":""},{"$f":"IFERROR(INDEX(Таблица1[9],_xlfn.AGGREGATE(15,6,(ROW(Таблица1[9])-ROW(Таблица1[[#Headers],[9]]))/(Таблица1[[месяц]:[месяц]]=$J$2)/(Таблица1[[год]:[год]]=$L$2)/(Таблица1[[изд]:[изд]]=$O$1)/(Таблица1[[партия]:[партия]]=$S$1),ROW(I16))),\"\")","v":""},{"$f":"IFERROR(INDEX(Таблица1[10],_xlfn.AGGREGATE(15,6,(ROW(Таблица1[10])-ROW(Таблица1[[#Headers],[10]]))/(Таблица1[[месяц]:[месяц]]=$J$2)/(Таблица1[[год]:[год]]=$L$2)/(Таблица1[[изд]:[изд]]=$O$1)/(Таблица1[[партия]:[партия]]=$S$1),ROW(J16))),\"\")","v":""},{"$f":"IFERROR(INDEX(Таблица1[11],_xlfn.AGGREGATE(15,6,(ROW(Таблица1[11])-ROW(Таблица1[[#Headers],[11]]))/(Таблица1[[месяц]:[месяц]]=$J$2)/(Таблица1[[год]:[год]]=$L$2)/(Таблица1[[изд]:[изд]]=$O$1)/(Таблица1[[партия]:[партия]]=$S$1),ROW(K16))),\"\")","v":""},{"$f":"IFERROR(INDEX(Таблица1[12],_xlfn.AGGREGATE(15,6,(ROW(Таблица1[12])-ROW(Таблица1[[#Headers],[12]]))/(Таблица1[[месяц]:[месяц]]=$J$2)/(Таблица1[[год]:[год]]=$L$2)/(Таблица1[[изд]:[изд]]=$O$1)/(Таблица1[[партия]:[партия]]=$S$1),ROW(L16))),\"\")","v":""},{"$f":"IFERROR(INDEX(Таблица1[13],_xlfn.AGGREGATE(15,6,(ROW(Таблица1[13])-ROW(Таблица1[[#Headers],[13]]))/(Таблица1[[месяц]:[месяц]]=$J$2)/(Таблица1[[год]:[год]]=$L$2)/(Таблица1[[изд]:[изд]]=$O$1)/(Таблица1[[партия]:[партия]]=$S$1),ROW(M16))),\"\")","v":""},{"$f":"IFERROR(INDEX(Таблица1[16],_xlfn.AGGREGATE(15,6,(ROW(Таблица1[16])-ROW(Таблица1[[#Headers],[16]]))/(Таблица1[[месяц]:[месяц]]=$J$2)/(Таблица1[[год]:[год]]=$L$2)/(Таблица1[[изд]:[изд]]=$O$1)/(Таблица1[[партия]:[партия]]=$S$1),ROW(N16))),\"\")","v":""},{"$f":"IFERROR(INDEX(Таблица1[17],_xlfn.AGGREGATE(15,6,(ROW(Таблица1[17])-ROW(Таблица1[[#Headers],[17]]))/(Таблица1[[месяц]:[месяц]]=$J$2)/(Таблица1[[год]:[год]]=$L$2)/(Таблица1[[изд]:[изд]]=$O$1)/(Таблица1[[партия]:[партия]]=$S$1),ROW(O16))),\"\")","v":""},{"$f":"IFERROR(INDEX(Таблица1[18],_xlfn.AGGREGATE(15,6,(ROW(Таблица1[18])-ROW(Таблица1[[#Headers],[18]]))/(Таблица1[[месяц]:[месяц]]=$J$2)/(Таблица1[[год]:[год]]=$L$2)/(Таблица1[[изд]:[изд]]=$O$1)/(Таблица1[[партия]:[партия]]=$S$1),ROW(P16))),\"\")","v":""},{"$f":"IFERROR(INDEX(Таблица1[19],_xlfn.AGGREGATE(15,6,(ROW(Таблица1[19])-ROW(Таблица1[[#Headers],[19]]))/(Таблица1[[месяц]:[месяц]]=$J$2)/(Таблица1[[год]:[год]]=$L$2)/(Таблица1[[изд]:[изд]]=$O$1)/(Таблица1[[партия]:[партия]]=$S$1),ROW(Q16))),\"\")","v":""},{"$f":"IFERROR(INDEX(Таблица1[20],_xlfn.AGGREGATE(15,6,(ROW(Таблица1[20])-ROW(Таблица1[[#Headers],[20]]))/(Таблица1[[месяц]:[месяц]]=$J$2)/(Таблица1[[год]:[год]]=$L$2)/(Таблица1[[изд]:[изд]]=$O$1)/(Таблица1[[партия]:[партия]]=$S$1),ROW(R16))),\"\")","v":""},{"$f":"IFERROR(INDEX(Таблица1[23],_xlfn.AGGREGATE(15,6,(ROW(Таблица1[23])-ROW(Таблица1[[#Headers],[23]]))/(Таблица1[[месяц]:[месяц]]=$J$2)/(Таблица1[[год]:[год]]=$L$2)/(Таблица1[[изд]:[изд]]=$O$1)/(Таблица1[[партия]:[партия]]=$S$1),ROW(S16))),\"\")","v":""},{"$f":"IFERROR(INDEX(Таблица1[24],_xlfn.AGGREGATE(15,6,(ROW(Таблица1[24])-ROW(Таблица1[[#Headers],[24]]))/(Таблица1[[месяц]:[месяц]]=$J$2)/(Таблица1[[год]:[год]]=$L$2)/(Таблица1[[изд]:[изд]]=$O$1)/(Таблица1[[партия]:[партия]]=$S$1),ROW(T16))),\"\")","v":""},{"$f":"IFERROR(INDEX(Таблица1[25],_xlfn.AGGREGATE(15,6,(ROW(Таблица1[25])-ROW(Таблица1[[#Headers],[25]]))/(Таблица1[[месяц]:[месяц]]=$J$2)/(Таблица1[[год]:[год]]=$L$2)/(Таблица1[[изд]:[изд]]=$O$1)/(Таблица1[[партия]:[партия]]=$S$1),ROW(U16))),\"\")","v":""},{"$f":"IFERROR(INDEX(Таблица1[26],_xlfn.AGGREGATE(15,6,(ROW(Таблица1[26])-ROW(Таблица1[[#Headers],[26]]))/(Таблица1[[месяц]:[месяц]]=$J$2)/(Таблица1[[год]:[год]]=$L$2)/(Таблица1[[изд]:[изд]]=$O$1)/(Таблица1[[партия]:[партия]]=$S$1),ROW(V16))),\"\")","v":""},{"$f":"IFERROR(INDEX(Таблица1[27],_xlfn.AGGREGATE(15,6,(ROW(Таблица1[27])-ROW(Таблица1[[#Headers],[27]]))/(Таблица1[[месяц]:[месяц]]=$J$2)/(Таблица1[[год]:[год]]=$L$2)/(Таблица1[[изд]:[изд]]=$O$1)/(Таблица1[[партия]:[партия]]=$S$1),ROW(W16))),\"\")","v":""},{"$f":"IFERROR(INDEX(Таблица1[30],_xlfn.AGGREGATE(15,6,(ROW(Таблица1[30])-ROW(Таблица1[[#Headers],[30]]))/(Таблица1[[месяц]:[месяц]]=$J$2)/(Таблица1[[год]:[год]]=$L$2)/(Таблица1[[изд]:[изд]]=$O$1)/(Таблица1[[партия]:[партия]]=$S$1),ROW(X16))),\"\")","v":""},{"$f":"IFERROR(INDEX(Таблица1[31],_xlfn.AGGREGATE(15,6,(ROW(Таблица1[31])-ROW(Таблица1[[#Headers],[31]]))/(Таблица1[[месяц]:[месяц]]=$J$2)/(Таблица1[[год]:[год]]=$L$2)/(Таблица1[[изд]:[изд]]=$O$1)/(Таблица1[[партия]:[партия]]=$S$1),ROW(Y16))),\"\")","v":""}]
[null,{"$f":"IFERROR(INDEX(Таблица1[коэф],_xlfn.AGGREGATE(15,6,(ROW(Таблица1[коэф])-ROW(Таблица1[[#Headers],[коэф]]))/(Таблица1[[месяц]:[месяц]]=$J$2)/(Таблица1[[год]:[год]]=$L$2)/(Таблица1[[изд]:[изд]]=$O$1)/(Таблица1[[партия]:[партия]]=$S$1),ROW(A17))),\"\")","v":""},{"$f":"IFERROR(INDEX(Таблица1[Ф. И. О.],_xlfn.AGGREGATE(15,6,(ROW(Таблица1[Ф. И. О.])-ROW(Таблица1[[#Headers],[Ф. И. О.]]))/(Таблица1[[месяц]:[месяц]]=$J$2)/(Таблица1[[год]:[год]]=$L$2)/(Таблица1[[изд]:[изд]]=$O$1)/(Таблица1[[партия]:[партия]]=$S$1),ROW(B17))),\"\")","v":""},{"$f":"IFERROR(INDEX(Таблица1[р/р],_xlfn.AGGREGATE(15,6,(ROW(Таблица1[р/р])-ROW(Таблица1[[#Headers],[р/р]]))/(Таблица1[[месяц]:[месяц]]=$J$2)/(Таблица1[[год]:[год]]=$L$2)/(Таблица1[[изд]:[изд]]=$O$1)/(Таблица1[[партия]:[партия]]=$S$1),ROW(C17))),\"\")","v":""},{"$f":"IFERROR(INDEX(Таблица1[2],_xlfn.AGGREGATE(15,6,(ROW(Таблица1[2])-ROW(Таблица1[[#Headers],[2]]))/(Таблица1[[месяц]:[месяц]]=$J$2)/(Таблица1[[год]:[год]]=$L$2)/(Таблица1[[изд]:[изд]]=$O$1)/(Таблица1[[партия]:[партия]]=$S$1),ROW(D17))),\"\")","v":""},{"$f":"IFERROR(INDEX(Таблица1[3],_xlfn.AGGREGATE(15,6,(ROW(Таблица1[3])-ROW(Таблица1[[#Headers],[3]]))/(Таблица1[[месяц]:[месяц]]=$J$2)/(Таблица1[[год]:[год]]=$L$2)/(Таблица1[[изд]:[изд]]=$O$1)/(Таблица1[[партия]:[партия]]=$S$1),ROW(E17))),\"\")","v":""},{"$f":"IFERROR(INDEX(Таблица1[4],_xlfn.AGGREGATE(15,6,(ROW(Таблица1[4])-ROW(Таблица1[[#Headers],[4]]))/(Таблица1[[месяц]:[месяц]]=$J$2)/(Таблица1[[год]:[год]]=$L$2)/(Таблица1[[изд]:[изд]]=$O$1)/(Таблица1[[партия]:[партия]]=$S$1),ROW(F17))),\"\")","v":""},{"$f":"IFERROR(INDEX(Таблица1[5],_xlfn.AGGREGATE(15,6,(ROW(Таблица1[5])-ROW(Таблица1[[#Headers],[5]]))/(Таблица1[[месяц]:[месяц]]=$J$2)/(Таблица1[[год]:[год]]=$L$2)/(Таблица1[[изд]:[изд]]=$O$1)/(Таблица1[[партия]:[партия]]=$S$1),ROW(G17))),\"\")","v":""},{"$f":"IFERROR(INDEX(Таблица1[6],_xlfn.AGGREGATE(15,6,(ROW(Таблица1[6])-ROW(Таблица1[[#Headers],[6]]))/(Таблица1[[месяц]:[месяц]]=$J$2)/(Таблица1[[год]:[год]]=$L$2)/(Таблица1[[изд]:[изд]]=$O$1)/(Таблица1[[партия]:[партия]]=$S$1),ROW(H17))),\"\")","v":""},{"$f":"IFERROR(INDEX(Таблица1[9],_xlfn.AGGREGATE(15,6,(ROW(Таблица1[9])-ROW(Таблица1[[#Headers],[9]]))/(Таблица1[[месяц]:[месяц]]=$J$2)/(Таблица1[[год]:[год]]=$L$2)/(Таблица1[[изд]:[изд]]=$O$1)/(Таблица1[[партия]:[партия]]=$S$1),ROW(I17))),\"\")","v":""},{"$f":"IFERROR(INDEX(Таблица1[10],_xlfn.AGGREGATE(15,6,(ROW(Таблица1[10])-ROW(Таблица1[[#Headers],[10]]))/(Таблица1[[месяц]:[месяц]]=$J$2)/(Таблица1[[год]:[год]]=$L$2)/(Таблица1[[изд]:[изд]]=$O$1)/(Таблица1[[партия]:[партия]]=$S$1),ROW(J17))),\"\")","v":""},{"$f":"IFERROR(INDEX(Таблица1[11],_xlfn.AGGREGATE(15,6,(ROW(Таблица1[11])-ROW(Таблица1[[#Headers],[11]]))/(Таблица1[[месяц]:[месяц]]=$J$2)/(Таблица1[[год]:[год]]=$L$2)/(Таблица1[[изд]:[изд]]=$O$1)/(Таблица1[[партия]:[партия]]=$S$1),ROW(K17))),\"\")","v":""},{"$f":"IFERROR(INDEX(Таблица1[12],_xlfn.AGGREGATE(15,6,(ROW(Таблица1[12])-ROW(Таблица1[[#Headers],[12]]))/(Таблица1[[месяц]:[месяц]]=$J$2)/(Таблица1[[год]:[год]]=$L$2)/(Таблица1[[изд]:[изд]]=$O$1)/(Таблица1[[партия]:[партия]]=$S$1),ROW(L17))),\"\")","v":""},{"$f":"IFERROR(INDEX(Таблица1[13],_xlfn.AGGREGATE(15,6,(ROW(Таблица1[13])-ROW(Таблица1[[#Headers],[13]]))/(Таблица1[[месяц]:[месяц]]=$J$2)/(Таблица1[[год]:[год]]=$L$2)/(Таблица1[[изд]:[изд]]=$O$1)/(Таблица1[[партия]:[партия]]=$S$1),ROW(M17))),\"\")","v":""},{"$f":"IFERROR(INDEX(Таблица1[16],_xlfn.AGGREGATE(15,6,(ROW(Таблица1[16])-ROW(Таблица1[[#Headers],[16]]))/(Таблица1[[месяц]:[месяц]]=$J$2)/(Таблица1[[год]:[год]]=$L$2)/(Таблица1[[изд]:[изд]]=$O$1)/(Таблица1[[партия]:[партия]]=$S$1),ROW(N17))),\"\")","v":""},{"$f":"IFERROR(INDEX(Таблица1[17],_xlfn.AGGREGATE(15,6,(ROW(Таблица1[17])-ROW(Таблица1[[#Headers],[17]]))/(Таблица1[[месяц]:[месяц]]=$J$2)/(Таблица1[[год]:[год]]=$L$2)/(Таблица1[[изд]:[изд]]=$O$1)/(Таблица1[[партия]:[партия]]=$S$1),ROW(O17))),\"\")","v":""},{"$f":"IFERROR(INDEX(Таблица1[18],_xlfn.AGGREGATE(15,6,(ROW(Таблица1[18])-ROW(Таблица1[[#Headers],[18]]))/(Таблица1[[месяц]:[месяц]]=$J$2)/(Таблица1[[год]:[год]]=$L$2)/(Таблица1[[изд]:[изд]]=$O$1)/(Таблица1[[партия]:[партия]]=$S$1),ROW(P17))),\"\")","v":""},{"$f":"IFERROR(INDEX(Таблица1[19],_xlfn.AGGREGATE(15,6,(ROW(Таблица1[19])-ROW(Таблица1[[#Headers],[19]]))/(Таблица1[[месяц]:[месяц]]=$J$2)/(Таблица1[[год]:[год]]=$L$2)/(Таблица1[[изд]:[изд]]=$O$1)/(Таблица1[[партия]:[партия]]=$S$1),ROW(Q17))),\"\")","v":""},{"$f":"IFERROR(INDEX(Таблица1[20],_xlfn.AGGREGATE(15,6,(ROW(Таблица1[20])-ROW(Таблица1[[#Headers],[20]]))/(Таблица1[[месяц]:[месяц]]=$J$2)/(Таблица1[[год]:[год]]=$L$2)/(Таблица1[[изд]:[изд]]=$O$1)/(Таблица1[[партия]:[партия]]=$S$1),ROW(R17))),\"\")","v":""},{"$f":"IFERROR(INDEX(Таблица1[23],_xlfn.AGGREGATE(15,6,(ROW(Таблица1[23])-ROW(Таблица1[[#Headers],[23]]))/(Таблица1[[месяц]:[месяц]]=$J$2)/(Таблица1[[год]:[год]]=$L$2)/(Таблица1[[изд]:[изд]]=$O$1)/(Таблица1[[партия]:[партия]]=$S$1),ROW(S17))),\"\")","v":""},{"$f":"IFERROR(INDEX(Таблица1[24],_xlfn.AGGREGATE(15,6,(ROW(Таблица1[24])-ROW(Таблица1[[#Headers],[24]]))/(Таблица1[[месяц]:[месяц]]=$J$2)/(Таблица1[[год]:[год]]=$L$2)/(Таблица1[[изд]:[изд]]=$O$1)/(Таблица1[[партия]:[партия]]=$S$1),ROW(T17))),\"\")","v":""},{"$f":"IFERROR(INDEX(Таблица1[25],_xlfn.AGGREGATE(15,6,(ROW(Таблица1[25])-ROW(Таблица1[[#Headers],[25]]))/(Таблица1[[месяц]:[месяц]]=$J$2)/(Таблица1[[год]:[год]]=$L$2)/(Таблица1[[изд]:[изд]]=$O$1)/(Таблица1[[партия]:[партия]]=$S$1),ROW(U17))),\"\")","v":""},{"$f":"IFERROR(INDEX(Таблица1[26],_xlfn.AGGREGATE(15,6,(ROW(Таблица1[26])-ROW(Таблица1[[#Headers],[26]]))/(Таблица1[[месяц]:[месяц]]=$J$2)/(Таблица1[[год]:[год]]=$L$2)/(Таблица1[[изд]:[изд]]=$O$1)/(Таблица1[[партия]:[партия]]=$S$1),ROW(V17))),\"\")","v":""},{"$f":"IFERROR(INDEX(Таблица1[27],_xlfn.AGGREGATE(15,6,(ROW(Таблица1[27])-ROW(Таблица1[[#Headers],[27]]))/(Таблица1[[месяц]:[месяц]]=$J$2)/(Таблица1[[год]:[год]]=$L$2)/(Таблица1[[изд]:[изд]]=$O$1)/(Таблица1[[партия]:[партия]]=$S$1),ROW(W17))),\"\")","v":""},{"$f":"IFERROR(INDEX(Таблица1[30],_xlfn.AGGREGATE(15,6,(ROW(Таблица1[30])-ROW(Таблица1[[#Headers],[30]]))/(Таблица1[[месяц]:[месяц]]=$J$2)/(Таблица1[[год]:[год]]=$L$2)/(Таблица1[[изд]:[изд]]=$O$1)/(Таблица1[[партия]:[партия]]=$S$1),ROW(X17))),\"\")","v":""},{"$f":"IFERROR(INDEX(Таблица1[31],_xlfn.AGGREGATE(15,6,(ROW(Таблица1[31])-ROW(Таблица1[[#Headers],[31]]))/(Таблица1[[месяц]:[месяц]]=$J$2)/(Таблица1[[год]:[год]]=$L$2)/(Таблица1[[изд]:[изд]]=$O$1)/(Таблица1[[партия]:[партия]]=$S$1),ROW(Y17))),\"\")","v":""}]

{"sheet":"база","index":3,"n_rows":21,"n_cols":13,"rows_kept":21,"cut":false,"hidden":true,"merged":[]}
["партия","Ф. И. О.","р/р","разряд","Таб №",null,"Разряд работы","Стоимость","4%","8%","12%","16%","24%"]
["4-21","работник1","3/16",3,15118,null,1,10,{"$f":"ROUND(H2*I1+H2,2)","v":10.4},{"$f":"ROUND(H2*J1+H2,2)","v":10.8},{"$f":"ROUND(H2*K1+H2,2)","v":11.2},{"$f":"ROUND(H2*L1+H2,2)","v":11.6},{"$f":"ROUND(H2*M1+H2,2)","v":12.4}]
["33-21","работник2","2/4",3,15791,null,2,20,{"$f":"ROUND(H3*I1+H3,2)","v":20.8},{"$f":"ROUND(H3*J1+H3,2)","v":21.6},{"$f":"ROUND(H3*K1+H3,2)","v":22.4},{"$f":"ROUND(H3*L1+H3,2)","v":23.2},{"$f":"ROUND(H3*M1+H3,2)","v":24.8}]
["27-21","работник3","3/4",2,15117,null,3,30,{"$f":"ROUND(H4*I1+H4,2)","v":31.2},{"$f":"ROUND(H4*J1+H4,2)","v":32.4},{"$f":"ROUND(H4*K1+H4,2)","v":33.6},{"$f":"ROUND(H4*L1+H4,2)","v":34.799999999999997},{"$f":"ROUND(H4*M1+H4,2)","v":37.200000000000003}]
["1-21","работник4","4/8",3,15043,null,4,40,{"$f":"ROUND(H5*I1+H5,2)","v":41.6},{"$f":"ROUND(H5*J1+H5,2)","v":43.2},{"$f":"ROUND(H5*K1+H5,2)","v":44.8},{"$f":"ROUND(H5*L1+H5,2)","v":46.4},{"$f":"ROUND(H5*M1+H5,2)","v":49.6}]
["2-21","работник5","3/24",4,15001,null,5,50,{"$f":"ROUND(H6*I1+H6,2)","v":52},{"$f":"ROUND(H6*J1+H6,2)","v":54},{"$f":"ROUND(H6*K1+H6,2)","v":56},{"$f":"ROUND(H6*L1+H6,2)","v":58},{"$f":"ROUND(H6*M1+H6,2)","v":62}]
["1-22","работник6","4/24",3,15894,null,6,60,{"$f":"ROUND(H7*I1+H7,2)","v":62.4},{"$f":"ROUND(H7*J1+H7,2)","v":64.8},{"$f":"ROUND(H7*K1+H7,2)","v":67.2},{"$f":"ROUND(H7*L1+H7,2)","v":69.599999999999994},{"$f":"ROUND(H7*M1+H7,2)","v":74.400000000000006}]
[null,"работник7","4/16",3,15590]
[null,"работник8",null,4,15340]
[null,"работник9",null,4,15608]
[null,"работник10",null,4,13676]
[null,"работник11",null,4,15575]
[null,"работник12",null,3,14883]
[null,"работник13",null,3,15041]
[null,"работник14",null,3,15556]
[null,"работник15",null,3,15589]
[null,"работник16",null,4,15098]
[null,"работник17",null,3,15237]
[null,"работник18",null,3,14693]
[null,"работник19",null,2,14988]
[null,"работник20",null,3,15889]

{"sheet":"расчет","index":4,"n_rows":8,"n_cols":27,"rows_kept":8,"cut":false,"hidden":true,"merged":[[0,0,0,26],[3,0,4,0],[3,1,4,1],[3,2,4,2],[3,3,4,3],[3,4,3,7],[3,8,3,11],[3,12,3,15],[3,16,3,19],[5,0,7,0],[5,2,7,2],[5,3,7,3],[5,24,7,24],[5,25,7,25],[5,26,7,26],[3,20,3,23],[3,24,4,24],[3,25,4,25],[3,26,4,26]]}
["производств уч. № 1"]
[null,null,null,null,null,null,null,null,null,null,null,null,null,"ЗП","январь",null,2021]
[]
[null,"ФИО","Табельный номер","разряд работника",0.04,null,null,null,0.08,null,null,null,0.12,null,null,null,0.16,null,null,null,0.24,null,null,null,"итого часы","итого сумма, руб ","подпись работник "]
[null,null,null,null,"тариф","коэффициент","часы","сумма","тариф","коэффициент","часы","сумма","тариф","коэффициент","часы","сумма","тариф","коэффициент","часы","сумма","тариф","коэффициент","часы","сумма"]
[1,null,{"$f":"INDEX(база!E2:E21, MATCH(B7,база!B2:B21,0))","v":15001},{"$f":"INDEX(база!D2:D21, MATCH(B7,база!B2:B21,0))","v":4},null,1,null,{"$f":"E6*F6*G6","v":0},null,1,null,{"$f":"I6*J6*K6","v":0},null,1,null,{"$f":"M6*N6*O6","v":0},null,1,null,{"$f":"Q6*R6*S6","v":0},null,1,null,{"$f":"U6*V6*W6","v":0},{"$f":"G6+G7+G8+K6+K7+K8+O6+O7+O8+S6+S7+S8+W6+W7+W8","v":0},{"$f":"H6+H7+H8+L6+L7+L8+P6+P7+P8+T6+T7+T8+X6+X7+X8","v":0}]
[null,"работник5",null,null,null,1.1000000000000001,null,{"$f":"E7*F7*G7","v":0},null,1.1000000000000001,null,{"$f":"I7*J7*K7","v":0},null,1.1000000000000001,null,{"$f":"M7*N7*O7","v":0},null,1.1000000000000001,null,{"$f":"Q7*R7*S7","v":0},null,1.1000000000000001,null,{"$f":"U7*V7*W7","v":0}]
[null,null,null,null,null,1.5,null,{"$f":"E8*F8*G8","v":0},null,1.5,null,{"$f":"I8*J8*K8","v":0},null,1.5,null,{"$f":"M8*N8*O8","v":0},null,1.5,null,{"$f":"Q8*R8*S8","v":0},null,1.5,null,{"$f":"U8*V8*W8","v":0}]